{"text_format":"1","workbook":"xlsx","n_sheets":9,"sheets":["Template Instructions","Assessment Information","Sheet2","Principle 1","Principle 2","Principle 3","Summary & Results","Final Report","Improvement Plan"],"not_rendered":{"charts":8,"images":4,"macros":1,"external_links":0,"defined_names":4,"comments":0,"pivot_tables":0},"unopened":[],"bounds":{"document_bytes":16777216,"sheet_cells":100000,"rows_first":2000,"rows_last":500,"rows_between":2000,"halvings":0,"cell_chars":16384,"cell_head_chars":4096},"cells_cut":0,"cells_raw":0,"read":"whole","date_system":"1900"}

{"sheet":"Template Instructions","index":0,"n_rows":62,"n_cols":15,"rows_kept":62,"cut":false,"hidden":false,"merged":[[4,1,4,7],[15,4,15,5],[46,4,46,5],[60,4,60,5],[34,3,34,5],[40,2,40,19],[33,2,33,19],[35,2,35,19],[38,2,38,19],[8,2,9,3],[8,5,9,6],[8,8,9,9],[8,11,9,12],[8,14,9,15]]}
[]
[null,"The Social Responsibility Assessment (SRA) Tool for the Seafood Sector"]
[null,"Assessment Reporting Template"]
[]
[null,"Please watch the video tutorial before using this tool, which you can find",null,null,null,null,null,null,"HERE."]
[null,"This template is designed to be used during an assessment to capture evidence, evaluate risk, and plan for improvement according to the results."]
[null,"The following outlines the process of how to use this tool to complete an assessment."]
[]
[null,null,"1\nFill out the ‘Assessment Information tab’ prior to the assessment",null,null,"2\nDuring the assessment, use the ‘Principle #’ tabs to capture evidence and findings",null,null,"3a\nView a snapshot of the final results on the ‘Summary & Results’ tab.",null,null,"3b\nExport an Executive Summary and/or a full final report in PDF format on the ‘Final Report’ tab.",null,null,"4\nDevelop your improvement plan to reduce identified risks on the ‘Improvement Plan’ tab"]
[]
[]
[null,"This tool has four main components:"]
[]
[null,1,"Capture assessment information, including key characteristics of a Unit of Assessment (UoA)"]
[]
[null,null,"Relevant tab(s):",null,"Assessment Information"]
[null,null," + This sheet is to be filled out before commencing an assessment. This tab must be filled out to ensure the final report is complete"]
[null,null," + This sheet will capture information about the assessment, the Unit of Assessment, and production (fishery, aquaculture, or processing)"]
[null,null," + At the bottom of this page there is a space to enter references that were used either to fill out the Assessment Information or references used as evidence during the assessment. "]
[null,2,"Capture evidence against the SRA Performance Indicator Scoring Guideposts (PISGs) that are used to assess risk"]
[]
[null,null,"Relevant tab(s):",null,"Principle 1","Principle 2","Principle 3"]
[null,null,"Each SRA PISG is listed on these tabs, and an assessor will use these tabs to record all evidence gathered to evaluate each PISG."]
[null,null,"COLUMN F"]
[null,null,"For each PISG, an assessor will indicate the type of finding:"]
[]
[null,null,null,"Y",": (Yes) Indicates that there is evidence to demonstrate this PISG is met"]
[null,null,null,"N",": (No) Indicates that there is insufficient evidence to demonstrate this PISG is met"]
[null,null,null,"NA",": (Not Applicable) Indicates requirements that are not applicable based on UoA scope > review the SRA to determine which requirements are applicable to whom."]
[null,null,null,"Not Assessed",": Indicates that this PISG was out of scope of the assessment intentionally > this should be determined prior to assessment"]
[null,null,null,null,"*Note that because results are determined at the indicator level, all of the PISGs within an indicator would \"Not Assessed\" if this is the case. "]
[]
[null,null,"COLUMN G"]
[null,null,"Each finding must be supported by evidence. The Principle # tabs have space to input the type of evidence and describe the evidence and findings for each PISG."]
[null,null,"See the ","SRA Guide to Data Collection",null,null,"for more information on types of data collection relevant for each PISG."]
[null,null,"The type of data used as evidence is to be reported in column G on each Principle tab for all PISGs that are being assessed. There is a dropdown that has a list of common types of evidence that will be used, however there is an other option for flexibility. Please specify \"other\" if used."]
[null,null," + A combination may also be used - please specify which combination in the evidence/findings space. "]
[null,null,"COLUMN H"]
[null,null,"Evidence/findings here should be as detailed as is necessary to demonstrate whether or not a PISG is met or not. Including more detail will help the UoA with their improvement plan. This is to be filled out in column H"]
[null,null,"For each indicator, there is a \"Justification\" box to be filled out once each PISG in that indicator has been assessed"]
[null,null," + This space should be concise (1-2 sentences) and should not contain any sensitive information. This is a summary of the data collected and the general findings that can explain the resulting risk level for the associated indicator."]
[null,null,null,"Ex. (Indicator 1.1.2a) The UoA has a policy to prohibit the use for forced labor, however fishers have not received training on this policy, resulting in medium risk. "]
[null,null,"There is also a column to indicate to Fishery Improvement Projects (FIPs) whether or not a PISG is required to meet the FisheryProgress social policy requirements."]
[null,null,"Although there are many indicators that are not required for FisheryProgress reporting, it is recommended to conduct a complete assessment where time and resources permit. "]
[null,3,"Capture results and build a final report"]
[]
[null,null,"Relevant tab(s):",null,"Summary & Results",null,"Final Report"]
[null,null,"3a. View a snapshot of UoA characteristics and assessment results on the 'Summary & Results' tab"]
[null,null,"3b. Export a PDF of the Executive Summary or complete Final Assessment Report on the 'Final Report' tab"]
[null,null,"Once all the findings for each Principle have been filled out, the Summary & Results and the Final Report tab will be ready for viewing. "]
[null,null,"On the 'Final Report' tab, there are two buttons that can be used to export findings into PDF reports:"]
[null,null,"Executive Summary: includes The Unit of Assessment information and summary, assessment information, including the assessor information and sampling methodology,"]
[null,null,"and Principle and Indicator level results (5 pages)."]
[null,null,"Full Report: Includes all of the Executive Summary information, in addition to the findings for each individual PISGs (18 pages). Does not include the type of evidence or any"]
[null,null,"specific finding descriptions, but does include the \"Justification\" field. "]
[]
[null,null,"Note that for Fishery Improvement Projects (FIPs), \"Full Reports\" generated from this tool are accepted by FisheryProgress to meet social policy requirements."]
[null,null,"Each PISG that is relevant for FisheryProgress reporting is marked in column D on each Principle tab."]
[null,4,"Develop an improvement plan to reduce risks"]
[]
[null,null,"Relevant tab(s):",null,"Improvement Plan"]
[null,null," + On this tab you will find a list of all PISGs that were not met and devise a plan to improve to a lower risk category"]

{"sheet":"Assessment Information","index":1,"n_rows":207,"n_cols":8,"rows_kept":207,"cut":false,"hidden":false,"merged":[[205,1,205,7],[206,1,206,7],[200,1,200,7],[201,1,201,7],[202,1,202,7],[203,1,203,7],[204,1,204,7],[195,1,195,7],[196,1,196,7],[197,1,197,7],[198,1,198,7],[199,1,199,7],[190,1,190,7],[191,1,191,7],[192,1,192,7],[193,1,193,7],[194,1,194,7],[185,1,185,7],[186,1,186,7],[187,1,187,7],[188,1,188,7],[189,1,189,7],[180,1,180,7],[181,1,181,7],[182,1,182,7],[183,1,183,7],[184,1,184,7],[175,1,175,7],[176,1,176,7],[177,1,177,7],[178,1,178,7],[179,1,179,7],[170,1,170,7],[171,1,171,7],[172,1,172,7],[173,1,173,7],[174,1,174,7],[165,1,165,7],[166,1,166,7],[167,1,167,7],[168,1,168,7],[169,1,169,7],[161,1,161,7],[157,0,157,7],[162,1,162,7],[163,1,163,7],[164,1,164,7],[99,2,99,7],[158,1,158,7],[159,1,159,7],[160,1,160,7],[130,2,130,7],[27,3,27,7],[144,3,144,7],[13,1,13,7],[14,2,14,7],[15,2,15,7],[16,2,16,7],[26,3,26,7],[23,1,23,7],[24,1,24,7],[30,1,31,1],[85,3,85,7],[116,3,116,7],[64,3,64,7],[72,3,72,7],[38,2,38,7],[61,2,61,7]]}
[null,"Assessment Information"]
[]
[null,"Please fill out all the information in the boxes in ","BLUE"]
[null,"Do not fill boxes that are ","GREYED OUT"]
[null,"Where multiple items apply to a field, separate entries with a comma (,)."]
[]
[null,"Assessor Information"]
[null,"Name of Lead Assessor:"]
[null,"Lead Assessor Job Title:"]
[null,"Other Assessor(s) on Assessment Team:"]
[null,"Assessor Organization:"]
[null,"Lead Assessor Email:"]
[null,"Lead Assessor Phone:"]
[null,"Description of assessor(s) qualifications / accreditations:\nFor each experience area, describe who on the assessment team is qualified and what qualifications/accreditations they hold. Additional documentation can be provided along with the report to demonstrate qualifications."]
[null,"Social assessment/auditing experience:"]
[null,"Fishery / Aquaculture experience:"]
[null,"Language proficiency:"]
[null,"Assessment Information"]
[null,"Assessment Start Date (mm/dd/yyyy):"]
[null,"Assessment End Date (mm/dd/yyyy): "]
[null,"Assessment Duration (days):",{"$f":"C20-C19","v":0}]
[null,"Notification:"]
[null,"Assessment Purpose:"]
[null,"Assessment Summary\nIn the space provided, summarize the assessment such as contextual information about the UoA, assessment financing or partnerships, stakeholder engagement, relevant history, main target markets (import vs. export), and any other relevant information you wish to convey about the assessment."]
[]
[null,"Assessment Methodology"]
[null,"Sampling method:",null,"E.g. ELEVATE Assurance Guidance, non-probability sampling, ASC sampling, etc."]
[null,"Sampling method source:",null,"Provide a link if relevant or cite a specific source here."]
[null,"Total number of interviews:"]
[null,"Total number of vessels inspected:"]
[null,"Primary data collection methods (add Y or N next to those that were used):","Key Informant Interviews:"]
[null,null,"Focus Group Interviews:"]
[null,null,"Surveys:"]
[null,null,"Record Review:"]
[null,null,"Site Observation:"]
[null,null,"Other:"]
[null,"Specify any other primary data collection methods in the space provided:"]
[null,"Unit of Assessment General Information"]
[null,"UoA Description & Additional Information:\nSuch as unique fishery elements, notes on fishery management or co-management, stakeholders, etc."]
[null,"UoA Management (name of organization):"]
[null,"Organization Type:"]
[null,"Contact Name:"]
[null,"Contact Title:"]
[null,"Contact Email:"]
[null,"Contact Phone:"]
[null,"Fishery Improvement Project (FIP)? (Yes/No)"]
[null,"FIP Name (insert \"NA\" when not applicable):"]
[null,"FIP ID (insert \"NA\" when not applicable):"]
[null,"Certifications or Standards:","Marine Stewardship Council:"]
[null,null,"Fair Trade USA Capture Fisheries Standard:"]
[null,null,"Responsible Fishing Vessel Standard:"]
[null,null,"AENOR Atun de Pesca:"]
[null,null,"Seafood Task Force:"]
[null,null,"Thai Union:"]
[null,null,"Aquaculture Stewardship Council:"]
[null,null,"Best Aquaculture Practices (BAP):"]
[null,"Other Certifications or Standards (please specify):"]
[null,"Site Information"]
[null,"Type(s) of sites included in UoA scope:"]
[null,"Wild-capture Fishing"]
[null,"Production Information:"]
[null,"Description of the fishery:\nInclude contextual information that is not captured in the fields below."]
[null,"Main targeted species (please list all in the space provided, separated by a comma):"]
[null,"Gear type(s):"]
[null,"Number of Vessels:",null,"Note that if fishers fish from shore, please mark as \"NA\" and list number of fishers in the 'Fisher Information' section below"]
[null,"FAO Major Fishing Area(s):"]
[null,"Exclusive Economic Zone(s):"]
[null,"Flag State(s) of Vessels:"]
[null,"Regional Fisheries Management Organization (when applicable):"]
[null,"High Seas Name (when applicable):"]
[null,"Estimated total landings in previous year (metric tons):"]
[null,"Average length of time at sea (days):"]
[null,"Any relevant additional information:",null,"Please note here if there are no vessels and fishers fish from shore."]
[null,"Landing Sites:"]
[null,"Landing site(s) name:"]
[null,"Landing site(s) GPS coordinates:"]
[null,"Landing site(s) Address:"]
[null,"City:"]
[null,"Province/Region:"]
[null,"Country:"]
[null,"Worker/Fisher Information:"]
[null,"Number of permanent workers/fishers:","Male:"]
[null,null,"Female:"]
[null,"Number of seasonal workers/fishers:","Male:"]
[null,null,"Female:"]
[null,"Are there any migrant workers/fishers?\n(either domestic or foreign)",null,"If yes, please state here country of origin, numbers of individuals and nationalities or ethnicity, along with the languages spoken:"]
[null,null,null,"Country of Origin","Nationality and/or Ethnicity","Language Spoken","Number of individuals","% against total"]
[null,null,1,null,null,null,null,{"$f":"G88/(SUM(D$82:F$85))","v":{"$error":"#DIV/0!"}}]
[null,null,2,null,null,null,null,{"$error":"#DIV/0!"}]
[null,null,3,null,null,null,null,{"$error":"#DIV/0!"}]
[null,null,4,null,null,null,null,{"$error":"#DIV/0!"}]
[null,null,5,null,null,null,null,{"$error":"#DIV/0!"}]
[null,null,6,null,null,null,null,{"$error":"#DIV/0!"}]
[null,null,7,null,null,null,null,{"$error":"#DIV/0!"}]
[null,null,8,null,null,null,null,{"$error":"#DIV/0!"}]
[null,null,9,null,null,null,null,{"$error":"#DIV/0!"}]
[null,null,10,null,null,null,null,{"$error":"#DIV/0!"}]
[null,"Aquaculture"]
[null,"Production Information:"]
[null,"Description of aquaculture production:\nInclude any contextual information that is not captured in the fields below."]
[null,"Site Name:"]
[null,"GPS Coordinates:"]
[null,"Address:"]
[null,"City:"]
[null,"Province/Region:"]
[null,"Country:"]
[null,"Species (please list all):"]
[null,"Production area (ha):"]
[null,"Production volume (metric tons):"]
[null,"Production type (RAS, pond, etc.):"]
[null,"Any relevant additional information:"]
[null,"Worker/farmer Information:"]
[null,"Number of permanent workers/farmers:","Male:"]
[null,null,"Female:"]
[null,"Number of seasonal workers/farmers:","Male:"]
[null,null,"Female:"]
[null,"Are there any migrant workers/farmers? (either domestic or foreign):",null,"If yes, please state here country of origin, numbers of individuals and nationalities or ethnicity, along with the languages spoken:"]
[null,null,null,"Country","Nationality and/or Ethnicity","Language Spoken","Number of individuals","% against total"]
[null,null,1,null,null,null,null,{"$f":"G119/(SUM(D$113:F$116))","v":{"$error":"#DIV/0!"}}]
[null,null,2,null,null,null,null,{"$error":"#DIV/0!"}]
[null,null,3,null,null,null,null,{"$error":"#DIV/0!"}]
[null,null,4,null,null,null,null,{"$error":"#DIV/0!"}]
[null,null,5,null,null,null,null,{"$error":"#DIV/0!"}]
[null,null,6,null,null,null,null,{"$error":"#DIV/0!"}]
[null,null,7,null,null,null,null,{"$error":"#DIV/0!"}]
[null,null,8,null,null,null,null,{"$error":"#DIV/0!"}]
[null,null,9,null,null,null,null,{"$error":"#DIV/0!"}]
[null,null,10,null,null,null,null,{"$error":"#DIV/0!"}]
[null,"Processing Sites"]
[null,"General Information"]
[null,"Description of processing production:\nInclude any contextual information about processing that is not captured in the fields below."]
[null,"Site Name:"]
[null,"GPS Coordinates:"]
[null,"Address:"]
[null,"City:"]
[null,"Province/Region:"]
[null,"Country:"]
[null,"Total site size:"]
[null,"Number of buildings on site:"]
[null,"Worker Information:"]
[null,"Number of permanent workers:","Male:"]
[null,null,"Female:"]
[null,"Number of seasonal workers:","Male:"]
[null,null,"Female:"]
[null,"Are there any migrant workers? (either domestic or foreign):",null,"If yes, please state here numbers workers and nationalities or ethnicity, along with the languages spoken:"]
[null,null,null,"Country","Nationality and/or Ethnicity","Language Spoken","Number of workers","% against total"]
[null,null,1,null,null,null,null,{"$f":"G147/(SUM(D$141:F$144))","v":{"$error":"#DIV/0!"}}]
[null,null,2,null,null,null,null,{"$error":"#DIV/0!"}]
[null,null,3,null,null,null,null,{"$error":"#DIV/0!"}]
[null,null,4,null,null,null,null,{"$error":"#DIV/0!"}]
[null,null,5,null,null,null,null,{"$error":"#DIV/0!"}]
[null,null,6,null,null,null,null,{"$error":"#DIV/0!"}]
[null,null,7,null,null,null,null,{"$error":"#DIV/0!"}]
[null,null,8,null,null,null,null,{"$error":"#DIV/0!"}]
[null,null,9,null,null,null,null,{"$error":"#DIV/0!"}]
[null,null,10,null,null,null,null,{"$error":"#DIV/0!"}]
["Assessment References:"]
["In the space(s) provided below, please cite any references used during the assessment. This could be scientific papers describing social or environmental information, open access sources, such as national/international laws that were referenced for certain PISGs. You can include the reference number in the Principle pages as well in the Evidence/findings column. There is no required format, but it is best practice to include the reference year, author, and source at a minimum. "]
["[1]"]
["[2]"]
["[4]"]
["[5]"]
["[6]"]
["[7]"]
["[8]"]
["[9]"]
["[10]"]
["[11]"]
["[12]"]
["[13]"]
["[14]"]
["[15]"]
["[16]"]
["[17]"]
["[18]"]
["[19]"]
["[20]"]
["[21]"]
["[22]"]
["[23]"]
["[24]"]
["[25]"]
["[26]"]
["[27]"]
["[28]"]
["[29]"]
["[30]"]
["[31]"]
["[32]"]
["[33]"]
["[34]"]
["[35]"]
["[36]"]
["[37]"]
["[38]"]
["[39]"]
["[40]"]
["[41]"]
["[42]"]
["[43]"]
["[44]"]
["[45]"]
["[46]"]
["[47]"]
["[48]"]
["[49]"]
["[50]"]

{"sheet":"Sheet2","index":2,"n_rows":6,"n_cols":2,"rows_kept":6,"cut":false,"hidden":true,"merged":[]}
[]
[null,"Wild-Capture Fishing"]
[null,"Aquaculture"]
[null,"Processing"]
[null,"Wild-Capture Fishing, Processing"]
[null,"Aquaculture, Processing"]

{"sheet":"Principle 1","index":3,"n_rows":161,"n_cols":8,"rows_kept":161,"cut":false,"hidden":false,"merged":[[151,0,151,7],[72,0,72,7],[85,0,85,7],[99,0,99,7],[111,0,111,7],[126,0,126,7],[137,0,137,7],[56,0,56,7],[5,0,5,7],[16,0,16,7],[27,0,27,7],[36,0,36,7],[45,0,45,7]]}
["PRINCIPLE 1. Protect human rights, dignity, access to resources"]
["Risk",null,"SRA #","FIP Requirement?","Components, Indicators, and Performance Indicator Scoring Guideposts","Met? Y/N/NA/Not Assessed","Type of Evidence","Evidence/Findings"]
["1.1 Fundamental human rights respected, labor rights protected"]
["1.1.1 Abuse and harassment "]
["Indicator Justification"]
[]
["Medium","1.1.1: Abuse and harrassment ","SRA1.1.1 S1","FIP Requirement","There are reliable and transparent data available on abuse and harassment."]
["Medium","1.1.1: Abuse and harrassment ","SRA1.1.1 S2","FIP Requirement","Migrant status is not used as a threat or tool of coercion."]
["Medium","1.1.1: Abuse and harrassment ","SRA1.1.1 S3","FIP Requirement","There is no corporal punishment, mental or physical coercion, verbal abuse (significantly different than colloquial banter), gender based violence, sexual harassment, or any other form of harassment, including excessive or abusive disciplinary action, and fisheries observers (when present) are able to conduct duties free from assault, harassment,\ninterference, or bribery,"]
["Medium","1.1.1: Abuse and harrassment ","SRA1.1.1 S4","FIP Requirement","Workers/fishers/farmers’ families or community members are not threatened by employers, buyers, labor brokers, or organized crime."]
["Medium","1.1.1: Abuse and harrassment ","SRA1.1.1 S5","FIP Requirement","There is no forced drug use, or labor and/or product is not compensated for with drugs."]
["Low","1.1.1: Abuse and harrassment ","SRA1.1.1 S6","FIP Requirement","There is a written policy publicly disclosed, posted in all languages with special accommodations for illiteracy that prohibits physical abuse, bullying, and sexual harassment, with a disciplinary procedure in place to address cases of harassment, and discipline commensurate to the actions."]
["Low","1.1.1: Abuse and harrassment ","SRA1.1.1 S7","FIP Requirement","Managers and workers/fishers/farmers are aware of and trained on the harassment policy. "]
["Low","1.1.1: Abuse and harrassment ","SRA1.1.1 S8","FIP Requirement","Workers have grievance procedures to report harassment and do not face retaliation for using them."]
["1.1.2a  Human trafficking and forced labor"]
["Indicator Justification"]
[]
["Medium","1.1.2a:  Human trafficking and forced labor","SRA1.1.2a S1","FIP Requirement","There are reliable and transparent data available on human trafficking and forced labor."]
["Medium","1.1.2a:  Human trafficking and forced labor","SRA1.1.2a S2","FIP Requirement","The farm/fishery has a policy prohibiting the use of forced, bonded, indentured, prison labor, slavery or trafficked labor,"]
["Medium","1.1.2a:  Human trafficking and forced labor","SRA1.1.2a S3","FIP Requirement","There are one or more indicators of forced labor in the fishery/ farm (abuse of vulnerability, deception, restriction of movement, isolation, physical and sexual violence, intimidation or threats, retention of identity documents, withholding of wages, debt bondage, abusive living and working conditions, excessive overtime), but the farm/fishery is actively implementing, tracking progress on, and reporting on a remediation plan, \nOR\nThere are no indicators of forced labor in the fishery/farm (abuse of\nvulnerability, deception, restriction of movement, isolation, physical and\nsexual violence, intimidation or threats, retention of identity documents,\nwithholding of wages, debt bondage, abusive living and working\nconditions, excessive overtime), but the farm/fishery does not have a\nrobust system in place to monitor, remediate, and report on both its own\nperformance on recruitment and labor practice, and when applicable, the\nperformance and compliance of labor recruiters."]
["Low","1.1.2a:  Human trafficking and forced labor","SRA1.1.2a S4","FIP Requirement","The farm/fishery has a policy prohibiting the use of forced, bonded, indentured, prison labor, slavery or trafficked labor, and managers and workers/fishers/farmers are aware of and trained on the forced labour policy with access to effective grievance procedures for reporting violations of the policy,"]
["Low","1.1.2a:  Human trafficking and forced labor","SRA1.1.2a S5","FIP Requirement","There are no indicators of forced labor in the fishery/farm (abuse of vulnerability, deception, restriction of movement, isolation, physical and sexual violence, intimidation or threats, retention of identity documents, withholding of wages, debt bondage, abusive living and working conditions, excessive overtime), and the fishery/farm has a robust operational system in place to monitor, remediate, and report on both its own performance on recruitment and labor practice, and when applicable, the performance and compliance of labor recruiters,"]
["Low","1.1.2a:  Human trafficking and forced labor","SRA1.1.2a S6","FIP Requirement","All workers/fishers/farmers, including domestic and foreign migrants, have written contracts in a language they understand, with extra provisions made for illiterate workers, so that their rights and terms of recruitment and employment are clearly understood,"]
["Low","1.1.2a:  Human trafficking and forced labor","SRA1.1.2a S7","FIP Requirement","Workers/fishers/farmers do not pay any recruitment fees (document/visa/passport fees excluded)."]
["Low","1.1.2a:  Human trafficking and forced labor","SRA1.1.2a S8","FIP Requirement","Workers/fishers/farmers are paid at least monthly."]
["1.1.2b Debt bandage in small-scale fisheries"]
["Indicator Justification"]
[]
["Medium","1.1.2b: Debt bandage in small-scale fisheries","SRA1.1.2b S1","FIP Requirement","There are reliable and transparent data available on debt bondage."]
["Medium","1.1.2b: Debt bandage in small-scale fisheries","SRA1.1.2b S2","FIP Requirement","The fisher/farmer is paying off debt to the cooperative, association, buyer, or permit holder (for equipment, permit fees, fuel costs, ice, etc.), but most of their income is kept and a smaller percentage is used to pay back their debts."]
["Medium","1.1.2b: Debt bandage in small-scale fisheries","SRA1.1.2b S3","FIP Requirement","The fisher/farmer is paying off debt to the cooperative, association, buyer, or permit holder (for equipment, permit fees, fuel costs, ice, etc.) and their debt has remained stable or decreased over time proportional to their income (or share of catch)."]
["Medium","1.1.2b: Debt bandage in small-scale fisheries","SRA1.1.2b S4","FIP Requirement","The fisher/farmer is allowed to witness the product being weighed or graded to calculate their income."]
["Medium","1.1.2b: Debt bandage in small-scale fisheries","SRA1.1.2b S5","FIP Requirement","If applicable, interest rates charged to fishers/farmers are transparent and agreed upon in advance with fishers/farmers."]
["Low","1.1.2b: Debt bandage in small-scale fisheries","SRA1.1.2b S6","FIP Requirement","The fisher/farmer is paying off debt to the cooperative, association, buyer, or permit holder (for equipment, permit fees, fuel costs, ice, etc.), but a minimal percentage of their income is used to pay back their debts, and their debt has decreased over time proportional to their income.\nOR\nThe fisher/farmer is NOT paying off debt to the cooperative, association, buyer, or permit holder."]
["1.1.3: Child Labor"]
["Justification:"]
[]
["Medium","1.1.3: Child Labor","SRA1.1.3 S1","FIP Requirement","There are reliable and transparent data available on child labor,"]
["Medium","1.1.3: Child Labor","SRA1.1.3 S2","FIP Requirement","There is no evidence of hazardous child labor,"]
["Medium","1.1.3: Child Labor","SRA1.1.3 S3","FIP Requirement","Children below the legal age of employment are not employed as waged workers, "]
["Medium","1.1.3: Child Labor","SRA1.1.3 S4","FIP Requirement","Children below the legal age of employment work alongside family members only if this does not interfere with schooling, and on tasks which do not harm their health, safety or morals, and do not work at night,"]
["Medium","1.1.3: Child Labor","SRA1.1.3 S5","FIP Requirement","There is no evidence of hazardous child labor, children below the legal age of employment are not paid as waged workers, nor does the work interfere with their schooling or pose risk to their health and safety, BUT the farm or fishery does not have a child labor policy that ensures the best interests of the child and that the child does not end up in a worse form of employment."]
["Low","1.1.3: Child Labor","SRA1.1.3 S6","FIP Requirement","There is no evidence of hazardous child labor, children below the legal age of employment are not paid as waged workers, nor does the work alongside family members interfere with their schooling or pose risk to their health and safety, and the farm or fishery has a child labor policy that ensures the best interests of the child and that the child does not end up in a worse form of employment."]
["1.1.4: Freedom of Association and Collective Bargaining"]
["Justification:"]
[]
["Medium","1.1.4: Freedom of Association and Collective Bargaining","SRA 1.1.4 S1","FIP Requirement","There are reliable and transparent data available on freedom of association and collective bargaining,"]
["Medium","1.1.4: Freedom of Association and Collective Bargaining","SRA 1.1.4 S2","FIP Requirement","Workers/fishers/farmers are free to form worker organizations, including trade unions, to advocate for and protect their rights, and have the right to decide their own structure, policies, programs, priorities, etc. without employer interference."]
["Medium","1.1.4: Freedom of Association and Collective Bargaining","SRA 1.1.4 S3","FIP Requirement","There are national laws protecting collective workers’ rights (including cooperatives) which are upheld and respected, or the country restricts trade union rights but the company/fishery/farm has provided a way for workers/fishers/farmers to organize and express grievances, "]
["Medium","1.1.4: Freedom of Association and Collective Bargaining","SRA 1.1.4 S4","FIP Requirement","Human rights defenders are not actively suppressed and there is no recent record of litigation by employers against human rights defenders,"]
["Medium","1.1.4: Freedom of Association and Collective Bargaining","SRA 1.1.4 S5","FIP Requirement","There is no discrimination against workers/fishers/farmers who are members or leaders of organizations, unions or cooperatives, and workers/fishers/farmers are not dismissed for exercising their right to strike."]
["Low","1.1.4: Freedom of Association and Collective Bargaining","SRA1.1.4 S6","FIP Requirement","The employer or association has a written policy or by-laws (shared with workers/fishers/farmers in relevant languages and with provisions for illiteracy) that they respect the rights of workers/fishers/farmers to Freedom of Association and Collective Bargaining,"]
["Low","1.1.4: Freedom of Association and Collective Bargaining","SRA1.1.4 S7","FIP Requirement","Workers/fishers/farmers are trained by workers’ organizations on their rights to organize and bargain collectively,"]
["Low","1.1.4: Freedom of Association and Collective Bargaining","SRA1.1.4 S8","FIP Requirement","Women participate in unions or cooperatives commensurate with their representation in the workforce."]
["1.1.5: Earnings and Benefits"]
["Justification:"]
[]
["Medium","1.1.5: Earnings and Benefits","SRA1.1.5 S1","FIP Requirement","There are reliable and transparent data available on earnings and benefits,"]
["Medium","1.1.5: Earnings and Benefits","SRA1.1.5 S2","FIP Requirement","Minimum legal requirements for income and benefits are properly defined in domestic labor law,"]
["Medium","1.1.5: Earnings and Benefits","SRA1.1.5 S3","FIP Requirement","Domestic law may not recognize equal remuneration for work of equal value for men and women, however, wages paid to workers/fishers/farmers do reflect equal remuneration,"]
["Medium","1.1.5: Earnings and Benefits","SRA1.1.5 S4","FIP Requirement","Wage levels and benefits meet the minimum legal requirements according to domestic labor laws of workplace, farm, or country of flagged vessel,"]
["Medium","1.1.5: Earnings and Benefits","SRA1.1.5 S5","FIP Requirement","Overtime wages are paid in accordance with minimum legal requirements, based on domestic labor laws of workplace, farm, or country of flagged vessel,"]
["Medium","1.1.5: Earnings and Benefits","SRA1.1.5 S6","FIP Requirement","Wages paid to workers/fishers/farmers are what was promised at the time of employment, are not withheld as a form of discipline, do not contain illegal deductions, are paid on time or directly to the worker/fisher/farmer, and workers/fishers/farmers do not go longer than one month without being paid,"]
["Medium","1.1.5: Earnings and Benefits","SRA1.1.5 S7","FIP Requirement","Employers legally contract employees, "]
["Medium","1.1.5: Earnings and Benefits","SRA1.1.5 S8","FIP Requirement","Workers/fishers/farmers are aware of how their earnings or deductions are calculated and their rights to benefits, are allowed to witness procedures used to determine earnings (weighing, grading), and only sign contracts they understand with provisions for different languages or illiteracy,"]
["Medium","1.1.5: Earnings and Benefits","SRA1.1.5 S9","FIP Requirement","Workers/fishers/farmers receive wage slips with deductions itemized or written receipts."]
["Low","1.1.5: Earnings and Benefits","SRA1.1.5 S10","FIP Requirement","Wages or earnings are higher than minimum legal wages or meet living wage levels (includes being able to provide for family, save, or invest), and benefits are provided beyond legal minimums,"]
["Low","1.1.5: Earnings and Benefits","SRA1.1.5 S11","FIP Requirement","Both domestic law and practices and policies of the fishery/farm uphold the principles of equal remuneration for men and women,"]
["Low","1.1.5: Earnings and Benefits","SRA1.1.5 S12","FIP Requirement","The employer and workers discuss how they can improve wages and productivity in mutually beneficial ways,"]
["Low","1.1.5: Earnings and Benefits","SRA1.1.5 S13","FIP Requirement","There are written contracts between employer and employees in a language employees understand with provisions for illiterate workers. "]
["1.1.6: Adequate rest"]
["Justification:"]
[]
["Medium","1.1.6: Adequate rest","SRA1.1.6 S1","FIP Requirement","There are reliable and transparent data available on workers/fishers/farmers’ hours,"]
["Medium","1.1.6: Adequate rest","SRA1.1.6 S2","FIP Requirement","There is a mechanism in place for workers/fishers/farmers to record hours worked,"]
["Medium","1.1.6: Adequate rest","SRA1.1.6 S3","FIP Requirement","Working hours meet the domestic legal minimum requirements, and overtime hours are paid at a premium as required by law,"]
["Medium","1.1.6: Adequate rest","SRA1.1.6 S4","FIP Requirement","Workers have at least 10 hours of rest in a 24 hour period and at least 77 hours in a 7 day period,"]
["Medium","1.1.6: Adequate rest","SRA1.1.6 S5","FIP Requirement","Overtime is voluntary."]
["Low","1.1.6: Adequate rest","SRA1.1.6 S6","FIP Requirement","There is an independent, third party oversight mechanism for verification of working hours,"]
["Low","1.1.6: Adequate rest","SRA1.1.6 S7","FIP Requirement","Onshore workers do not work more than 48 hours/week even if the law permits more,"]
["Low","1.1.6: Adequate rest","SRA1.1.6 S8","FIP Requirement","Onshore workers do not work more than 6 days/week,"]
["Low","1.1.6: Adequate rest","SRA1.1.6 S9","FIP Requirement","The workplace/farm/fishery has systems in place to anticipate peak production needs and seasonal variation to ensure that excessive overtime is not required,  "]
["Low","1.1.6: Adequate rest","SRA1.1.6 S10","FIP Requirement","The workplace/fishery/farm has paid pre- and post-natal maternity/paternity leave with adequate compensation."]
["1.1.7a: Access to basic services for worker housing/live-aboard vessels"]
["Justification:"]
[]
["Medium","1.1.7a: Access to basic services for worker housing/live-aboard vessels","SRA1.1.7a S1","FIP Requirement","There are reliable and transparent data available on access to basic services,"]
["Medium","1.1.7a: Access to basic services for worker housing/live-aboard vessels","SRA1.1.7a S2","FIP Requirement","Housing and sleeping quarters have adequate fire prevention and air ventilation, meet legal requirements, and meet reasonable levels of safety, decency, hygiene, and comfort,"]
["Medium",null,"SRA1.1.7a S3","FIP Requirement","When present, fisheries observers are provided adequate accommodation appropriate to the size of the monitored entity and equivalent to that of the officers of the monitored entity,"]
["Medium","1.1.7a: Access to basic services for worker housing/live-aboard vessels","SRA1.1.7a S4","FIP Requirement","Sanitary facilities (appropriate to vessel size) with adequate privacy are provided,"]
["Medium","1.1.7a: Access to basic services for worker housing/live-aboard vessels","SRA1.1.7a S5","FIP Requirement","Potable water is accessible to workers,"]
["Medium","1.1.7a: Access to basic services for worker housing/live-aboard vessels","SRA1.1.7a S6","FIP Requirement","Workers/fishers living on site or on board have access to adequate and sanitary food at fair prices."]
["Low","1.1.7a: Access to basic services for worker housing/live-aboard vessels","SRA1.1.7a S7","FIP Requirement","There are separate sanitary facilities for men and women, or sanitary facilities can be locked from the inside, "]
["Low","1.1.7a: Access to basic services for worker housing/live-aboard vessels","SRA1.1.7a S8","FIP Requirement","There are separate sleeping quarters for men and women, or if there is one sleeping space, men and women have separate bunks, or share same bunk during different shifts,"]
["Low","1.1.7a: Access to basic services for worker housing/live-aboard vessels","SRA1.1.7a S9","FIP Requirement","Sleeping quarters or sanitation facilities cannot be locked from the outside (restriction of movement is prevented),"]
["Low","1.1.7a: Access to basic services for worker housing/live-aboard vessels","SRA1.1.7a S10","FIP Requirement","Workers’/fishers’ representatives and management meet regularly to discuss vessel or housing improvements,"]
["Low","1.1.7a: Access to basic services for worker housing/live-aboard vessels","SRA1.1.7a S11","FIP Requirement","The workplace/fishery/farm provides childcare."]
["1.1.7b: Access to basic services (Small-scale fishing communities)"]
["Justification:"]
["N/A"]
["Medium","1.1.7b: Access to basic services (Small-scale fishing communities)","SRA1.1.7b S1",null,"There are reliable and transparent data available on access to basic services,"]
["Medium","1.1.7b: Access to basic services (Small-scale fishing communities)","SRA1.1.7b S2",null,"There is access to potable water in the community,"]
["Medium","1.1.7b: Access to basic services (Small-scale fishing communities)","SRA1.1.7b S3",null,"There is access to electricity intermittently,"]
["Medium","1.1.7b: Access to basic services (Small-scale fishing communities)","SRA1.1.7b S4",null,"There is access to sewage disposal (i.e. sewage containers),"]
["Medium","1.1.7b: Access to basic services (Small-scale fishing communities)","SRA1.1.7b S5",null,"There is access to waste disposal (i.e. community dump)."]
["Low","1.1.7b: Access to basic services (Small-scale fishing communities)","SRA1.1.7b S6",null,"There is access to potable water in each household, "]
["Low","1.1.7b: Access to basic services (Small-scale fishing communities)","SRA1.1.7b S7",null,"There is continuous access to electricity,"]
["Low","1.1.7b: Access to basic services (Small-scale fishing communities)","SRA1.1.7b S8",null,"There is access to sewage treatment (i.e. community treatment systems)"]
["Low","1.1.7b: Access to basic services (Small-scale fishing communities)","SRA1.1.7b S9",null,"There is access to waste management (i.e. garbage collection and sorting of recycled materials)."]
["1.1.8: Occupational safety"]
["Justification:"]
[]
["Medium","1.1.8: Occupational safety","SRA1.1.8 S1","FIP Requirement","There are reliable and transparent data available on occupational safety,"]
["Medium",null,"SRA1.1.8 S2","FIP Requirement","On large vessels, making long trips, vessels carry a crew list and provide a copy to authorized persons ashore at the time of vessel departure [long trips defined as 3 days],"]
["Medium","1.1.8: Occupational safety","SRA1.1.8 S3","FIP Requirement","Workers/fishers/farmers have access to communication equipment, or there is a radio on board for vessels over 24 meters,"]
["Medium","1.1.8: Occupational safety","SRA1.1.8 S4","FIP Requirement","Adequate personal protective equipment (PPE) (i.e. lifejackets) is provided on board or in the workplace/farm at no cost (unless self-employed),"]
["Medium","1.1.8: Occupational safety","SRA1.1.8 S5","FIP Requirement","Workers/fishers/farmers and managers are trained in health and safety procedures and on proper use of PPE and safe operation of any equipment they use (unless self-employed),"]
["Medium","1.1.8: Occupational safety","SRA1.1.8 S6","FIP Requirement","Vessel/farm/workplace complies with local/national safety and health regulations."]
["Low","1.1.8: Occupational safety","SRA1.1.8 S7","FIP Requirement","On small vessels (<24 meters), there is a working radio on board,"]
["Low","1.1.8: Occupational safety","SRA1.1.8 S8","FIP Requirement","Workers/fishers/farmers and managers are trained in health and safety procedures and on proper use of PPE and safe operation of any equipment they use,"]
["Low","1.1.8: Occupational safety","SRA1.1.8 S9","FIP Requirement","Workplace risks and risk areas are identified in relevant languages with provisions for illiteracy, and workplace accidents are recorded,"]
["Low","1.1.8: Occupational safety","SRA1.1.8 S10","FIP Requirement","Workplace/fishery/farm has a written health and safety policy, properly implemented, and workers/fishers/farmers are engaged in reviewing and implementing policy,"]
["Low","1.1.8: Occupational safety","SRA1.1.8 S11","FIP Requirement","Workplace/fishery/farm has a structure or mechanism in place (i.e. occupational health and safety committee), with formal channels of communications established, to discuss and implement protection of workplace health and safety,"]
["Low","1.1.8: Occupational safety","SRA1.1.8 S12","FIP Requirement","There are special protections for young, pregnant, or other vulnerable workers/fishers/farmers."]
["1.1.9: Medical response"]
["Justification:"]
[]
["Medium","1.1.9: Medical response","SRA1.1.9 S1","FIP Requirement","There are reliable and transparent data available on medical response,"]
["Medium","1.1.9: Medical response","SRA1.1.9 S2","FIP Requirement","Adequate medical supplies are available (i.e. there is a first aid kit),"]
["Medium","1.1.9: Medical response","SRA1.1.9 S3","FIP Requirement","In factories, farms, or large vessels, there is a trained first aid responder,"]
["Medium","1.1.9: Medical response","SRA1.1.9 S4","FIP Requirement","On large vessels, making long trips, fishers have a valid medical certificate attesting to their fitness to work,"]
["Medium","1.1.9: Medical response","SRA1.1.9 S5","FIP Requirement","Workers are provided with medical care for workplace injuries and are repatriated if necessary at employer’s expense."]
["Low","1.1.9: Medical response","SRA1.1.9 S6","FIP Requirement","Injuries sustained in the course of work are subject to worker’s compensation, lost time pay, and payment of medical expenses, if not by law, then by employer,"]
["Low","1.1.9: Medical response","SRA1.1.9 S7","FIP Requirement","Workers/fishers/farmers are trained in emergency response and first aid. "]
["1.2 Rights and access to resources are respected and fairly allocated and respectful of collective and indigenous rights"]
["1.2.1: Customary use rights"]
["Justification:"]
[]
["Medium","1.2.1: Customary use rights","SRA1.2.1 S1","FIP Requirement","There are reliable and transparent data available on customary use rights,"]
["Medium","1.2.1: Customary use rights","SRA1.2.1 S2","FIP Requirement","Customary use rights have been mapped out using a participatory stakeholder process,"]
["Medium","1.2.1: Customary use rights","SRA1.2.1 S3","FIP Requirement","The fishery or farm observes the legal and customary rights of local people,"]
["Medium","1.2.1: Customary use rights","SRA1.2.1 S4","FIP Requirement","Fishers are not denied or revoked of fishing rights due to discrimination (e.g. gender, ethnicity, religion, political affiliation) by authorities and/or other communities or entities,"]
["Medium","1.2.1: Customary use rights","SRA1.2.1 S5","FIP Requirement","The farm or fishery is not designated in an area legitimately claimed by communities without their documented Free, Prior, and Informed Consent,"]
["Medium","1.2.1: Customary use rights","SRA1.2.1 S6","FIP Requirement","The farm or fishery understands its impact on customary access to resources, and does not negatively impact adjacent communities, land, and/or water, or restrict access to vital community resources without community approval."]
["Low","1.2.1: Customary use rights","SRA1.2.1 S7","FIP Requirement","There is an active process to establish a protocol agreement, or there is a protocol agreement in place, with indigenous communities, or communities with customary use rights, using Free, Prior, and Informed Consent,"]
["Low","1.2.1: Customary use rights","SRA1.2.1 S8","FIP Requirement","Customary resource users are aware of their rights, and are protected under law and can seek recourse within the legal system,"]
["Low","1.2.1: Customary use rights","SRA1.2.1 S9","FIP Requirement","The fishery or farm is actively mitigating any impacts or conflicts on access to resources for customary users, "]
["Low","1.2.1: Customary use rights","SRA1.2.1 S10","FIP Requirement","Communities or people with claims to the resource are strongly involved in management of the resource, and traditional practices and knowledge are incorporated into resource management,"]
["Low","1.2.1: Customary use rights","SRA1.2.1 S11","FIP Requirement","Special attention is paid to ensure women and disadvantaged groups are included in consultation."]
["1.2.2: Corporate responsibility and transparency"]
["Justification:"]
[]
["Medium","1.2.2: Corporate responsibility and transparency","1.2.2 S1",null,"There are reliable and transparent data available on corporate responsibility and transparency,"]
["Medium","1.2.2: Corporate responsibility and transparency","1.2.2 S2",null,"There are documents demonstrating compliance with all tax laws,"]
["Medium","1.2.2: Corporate responsibility and transparency","1.2.2 S3",null,"There is no evidence that owners, managers, fishers or farmers pay bribes to public servants to gain access to resources or to avoid compliance with local regulations."]
["Medium","1.2.2: Corporate responsibility and transparency","1.2.2 S4",null,"The fishery/farm has a human rights policy in place (appropriate to their size and circumstances to meet their responsibility to respect human rights), and can demonstrate evidentiary compliance with their policy."]
["Low","1.2.2: Corporate responsibility and transparency","1.2.2 S5",null,"Farm or fishery publicly discloses their social, economic, and environmental performance,"]
["Low","1.2.2: Corporate responsibility and transparency","1.2.2 S6",null,"Farm or fishery is engaged in multi-stakeholder, worker-centered initiatives aiming to improve social performance across the industry,"]
["Low","1.2.2: Corporate responsibility and transparency","1.2.2 S7",null,"Financial accounts are regularly reviewed by independent third-party auditors,"]
["Low","1.2.2: Corporate responsibility and transparency","1.2.2 S8",null,"Farm or fishery has published social responsibility and environmental policies."]
["Low","1.2.2: Corporate responsibility and transparency","1.2.2 S9",null,"The human rights policy is communicated and training is provided, in a language or medium understandable to all workers and observers on the fishing vessel and other relevant persons who assume the responsibility or duties for the operation of the fishing vessel or its workers."]

{"sheet":"Principle 2","index":4,"n_rows":41,"n_cols":8,"rows_kept":41,"cut":false,"hidden":false,"merged":[[5,0,5,7],[14,0,14,7],[26,0,26,7],[33,0,33,7]]}
["PRINCIPLE 2. Ensure equality and equitable opportunity to benefit"]
["Risk",null,"SRA #","FIP Requirement?","Components, Indicators, and Performance Indicator Scoring Guideposts","Met? Y/N/NA Not Assessed","Type of Evidence","Evidence/Findings"]
["2.1: Recognition, voice, and respectful engagement for all groups, irrespective of gender, ethnicity, culture, political, or socioeconomic status  "]
["2.1.1 Grievance reporting and access to remedy"]
["Justification:"]
[]
["Medium","2.1.1: Grievance reporting and access to remedy","SRA2.1.1 S1","FIP Requirement","There are reliable and transparent data available on grievance reporting and access to remedy"]
["Medium","2.1.1: Grievance reporting and access to remedy","SRA2.1.1 S2","FIP Requirement","Workers/fishers/farmers that pertain to a business have knowledge of and access to effective, fair, and confidential grievance mechanisms, or if workers/fisher/farmers are part of a cooperative, association, or customary group, they have knowledge and access to effective and fair grievance mechanisms (according to established protocols and by-laws of transparency, democracy, and equal representation),"]
["Medium","2.1.1: Grievance reporting and access to remedy","SRA2.1.1 S3","FIP Requirement","There is no retaliation or prejudice against workers/fishers/farmers who submit grievances, including gender-based prejudice or retaliation. "]
["Low","2.1.1: Grievance reporting and access to remedy","SRA2.1.1 S4","FIP Requirement","Grievance mechanisms are both procedurally and substantively effective at remediation of conflicts and complaints in a time-bound manner with no reoccurring grievances, and these remediation processes (corrective action plans) are publicly disclosed, "]
["Low","2.1.1: Grievance reporting and access to remedy","SRA2.1.1 S5","FIP Requirement","The grievance procedure includes special consideration for vulnerable populations (e.g. migrant workers, women, ethnic minorities),"]
["Low","2.1.1: Grievance reporting and access to remedy","SRA2.1.1 S6","FIP Requirement","Workers/fishers/farmers have access to third party independent organizations or local/customary governance body that can address grievances and ensure effective representation."]
["2.1.2: Stakeholder Participation and Collaborative Management"]
["Justification:"]
[]
["Medium","2.1.2: Stakeholder Participation and Collaborative Management","SRA2.1.2 S1",null,"There are reliable and transparent data available on stakeholder participation and collaborative management,"]
["Medium","2.1.2: Stakeholder Participation and Collaborative Management","SRA2.1.2 S2",null,"There is a mechanism for stakeholder participation or in the fishery/farm management unit,"]
["Medium","2.1.2: Stakeholder Participation and Collaborative Management","SRA2.1.2 S3",null,"All affected and relevant stakeholders are represented and no stakeholder groups are excluded based on status, class, gender, ethnicity, etc.,"]
["Medium","2.1.2: Stakeholder Participation and Collaborative Management","SRA2.1.2 S4",null,"Stakeholder input is considered and integrated into decision-making. "]
["Low","2.1.2: Stakeholder Participation and Collaborative Management","SRA2.1.2 S5",null,"Decisions are publicly communicated, promoted, and transparent,"]
["Low","2.1.2: Stakeholder Participation and Collaborative Management","SRA2.1.2 S6",null,"Decision-making processes have special consideration provided for disadvantaged and vulnerable groups (i.e. migrant workers, women, ethnic minorities), so that decisions are made by affected stakeholders on equal terms, "]
["Low","2.1.2: Stakeholder Participation and Collaborative Management","SRA2.1.2 S7",null,"All affected and relevant stakeholders are free to engage in all aspects of fishery/aquaculture governance including decision-making, monitoring, enforcement, and conflict resolution,"]
["Low","2.1.2: Stakeholder Participation and Collaborative Management","SRA2.1.2 S8",null,"Participation and collaborative management between local stakeholders and government is fostered and reinforced by civil society organizations working to protect the interests of relevant stakeholders."]
["2.2: Equitable opportunities to benefit are ensured to all, through the entire supply chain "]
["2.2.1: Equitable opportunity to benefit"]
["Justification:"]
[]
["Medium","2.2.1: Equitable opportunity to benefit","SRA2.2.1 S1",null,"There are reliable and transparent data available on social equity and equal opportunity to benefit,"]
["Medium","2.2.1: Equitable opportunity to benefit","SRA2.2.1 S2",null,"There is equal access to or opportunity to benefit from the fishery/farm regardless of gender, ethnicity, religion, sexual orientation, class, migrant status, political affiliation, etc.,\nOR\nThere is not equal access to or opportunity to benefit from the fishery/farm, but a strategy or policy to address inequity is in place."]
["Low","2.2.1: Equitable opportunity to benefit","SRA2.2.1 S3",null,"There is evidence of equal access to or opportunity to benefit from the fishery/farm, and marginalized groups are in leadership positions or positions of power,"]
["Low","2.2.1: Equitable opportunity to benefit","SRA2.2.1 S4",null,"Gender transformative policies and research programs are in place (i.e. routine data collection of gender disaggregated data)."]
["2.2.2: Discrimination"]
["Justification:"]
[]
["Medium","2.2.2: Discrimination","SRA2.2.2 S1","FIP Requirement","There are reliable and transparent data available on discrimination in the fishery/farm,"]
["Medium","2.2.2: Discrimination","SRA2.2.2 S2","FIP Requirement","Workers/fishers/farmers receive equal pay for work of equal value,"]
["Medium","2.2.2: Discrimination","SRA2.2.2 S3","FIP Requirement","There is no discrimination in recruitment promotion, access to training, access to permits, remuneration, allocation of work, termination of employment, retirement, ability to join unions or cooperatives, or other activities."]
["Medium","2.2.2: Discrimination","SRA2.2.2 S4","FIP Requirement","There is no discrimination in access to benefits e.g. health care, savings accounts, insurance, etc.,"]
["Medium","2.2.2: Discrimination","SRA2.2.2 S5","FIP Requirement","There is no compulsory pregnancy testing for female workers/fishers/farmers."]
["Low","2.2.2: Discrimination","SRA2.2.2 S6","FIP Requirement","There is a comprehensive and proactive anti-discrimination policy for the fishery or farm. The policy is implemented through procedures and practices, posted in all languages and visible to all workers,"]
["Low","2.2.2: Discrimination","SRA2.2.2 S7","FIP Requirement","Managers and workers/fishers/farmers are aware of and trained on the antidiscrimination policy. "]

{"sheet":"Principle 3","index":5,"n_rows":92,"n_cols":8,"rows_kept":92,"cut":false,"hidden":false,"merged":[[55,0,55,7],[64,0,64,7],[77,0,77,7],[88,0,88,7],[5,0,5,7],[11,0,11,7],[19,0,19,7],[28,0,28,7],[38,0,38,7],[48,0,48,7]]}
["PRINCIPLE 3. Improve food, nutrition, and livelihood security"]
["Risk",null,"SRA #","FIP Requirement?","Components, Indicators, and Performance Indicator Scoring Guideposts","Met? Y/N/NA/Not Assessed","Type of Evidence","Evidence/Findings"]
["3.1 Nutritional and sustenance needs of resource-dependent communities are maintained or improved"]
["3.1.1a Food and nutrition security impacts of industrial fisheries"]
["Justification:"]
[]
["Medium","3.1.1a: Food and nutrition security impacts of industrial fisheries","SRA3.1.1a S1",null,"There are reliable and transparent data available,"]
["Medium","3.1.1a: Food and nutrition security impacts of industrial fisheries","SRA3.1.1a S2",null,"The fishery/farm is operating offshore a marine resource-dependent community or fishing for the same resource (or fish stock) as the local community (either directly as target catch, or indirectly as bycatch), but active measures are being taken to address these impacts,\nOR\nThe majority of the catch landed by the fishery/farm is not retained for local\nconsumption, or the country or community in question is food/nutrition insecure(i.e., based on % undernourished or FIES, respectively), but active measures are being taken to address these impacts."]
["Low","3.1.1a: Food and nutrition security impacts of industrial fisheries","SRA3.1.1a S3",null,"The fishery/farm is not operating offshore a marine resource-dependent community or fishing for the same resource (or fish stock) as the local community (either directly as target catch, or indirectly as bycatch),\nOR\nThe majority of the catch landed by the fishery/farm is retained for local consumption, and the country or community in question is not food/nutrition insecure (i.e., based on % undernourished or FIES, respectively)."]
["3.1.1b Food and nutrition security for small-scale fishing communities"]
["Justification:"]
[]
["Medium","3.1.1b: Food and nutrition security for small-scale fishing communities","SRA3.1.1b S1",null,"There are reliable and transparent data available on food and nutrition security,"]
["Medium","3.1.1b: Food and nutrition security for small-scale fishing communities","SRA3.1.1b S2",null,"The country is food/nutrition secure (i.e. based on % undernourished), or a participatory local food and nutrition security assessment has found low to moderate risk of food/nutrition insecurity,"]
["Medium","3.1.1b: Food and nutrition security for small-scale fishing communities","SRA3.1.1b S3",null,"International or export trade agreements with the fishery/farm have not resulted in food/nutrition insecurity for the workers/fishers/farmers, their families, or community members,\nOR\nA participatory local food and nutrition security assessment (i.e. FIES or MDDI-W) has found food/nutrition insecurity impacts due to the fishery/farm (i.e. lack of access to marine resources for subsistence purposes) but active measures are being taken to address these impacts. "]
["Low","3.1.1b: Food and nutrition security for small-scale fishing communities","SRA3.1.1b S4",null,"There is no food/nutrition insecurity among workers/fishers/farmers and their families, nor among community members adjacent to a fishery/farm (i.e. based on FIES or MDDI-W),\nOR\nWhere food/nutrition insecurity has been found among seafood-dependent communities (i.e. based on FIES or MDDI-W), local data shows improving food/nutrition security factors (i.e. increasing access to marine resources for subsistence purposes)."]
["Low","3.1.1b: Food and nutrition security for small-scale fishing communities","SRA3.1.1b S5",null,"There are programs in place to ensure international or export trade agreements with the fishery/farm do not result in food/nutrition insecurity for the workers/fishers/farmers, their families, or community members,"]
["3.1.2 Healthcare"]
["Justification:"]
[]
["Medium","3.1.2: Healthcare","SRA3.1.2 S1",null,"There are reliable and transparent data available on healthcare,"]
["Medium","3.1.2: Healthcare","SRA3.1.2 S2",null,"The community’s (adjacent to fishery/farm) healthcare needs have been assessed,"]
["Medium","3.1.2: Healthcare","SRA3.1.2 S3",null,"The community’s (adjacent to fishery/farm) healthcare needs are not of concern. "]
["Low","3.1.2: Healthcare","SRA3.1.2 S4",null,"The community’s (adjacent to fishery/farm) healthcare needs have been assessed and there are resources being invested to address any needs uncovered, "]
["Low","3.1.2: Healthcare","SRA3.1.2 S5",null,"Women have adequate access to reproductive healthcare including family planning, pre- and post-natal, and maternal care,"]
["Low","3.1.2: Healthcare","SRA3.1.2 S6",null,"Local data shows improving healthcare. "]
["3.1.3 Education"]
["Justification:"]
[]
["Medium","3.1.3: Education","SRA3.1.3 S1",null,"There are reliable and transparent data available on gender disaggregated education,"]
["Medium","3.1.3: Education","SRA3.1.3 S2",null,"The community’s (adjacent to fishery/farm) education needs have been assessed,"]
["Medium","3.1.3: Education","SRA3.1.3 S3",null,"The community (adjacent to fishery/farm) has adequate literacy (literacy rate among youth aged 15-24 is 90% or more), and schooling rates (less than 10% of primary school-age children are out of school) (see SFP 2016),"]
["Medium","3.1.3: Education","SRA3.1.3 S4",null,"Girls and boys do not have different rates of educational attainment."]
["Low","3.1.3: Education","SRA3.1.3 S5",null,"The community’s educational needs have been assessed and there are resources being invested to address any needs uncovered,"]
["Low","3.1.3: Education","SRA3.1.3 S6",null,"There is universal access to education through a secondary school level, via remote learning where relevant, or access to a technical school, or university."]
["3.2: Livelihood opportunities are secured or improved, including fair access to markets and capabilities to maintain income generation "]
["3.2.1: Benefits to and within community"]
["Justification"]
[]
["Medium","3.2.1: Benefits to and within community","SRA3.2.1 S1",null,"There are reliable and transparent data available on benefits to community generated by the fishery/farm,"]
["Medium","3.2.1: Benefits to and within community","SRA3.2.1 S2",null,"People from within the community hold resource access rights or permits,"]
["Medium","3.2.1: Benefits to and within community","SRA3.2.1 S3",null,"Consideration is paid to hiring a local workforce."]
["Low","3.2.1: Benefits to and within community","SRA3.2.1 S4",null,"The majority of the harvesting workforce is comprised of local residents,"]
["Low","3.2.1: Benefits to and within community","SRA3.2.1 S5",null,"People from within the community hold the majority of resource access rights or permits,"]
["Low","3.2.1: Benefits to and within community","SRA3.2.1 S6",null,"Majority of livelihoods and economic benefits from fishery/farm are distributed and retained locally,"]
["Low","3.2.1: Benefits to and within community","SRA3.2.1 S7",null,"High employment rates of women in local jobs created by fishery/farm."]
["3.2.2: Economic value retention"]
["Justification:"]
[]
["Medium","3.2.2: Economic value retention","SRA3.2.2 S1",null,"There are reliable and transparent data available on profit sharing for the fishery/farm,"]
["Medium","3.2.2: Economic value retention","SRA3.2.2 S2",null,"The ratio of gross value added to turnover is between 47-57%. "]
["Low","3.2.2: Economic value retention","SRA3.2.2 S3",null,"The ratio of gross value added to turnover is above 57%,"]
["Low","3.2.2: Economic value retention","SRA3.2.2 S4",null,"Formalized training is provided to fishers/farmers in how to add value to their product. "]
["3.2.3: Long-term profitability and future workforce"]
["Justification:"]
[]
["Medium","3.2.3: Long-term profitability and future workforce","SRA3.2.3 S1",null,"There are reliable and transparent data available on long-term profitability of the fishery/farm,"]
["Medium","3.2.3: Long-term profitability and future workforce","SRA3.2.3 S2",null,"Long-term average operating profit margin is between 11%-18%,"]
["Medium","3.2.3: Long-term profitability and future workforce","SRA3.2.3 S3",null,"The average age of workers/fishers/farmers is close to the average age in the country, and new workers/fishers/farmers are joining the workforce."]
["Low","3.2.3: Long-term profitability and future workforce","SRA3.2.3 S4",null,"Long-term average operating profit margin is above 18%,"]
["Low","3.2.3: Long-term profitability and future workforce","SRA3.2.3 S5",null,"New workers/fishers/farmers including women are being recruited into the workforce,"]
["Low","3.2.3: Long-term profitability and future workforce","SRA3.2.3 S6",null,"Women are increasingly taking leadership roles in the supply chain and fishing/farming communities."]
["3.2.4: Economic flexibility and autonomy"]
["Justification:"]
[]
["Medium","3.2.4: Economic flexibility and autonomy","SRA3.2.4 S1",null,"There are reliable and transparent data available on economic flexibility and autonomy for the fishery/farm,"]
["Medium","3.2.4: Economic flexibility and autonomy","SRA3.2.4 S2",null,"If applicable, interest rates charged to fishers/farmers are transparent and agreed upon in advance with fishers/farmers,"]
["Medium","3.2.4: Economic flexibility and autonomy","SRA3.2.4 S3",null,"There is more than one local fish buyer, and harvesters are free to sell to whomever they wish without retribution, "]
["Medium","3.2.4: Economic flexibility and autonomy","SRA3.2.4 S4",null,"There is no price collusion among local buyers,"]
["Medium","3.2.4: Economic flexibility and autonomy","SRA3.2.4 S5",null,"Fishers/farmers know the quality expected of the product, how the price is calculated, and when they will be paid via verbal contract with buyers."]
["Low","3.2.4: Economic flexibility and autonomy","SRA3.2.4 S6",null," If applicable, fishers/farmers can access loans from at least two types of lenders at interest rates not exceeding government rates or lender’s borrowing rate,"]
["Low","3.2.4: Economic flexibility and autonomy","SRA3.2.4 S7",null,"Fishers/farmers are organized into groups to better negotiate with buyers and may be price setters,"]
["Low","3.2.4: Economic flexibility and autonomy","SRA3.2.4 S8",null,"Fishers/farmers know the quality expected of the product, how the price is calculated, and when they will be paid via written contract with buyers (in a language understood or with provisions for illiteracy),"]
["Low","3.2.4: Economic flexibility and autonomy","SRA3.2.4 S9",null,"When applicable, buyers support fishers/farmers through sharing costs of certification and training,"]
["Low","3.2.4: Economic flexibility and autonomy","SRA3.2.4 S10",null,"Fishers/farmers have access to competitive credit markets or are recipients of investment opportunities."]
["3.2.5: Livelihood security "]
["Justification"]
[]
["Medium","3.2.5: Livelihood security ","SRA3.2.5 S1",null,"There are reliable and transparent data available on livelihood security for the fishery/farm,"]
["Medium","3.2.5: Livelihood security ","SRA3.2.5 S2",null,"Fishers/farmers/workers work under a license(s) or are recognized as part of the legal work force,"]
["Medium","3.2.5: Livelihood security ","SRA3.2.5 S3",null,"Fishers/farmers/workers have harvesting access (formally or informally) to more than one species/species group,"]
["Medium","3.2.5: Livelihood security ","SRA3.2.5 S4",null,"Fishers/farmers/workers have access to fishing/farming gear needed to fulfill livelihood responsibilities (ice, engines, boats, gear, fuel, bait etc.),"]
["Medium","3.2.5: Livelihood security ","SRA3.2.5 S5",null,"Fishers/farmers/workers, or someone in their household, have alternative livelihoods outside of the fishery or farm."]
["Low","3.2.5: Livelihood security ","SRA3.2.5 S6",null,"Male and female fishers/farmers/workers have formal (legal) access to a portfolio of species/species groups and gear types,"]
["Low","3.2.5: Livelihood security ","SRA3.2.5 S7",null,"Male and female fishers/farmers/workers have ownership over the fishing/farming gear needed to fulfill livelihood responsibilities (ice, engines, boats, gear, fuel, bait etc.),"]
["Low","3.2.5: Livelihood security ","SRA3.2.5 S8",null,"Male and female fishers/farmers/workers have access to professional development training or capacity building either inside the fishery/farm, or outside (in alternative livelihoods)."]
["3.2.6: Economic fuel efficiency"]
["Justification:"]
[]
["Medium","3.2.6: Economic fuel efficiency","SRA3.2.6 S1",null,"There are reliable and transparent data available on fuel efficiency."]
["Medium","3.2.6: Economic fuel efficiency","SRA3.2.6 S2",null,"Ratio of true vessel fuel costs (including subsidy) / fish sales is between 13%-18%."]
["Low","3.2.6: Economic fuel efficiency","SRA3.2.6 S3",null,"Ratio of true vessel fuel costs (including subsidy) / fish sales is under 13%."]

{"sheet":"Summary & Results","index":6,"n_rows":130,"n_cols":23,"rows_kept":130,"cut":false,"hidden":false,"merged":[[52,11,53,13],[54,11,55,13],[56,11,57,13],[58,11,61,13],[62,11,67,13],[54,9,57,10],[58,9,67,10],[64,14,64,19],[65,14,65,19],[66,14,66,19],[67,14,67,19],[58,14,58,19],[59,14,59,19],[60,14,60,19],[61,14,61,19],[62,14,62,19],[63,14,63,19],[57,14,57,19],[52,14,52,19],[53,14,53,19],[54,14,54,19],[55,14,55,19],[56,14,56,19],[50,14,50,19],[41,14,41,19],[40,11,40,13],[40,9,40,10],[40,14,40,19],[41,11,51,13],[42,14,42,19],[43,14,43,19],[44,14,44,19],[51,14,51,19],[45,14,45,19],[46,14,46,19],[47,14,47,19],[48,14,48,19],[49,14,49,19],[41,9,53,10]]}
[]
[null,null,null,null,null,null,null,null,"Unit of Assessment Information Summary"]
[]
[]
[]
[]
[]
[]
[]
[]
[]
[]
[]
[]
[]
[]
[]
[null,null,null,null,null,null,null,null,null,"Male",{"$f":"'Assessment Information'!D82+'Assessment Information'!D84+'Assessment Information'!D113+'Assessment Information'!D115+'Assessment Information'!D141+'Assessment Information'!D143","v":0},null,null,"Fishing",{"$f":"SUM('Assessment Information'!D82:D85)","v":0},null,null,"Permanent",{"$f":"'Assessment Information'!D82+'Assessment Information'!D83+'Assessment Information'!D113+'Assessment Information'!D114+'Assessment Information'!D141+'Assessment Information'!D142","v":0},null,null,"Local",{"$f":"SUM(K18:K19)-W19","v":0}]
[null,null,null,null,null,null,null,null,null,"Female",{"$f":"'Assessment Information'!D83+'Assessment Information'!D85+'Assessment Information'!D114+'Assessment Information'!D116+'Assessment Information'!D142+'Assessment Information'!D144","v":0},null,null,"Aquaculture",{"$f":"SUM('Assessment Information'!D113:D116)","v":0},null,null,"Seasonal",{"$f":"'Assessment Information'!D84+'Assessment Information'!D85+'Assessment Information'!D115+'Assessment Information'!D116+'Assessment Information'!D143+'Assessment Information'!D144","v":0},null,null,"Migrant",{"$f":"SUM('Assessment Information'!G88:G97,'Assessment Information'!G119:G128,'Assessment Information'!G147:G156)","v":0}]
[null,null,null,null,null,null,null,null,null,null,null,null,null,"Processing",{"$f":"SUM('Assessment Information'!D141:D144)","v":0}]
[]
[]
[null,null,null,null,null,null,null,null,"Risk Results"]
[]
[]
[]
[]
[]
[]
[]
[]
[]
[]
[]
["Results","TOTAL","SCORE",null,null,null,null,null,null,null,"Score",null,null,null,"Score",null,null,null,"Score"]
["Principle 1",{"$f":"(3*13)-(COUNTIF(A42:A52,0)*3)-(COUNTIF(A53:A54,0)*3)-(COUNTIF(A42:A52,\"\")*3)-(COUNTIF(A53:A54,\"\")*3)","v":39},{"$f":"SUM(A42:A52,A53:A54)","v":39},null,null,null,null,null,null,null,{"$f":"IFERROR(C36/B36,\"No Score\")","v":1},null,null,null,{"$f":"IFERROR(C37/B37,\"No Score\")","v":1},null,null,null,{"$f":"IFERROR(C38/B38,\"No Score\")","v":1}]
["Principle 2",{"$f":"(3*4)-(COUNTIF(A55:A56,0)*3)-(COUNTIF(A57:A58,0)*3)-(COUNTIF(A55:A56,\"\")*3)-(COUNTIF(A57:A58,\"\")*3)","v":12},{"$f":"SUM(A55:A56,A57:A58)","v":12},null,null,null,null,null,null,null,{"$f":"IF(K36=\"No Score\",\"\",IF(AND(K36<=0.6,K36>0),\"HIGH\",IF(K36>0.8,\"LOW\",IF(K36=0,\"Not Assessed\",\"MEDIUM\"))))","v":"LOW"},null,null,null,{"$f":"IF(O36=\"No Score\",\"\",IF(AND(O36<=0.6,O36>0),\"HIGH\",IF(O36>0.8,\"LOW\",IF(O36=0,\"Not Assessed\",\"MEDIUM\"))))","v":"LOW"},null,null,null,{"$f":"IF(S36=\"No Score\",\"\",IF(AND(S36<=0.6,S36>0),\"HIGH\",IF(S36>0.8,\"LOW\",IF(S36=0,\"Not Assessed\",\"MEDIUM\"))))","v":"LOW"}]
["Principle 3",{"$f":"(3*10)-(COUNTIF(A59:A62,0)*3)-(COUNTIF(A63:A68,0)*3)-(COUNTIF(A59:A62,\"\")*3)-(COUNTIF(A63:A68,\"\")*3)","v":30},{"$f":"SUM(A59:A68)","v":30}]
[]
[]
["Score","NA","Medium Ns","Low Ns","Not Assessed","Medium Ys","Low Ys",null,null,"PRINCIPLE",null,"COMPONENT",null,null,"PERFORMANCE INDICATOR",null,null,null,null,null,"RISK"]
[{"$f":"IF(U42=\"LOW\",3,IF(U42=\"MEDIUM\",2,IF(U42=\"HIGH\",1,\"\")))","v":3},{"$f":"COUNTIFS('Principle 1'!$B$7:$B$160,'Summary & Results'!O42,'Principle 1'!$F$7:$F$160,\"NA\")","v":0},{"$f":"COUNTIFS('Principle 1'!$B$7:$B$160,'Summary & Results'!O42,'Principle 1'!$A$7:$A$160,\"Medium\",'Principle 1'!$F$7:$F$160,\"N\")","v":0},{"$f":"COUNTIFS('Principle 1'!$B$7:$B$160,'Summary & Results'!O42,'Principle 1'!$A$7:$A$160,\"Low\",'Principle 1'!$F$7:$F$160,\"N\")","v":0},{"$f":"COUNTIFS('Principle 1'!$B$7:$B$160,'Summary & Results'!O42,'Principle 1'!$F$7:$F$160,\"Not Assessed\")","v":0},{"$f":"COUNTIFS('Principle 1'!$B$7:$B$160,'Summary & Results'!O42,'Principle 1'!$A$7:$A$160,\"Medium\",'Principle 1'!$F$7:$F$160,\"Y\")","v":0},{"$f":"COUNTIFS('Principle 1'!$B$7:$B$160,'Summary & Results'!O42,'Principle 1'!$A$7:$A$160,\"Low\",'Principle 1'!$F$7:$F$160,\"Y\")","v":0},null,null,"1\nProtect human rights, dignity, and access to resources",null,"1.1 \nHuman and labor rights",null,null,"1.1.1: Abuse and harrassment ",null,null,null,null,null,{"$f":"IF(AND(B42>=1,SUM(C42:G42)=0),\"NA\",IF(AND(E42>=1,SUM(B42:D42)=0),\"Not Assessed\",IF(SUM(C42:D42)=0,\"LOW\",IF(C42>=1,\"HIGH\",\"MEDIUM\"))))","v":"LOW"}]
[3,{"$f":"COUNTIFS('Principle 1'!$B$7:$B$160,'Summary & Results'!O43,'Principle 1'!$F$7:$F$160,\"NA\")","v":0},{"$f":"COUNTIFS('Principle 1'!$B$7:$B$160,'Summary & Results'!O43,'Principle 1'!$A$7:$A$160,\"Medium\",'Principle 1'!$F$7:$F$160,\"N\")","v":0},{"$f":"COUNTIFS('Principle 1'!$B$7:$B$160,'Summary & Results'!O43,'Principle 1'!$A$7:$A$160,\"Low\",'Principle 1'!$F$7:$F$160,\"N\")","v":0},{"$f":"COUNTIFS('Principle 1'!$B$7:$B$160,'Summary & Results'!O43,'Principle 1'!$F$7:$F$160,\"Not Assessed\")","v":0},{"$f":"COUNTIFS('Principle 1'!$B$7:$B$160,'Summary & Results'!O43,'Principle 1'!$A$7:$A$160,\"Medium\",'Principle 1'!$F$7:$F$160,\"Y\")","v":0},{"$f":"COUNTIFS('Principle 1'!$B$7:$B$160,'Summary & Results'!O43,'Principle 1'!$A$7:$A$160,\"Low\",'Principle 1'!$F$7:$F$160,\"Y\")","v":0},null,null,null,null,null,null,null,"1.1.2a:  Human trafficking and forced labor",null,null,null,null,null,{"$f":"IF(AND(B43>=1,SUM(C43:G43)=0),\"NA\",IF(AND(E43>=1,SUM(B43:D43)=0),\"Not Assessed\",IF(SUM(C43:D43)=0,\"LOW\",IF(C43>=1,\"HIGH\",\"MEDIUM\"))))","v":"LOW"}]
[3,{"$f":"COUNTIFS('Principle 1'!$B$7:$B$160,'Summary & Results'!O44,'Principle 1'!$F$7:$F$160,\"NA\")","v":0},{"$f":"COUNTIFS('Principle 1'!$B$7:$B$160,'Summary & Results'!O44,'Principle 1'!$A$7:$A$160,\"Medium\",'Principle 1'!$F$7:$F$160,\"N\")","v":0},{"$f":"COUNTIFS('Principle 1'!$B$7:$B$160,'Summary & Results'!O44,'Principle 1'!$A$7:$A$160,\"Low\",'Principle 1'!$F$7:$F$160,\"N\")","v":0},{"$f":"COUNTIFS('Principle 1'!$B$7:$B$160,'Summary & Results'!O44,'Principle 1'!$F$7:$F$160,\"Not Assessed\")","v":0},{"$f":"COUNTIFS('Principle 1'!$B$7:$B$160,'Summary & Results'!O44,'Principle 1'!$A$7:$A$160,\"Medium\",'Principle 1'!$F$7:$F$160,\"Y\")","v":0},{"$f":"COUNTIFS('Principle 1'!$B$7:$B$160,'Summary & Results'!O44,'Principle 1'!$A$7:$A$160,\"Low\",'Principle 1'!$F$7:$F$160,\"Y\")","v":0},null,null,null,null,null,null,null,"1.1.2b: Debt bandage in small-scale fisheries",null,null,null,null,null,"LOW"]
[3,{"$f":"COUNTIFS('Principle 1'!$B$7:$B$160,'Summary & Results'!O45,'Principle 1'!$F$7:$F$160,\"NA\")","v":0},{"$f":"COUNTIFS('Principle 1'!$B$7:$B$160,'Summary & Results'!O45,'Principle 1'!$A$7:$A$160,\"Medium\",'Principle 1'!$F$7:$F$160,\"N\")","v":0},{"$f":"COUNTIFS('Principle 1'!$B$7:$B$160,'Summary & Results'!O45,'Principle 1'!$A$7:$A$160,\"Low\",'Principle 1'!$F$7:$F$160,\"N\")","v":0},{"$f":"COUNTIFS('Principle 1'!$B$7:$B$160,'Summary & Results'!O45,'Principle 1'!$F$7:$F$160,\"Not Assessed\")","v":0},{"$f":"COUNTIFS('Principle 1'!$B$7:$B$160,'Summary & Results'!O45,'Principle 1'!$A$7:$A$160,\"Medium\",'Principle 1'!$F$7:$F$160,\"Y\")","v":0},{"$f":"COUNTIFS('Principle 1'!$B$7:$B$160,'Summary & Results'!O45,'Principle 1'!$A$7:$A$160,\"Low\",'Principle 1'!$F$7:$F$160,\"Y\")","v":0},null,null,null,null,null,null,null,"1.1.3: Child Labor",null,null,null,null,null,"LOW"]
[3,{"$f":"COUNTIFS('Principle 1'!$B$7:$B$160,'Summary & Results'!O46,'Principle 1'!$F$7:$F$160,\"NA\")","v":0},{"$f":"COUNTIFS('Principle 1'!$B$7:$B$160,'Summary & Results'!O46,'Principle 1'!$A$7:$A$160,\"Medium\",'Principle 1'!$F$7:$F$160,\"N\")","v":0},{"$f":"COUNTIFS('Principle 1'!$B$7:$B$160,'Summary & Results'!O46,'Principle 1'!$A$7:$A$160,\"Low\",'Principle 1'!$F$7:$F$160,\"N\")","v":0},{"$f":"COUNTIFS('Principle 1'!$B$7:$B$160,'Summary & Results'!O46,'Principle 1'!$F$7:$F$160,\"Not Assessed\")","v":0},{"$f":"COUNTIFS('Principle 1'!$B$7:$B$160,'Summary & Results'!O46,'Principle 1'!$A$7:$A$160,\"Medium\",'Principle 1'!$F$7:$F$160,\"Y\")","v":0},{"$f":"COUNTIFS('Principle 1'!$B$7:$B$160,'Summary & Results'!O46,'Principle 1'!$A$7:$A$160,\"Low\",'Principle 1'!$F$7:$F$160,\"Y\")","v":0},null,null,null,null,null,null,null,"1.1.4: Freedom of Association and Collective Bargaining",null,null,null,null,null,"LOW"]
[3,{"$f":"COUNTIFS('Principle 1'!$B$7:$B$160,'Summary & Results'!O47,'Principle 1'!$F$7:$F$160,\"NA\")","v":0},{"$f":"COUNTIFS('Principle 1'!$B$7:$B$160,'Summary & Results'!O47,'Principle 1'!$A$7:$A$160,\"Medium\",'Principle 1'!$F$7:$F$160,\"N\")","v":0},{"$f":"COUNTIFS('Principle 1'!$B$7:$B$160,'Summary & Results'!O47,'Principle 1'!$A$7:$A$160,\"Low\",'Principle 1'!$F$7:$F$160,\"N\")","v":0},{"$f":"COUNTIFS('Principle 1'!$B$7:$B$160,'Summary & Results'!O47,'Principle 1'!$F$7:$F$160,\"Not Assessed\")","v":0},{"$f":"COUNTIFS('Principle 1'!$B$7:$B$160,'Summary & Results'!O47,'Principle 1'!$A$7:$A$160,\"Medium\",'Principle 1'!$F$7:$F$160,\"Y\")","v":0},{"$f":"COUNTIFS('Principle 1'!$B$7:$B$160,'Summary & Results'!O47,'Principle 1'!$A$7:$A$160,\"Low\",'Principle 1'!$F$7:$F$160,\"Y\")","v":0},null,null,null,null,null,null,null,"1.1.5: Earnings and Benefits",null,null,null,null,null,"LOW"]
[3,{"$f":"COUNTIFS('Principle 1'!$B$7:$B$160,'Summary & Results'!O48,'Principle 1'!$F$7:$F$160,\"NA\")","v":0},{"$f":"COUNTIFS('Principle 1'!$B$7:$B$160,'Summary & Results'!O48,'Principle 1'!$A$7:$A$160,\"Medium\",'Principle 1'!$F$7:$F$160,\"N\")","v":0},{"$f":"COUNTIFS('Principle 1'!$B$7:$B$160,'Summary & Results'!O48,'Principle 1'!$A$7:$A$160,\"Low\",'Principle 1'!$F$7:$F$160,\"N\")","v":0},{"$f":"COUNTIFS('Principle 1'!$B$7:$B$160,'Summary & Results'!O48,'Principle 1'!$F$7:$F$160,\"Not Assessed\")","v":0},{"$f":"COUNTIFS('Principle 1'!$B$7:$B$160,'Summary & Results'!O48,'Principle 1'!$A$7:$A$160,\"Medium\",'Principle 1'!$F$7:$F$160,\"Y\")","v":0},{"$f":"COUNTIFS('Principle 1'!$B$7:$B$160,'Summary & Results'!O48,'Principle 1'!$A$7:$A$160,\"Low\",'Principle 1'!$F$7:$F$160,\"Y\")","v":0},null,null,null,null,null,null,null,"1.1.6: Adequate rest",null,null,null,null,null,"LOW"]
[3,{"$f":"COUNTIFS('Principle 1'!$B$7:$B$160,'Summary & Results'!O49,'Principle 1'!$F$7:$F$160,\"NA\")","v":0},{"$f":"COUNTIFS('Principle 1'!$B$7:$B$160,'Summary & Results'!O49,'Principle 1'!$A$7:$A$160,\"Medium\",'Principle 1'!$F$7:$F$160,\"N\")","v":0},{"$f":"COUNTIFS('Principle 1'!$B$7:$B$160,'Summary & Results'!O49,'Principle 1'!$A$7:$A$160,\"Low\",'Principle 1'!$F$7:$F$160,\"N\")","v":0},{"$f":"COUNTIFS('Principle 1'!$B$7:$B$160,'Summary & Results'!O49,'Principle 1'!$F$7:$F$160,\"Not Assessed\")","v":0},{"$f":"COUNTIFS('Principle 1'!$B$7:$B$160,'Summary & Results'!O49,'Principle 1'!$A$7:$A$160,\"Medium\",'Principle 1'!$F$7:$F$160,\"Y\")","v":0},{"$f":"COUNTIFS('Principle 1'!$B$7:$B$160,'Summary & Results'!O49,'Principle 1'!$A$7:$A$160,\"Low\",'Principle 1'!$F$7:$F$160,\"Y\")","v":0},null,null,null,null,null,null,null,"1.1.7a: Access to basic services for worker housing/live-aboard vessels",null,null,null,null,null,"LOW"]
[3,{"$f":"COUNTIFS('Principle 1'!$B$7:$B$160,'Summary & Results'!O50,'Principle 1'!$F$7:$F$160,\"NA\")","v":0},{"$f":"COUNTIFS('Principle 1'!$B$7:$B$160,'Summary & Results'!O50,'Principle 1'!$A$7:$A$160,\"Medium\",'Principle 1'!$F$7:$F$160,\"N\")","v":0},{"$f":"COUNTIFS('Principle 1'!$B$7:$B$160,'Summary & Results'!O50,'Principle 1'!$A$7:$A$160,\"Low\",'Principle 1'!$F$7:$F$160,\"N\")","v":0},{"$f":"COUNTIFS('Principle 1'!$B$7:$B$160,'Summary & Results'!O50,'Principle 1'!$F$7:$F$160,\"Not Assessed\")","v":0},{"$f":"COUNTIFS('Principle 1'!$B$7:$B$160,'Summary & Results'!O50,'Principle 1'!$A$7:$A$160,\"Medium\",'Principle 1'!$F$7:$F$160,\"Y\")","v":0},{"$f":"COUNTIFS('Principle 1'!$B$7:$B$160,'Summary & Results'!O50,'Principle 1'!$A$7:$A$160,\"Low\",'Principle 1'!$F$7:$F$160,\"Y\")","v":0},null,null,null,null,null,null,null,"1.1.7b: Access to basic services (Small-scale fishing communities)",null,null,null,null,null,"LOW"]
[3,{"$f":"COUNTIFS('Principle 1'!$B$7:$B$160,'Summary & Results'!O51,'Principle 1'!$F$7:$F$160,\"NA\")","v":0},{"$f":"COUNTIFS('Principle 1'!$B$7:$B$160,'Summary & Results'!O51,'Principle 1'!$A$7:$A$160,\"Medium\",'Principle 1'!$F$7:$F$160,\"N\")","v":0},{"$f":"COUNTIFS('Principle 1'!$B$7:$B$160,'Summary & Results'!O51,'Principle 1'!$A$7:$A$160,\"Low\",'Principle 1'!$F$7:$F$160,\"N\")","v":0},{"$f":"COUNTIFS('Principle 1'!$B$7:$B$160,'Summary & Results'!O51,'Principle 1'!$F$7:$F$160,\"Not Assessed\")","v":0},{"$f":"COUNTIFS('Principle 1'!$B$7:$B$160,'Summary & Results'!O51,'Principle 1'!$A$7:$A$160,\"Medium\",'Principle 1'!$F$7:$F$160,\"Y\")","v":0},{"$f":"COUNTIFS('Principle 1'!$B$7:$B$160,'Summary & Results'!O51,'Principle 1'!$A$7:$A$160,\"Low\",'Principle 1'!$F$7:$F$160,\"Y\")","v":0},null,null,null,null,null,null,null,"1.1.8: Occupational safety",null,null,null,null,null,"LOW"]
[3,{"$f":"COUNTIFS('Principle 1'!$B$7:$B$160,'Summary & Results'!O52,'Principle 1'!$F$7:$F$160,\"NA\")","v":0},{"$f":"COUNTIFS('Principle 1'!$B$7:$B$160,'Summary & Results'!O52,'Principle 1'!$A$7:$A$160,\"Medium\",'Principle 1'!$F$7:$F$160,\"N\")","v":0},{"$f":"COUNTIFS('Principle 1'!$B$7:$B$160,'Summary & Results'!O52,'Principle 1'!$A$7:$A$160,\"Low\",'Principle 1'!$F$7:$F$160,\"N\")","v":0},{"$f":"COUNTIFS('Principle 1'!$B$7:$B$160,'Summary & Results'!O52,'Principle 1'!$F$7:$F$160,\"Not Assessed\")","v":0},{"$f":"COUNTIFS('Principle 1'!$B$7:$B$160,'Summary & Results'!O52,'Principle 1'!$A$7:$A$160,\"Medium\",'Principle 1'!$F$7:$F$160,\"Y\")","v":0},{"$f":"COUNTIFS('Principle 1'!$B$7:$B$160,'Summary & Results'!O52,'Principle 1'!$A$7:$A$160,\"Low\",'Principle 1'!$F$7:$F$160,\"Y\")","v":0},null,null,null,null,null,null,null,"1.1.9: Medical response",null,null,null,null,null,"LOW"]
[3,{"$f":"COUNTIFS('Principle 1'!$B$7:$B$160,'Summary & Results'!O53,'Principle 1'!$F$7:$F$160,\"NA\")","v":0},{"$f":"COUNTIFS('Principle 1'!$B$7:$B$160,'Summary & Results'!O53,'Principle 1'!$A$7:$A$160,\"Medium\",'Principle 1'!$F$7:$F$160,\"N\")","v":0},{"$f":"COUNTIFS('Principle 1'!$B$7:$B$160,'Summary & Results'!O53,'Principle 1'!$A$7:$A$160,\"Low\",'Principle 1'!$F$7:$F$160,\"N\")","v":0},{"$f":"COUNTIFS('Principle 1'!$B$7:$B$160,'Summary & Results'!O53,'Principle 1'!$F$7:$F$160,\"Not Assessed\")","v":0},{"$f":"COUNTIFS('Principle 1'!$B$7:$B$160,'Summary & Results'!O53,'Principle 1'!$A$7:$A$160,\"Medium\",'Principle 1'!$F$7:$F$160,\"Y\")","v":0},{"$f":"COUNTIFS('Principle 1'!$B$7:$B$160,'Summary & Results'!O53,'Principle 1'!$A$7:$A$160,\"Low\",'Principle 1'!$F$7:$F$160,\"Y\")","v":0},null,null,null,null,"1.2 \nAccess Rights",null,null,"1.2.1: Customary use rights",null,null,null,null,null,"LOW"]
[3,{"$f":"COUNTIFS('Principle 1'!$B$7:$B$160,'Summary & Results'!O54,'Principle 1'!$F$7:$F$160,\"NA\")","v":0},{"$f":"COUNTIFS('Principle 1'!$B$7:$B$160,'Summary & Results'!O54,'Principle 1'!$A$7:$A$160,\"Medium\",'Principle 1'!$F$7:$F$160,\"N\")","v":0},{"$f":"COUNTIFS('Principle 1'!$B$7:$B$160,'Summary & Results'!O54,'Principle 1'!$A$7:$A$160,\"Low\",'Principle 1'!$F$7:$F$160,\"N\")","v":0},{"$f":"COUNTIFS('Principle 1'!$B$7:$B$160,'Summary & Results'!O54,'Principle 1'!$F$7:$F$160,\"Not Assessed\")","v":0},{"$f":"COUNTIFS('Principle 1'!$B$7:$B$160,'Summary & Results'!O54,'Principle 1'!$A$7:$A$160,\"Medium\",'Principle 1'!$F$7:$F$160,\"Y\")","v":0},{"$f":"COUNTIFS('Principle 1'!$B$7:$B$160,'Summary & Results'!O54,'Principle 1'!$A$7:$A$160,\"Low\",'Principle 1'!$F$7:$F$160,\"Y\")","v":0},null,null,null,null,null,null,null,"1.2.2: Corporate responsibility and transparency",null,null,null,null,null,"LOW"]
[3,{"$f":"COUNTIFS('Principle 1'!$B$7:$B$160,'Summary & Results'!O55,'Principle 1'!$F$7:$F$160,\"NA\")","v":0},{"$f":"COUNTIFS('Principle 2'!$B$7:$B$41,'Summary & Results'!O55,'Principle 2'!$A$7:$A$41,\"Medium\",'Principle 2'!$F$7:$F$41,\"N\")","v":0},{"$f":"COUNTIFS('Principle 2'!$B$7:$B$41,'Summary & Results'!O55,'Principle 2'!$A$7:$A$41,\"Low\",'Principle 2'!$F$7:$F$41,\"N\")","v":0},{"$f":"COUNTIFS('Principle 2'!$B$7:$B$41,'Summary & Results'!O55,'Principle 2'!$F$7:$F$41,\"Not Assessed\")","v":0},{"$f":"COUNTIFS('Principle 1'!$B$7:$B$160,'Summary & Results'!O55,'Principle 1'!$A$7:$A$160,\"Medium\",'Principle 1'!$F$7:$F$160,\"Y\")","v":0},{"$f":"COUNTIFS('Principle 1'!$B$7:$B$160,'Summary & Results'!O55,'Principle 1'!$A$7:$A$160,\"Low\",'Principle 1'!$F$7:$F$160,\"Y\")","v":0},null,null,"2\nEnsure equality and equitable opportunity to benefit",null,"2.1\nEquality",null,null,"2.1.1: Grievance reporting and access to remedy",null,null,null,null,null,"LOW"]
[3,{"$f":"COUNTIFS('Principle 1'!$B$7:$B$160,'Summary & Results'!O56,'Principle 1'!$F$7:$F$160,\"NA\")","v":0},{"$f":"COUNTIFS('Principle 2'!$B$7:$B$41,'Summary & Results'!O56,'Principle 2'!$A$7:$A$41,\"Medium\",'Principle 2'!$F$7:$F$41,\"N\")","v":0},{"$f":"COUNTIFS('Principle 2'!$B$7:$B$41,'Summary & Results'!O56,'Principle 2'!$A$7:$A$41,\"Low\",'Principle 2'!$F$7:$F$41,\"N\")","v":0},{"$f":"COUNTIFS('Principle 2'!$B$7:$B$41,'Summary & Results'!O56,'Principle 2'!$F$7:$F$41,\"Not Assessed\")","v":0},{"$f":"COUNTIFS('Principle 1'!$B$7:$B$160,'Summary & Results'!O56,'Principle 1'!$A$7:$A$160,\"Medium\",'Principle 1'!$F$7:$F$160,\"Y\")","v":0},{"$f":"COUNTIFS('Principle 1'!$B$7:$B$160,'Summary & Results'!O56,'Principle 1'!$A$7:$A$160,\"Low\",'Principle 1'!$F$7:$F$160,\"Y\")","v":0},null,null,null,null,null,null,null,"2.1.2: Stakeholder Participation and Collaborative Management",null,null,null,null,null,"LOW"]
[3,{"$f":"COUNTIFS('Principle 1'!$B$7:$B$160,'Summary & Results'!O57,'Principle 1'!$F$7:$F$160,\"NA\")","v":0},{"$f":"COUNTIFS('Principle 2'!$B$7:$B$41,'Summary & Results'!O57,'Principle 2'!$A$7:$A$41,\"Medium\",'Principle 2'!$F$7:$F$41,\"N\")","v":0},{"$f":"COUNTIFS('Principle 2'!$B$7:$B$41,'Summary & Results'!O57,'Principle 2'!$A$7:$A$41,\"Low\",'Principle 2'!$F$7:$F$41,\"N\")","v":0},{"$f":"COUNTIFS('Principle 2'!$B$7:$B$41,'Summary & Results'!O57,'Principle 2'!$F$7:$F$41,\"Not Assessed\")","v":0},{"$f":"COUNTIFS('Principle 1'!$B$7:$B$160,'Summary & Results'!O57,'Principle 1'!$A$7:$A$160,\"Medium\",'Principle 1'!$F$7:$F$160,\"Y\")","v":0},{"$f":"COUNTIFS('Principle 1'!$B$7:$B$160,'Summary & Results'!O57,'Principle 1'!$A$7:$A$160,\"Low\",'Principle 1'!$F$7:$F$160,\"Y\")","v":0},null,null,null,null,"2.2\nEquity",null,null,"2.2.1: Equitable opportunity to benefit",null,null,null,null,null,"LOW"]
[3,{"$f":"COUNTIFS('Principle 1'!$B$7:$B$160,'Summary & Results'!O58,'Principle 1'!$F$7:$F$160,\"NA\")","v":0},{"$f":"COUNTIFS('Principle 2'!$B$7:$B$41,'Summary & Results'!O58,'Principle 2'!$A$7:$A$41,\"Medium\",'Principle 2'!$F$7:$F$41,\"N\")","v":0},{"$f":"COUNTIFS('Principle 2'!$B$7:$B$41,'Summary & Results'!O58,'Principle 2'!$A$7:$A$41,\"Low\",'Principle 2'!$F$7:$F$41,\"N\")","v":0},{"$f":"COUNTIFS('Principle 2'!$B$7:$B$41,'Summary & Results'!O58,'Principle 2'!$F$7:$F$41,\"Not Assessed\")","v":0},{"$f":"COUNTIFS('Principle 1'!$B$7:$B$160,'Summary & Results'!O58,'Principle 1'!$A$7:$A$160,\"Medium\",'Principle 1'!$F$7:$F$160,\"Y\")","v":0},{"$f":"COUNTIFS('Principle 1'!$B$7:$B$160,'Summary & Results'!O58,'Principle 1'!$A$7:$A$160,\"Low\",'Principle 1'!$F$7:$F$160,\"Y\")","v":0},null,null,null,null,null,null,null,"2.2.2: Discrimination",null,null,null,null,null,"LOW"]
[3,{"$f":"COUNTIFS('Principle 3'!$B$7:$B$92,'Summary & Results'!O59,'Principle 3'!$F$7:$F$92,\"NA\")","v":0},{"$f":"COUNTIFS('Principle 3'!$B$7:$B$92,'Summary & Results'!O59,'Principle 3'!$A$7:$A$92,\"Medium\",'Principle 3'!$F$7:$F$92,\"N\")","v":0},{"$f":"COUNTIFS('Principle 3'!$B$7:$B$92,'Summary & Results'!O59,'Principle 3'!$A$7:$A$92,\"Low\",'Principle 3'!$F$7:$F$92,\"N\")","v":0},{"$f":"COUNTIFS('Principle 3'!$B$7:$B$92,'Summary & Results'!O59,'Principle 3'!$F$7:$F$92,\"Not Assessed\")","v":0},{"$f":"COUNTIFS('Principle 3'!$B$7:$B$160,'Summary & Results'!O59,'Principle 3'!$A$7:$A$160,\"Medium\",'Principle 3'!$F$7:$F$160,\"Y\")","v":0},{"$f":"COUNTIFS('Principle 1'!$B$7:$B$160,'Summary & Results'!O59,'Principle 3'!$A$7:$A$160,\"Low\",'Principle 3'!$F$7:$F$160,\"Y\")","v":0},null,null,"3\nImprove food, nutrition, and livelihood security",null,"3.1\nFood and nutrition security",null,null,"3.1.1a: Food and nutrition security impacts of industrial fisheries",null,null,null,null,null,"LOW"]
[3,{"$f":"COUNTIFS('Principle 3'!$B$7:$B$92,'Summary & Results'!O60,'Principle 3'!$F$7:$F$92,\"NA\")","v":0},{"$f":"COUNTIFS('Principle 3'!$B$7:$B$92,'Summary & Results'!O60,'Principle 3'!$A$7:$A$92,\"Medium\",'Principle 3'!$F$7:$F$92,\"N\")","v":0},{"$f":"COUNTIFS('Principle 3'!$B$7:$B$92,'Summary & Results'!O60,'Principle 3'!$A$7:$A$92,\"Low\",'Principle 3'!$F$7:$F$92,\"N\")","v":0},{"$f":"COUNTIFS('Principle 3'!$B$7:$B$92,'Summary & Results'!O60,'Principle 3'!$F$7:$F$92,\"Not Assessed\")","v":0},{"$f":"COUNTIFS('Principle 3'!$B$7:$B$160,'Summary & Results'!O60,'Principle 3'!$A$7:$A$160,\"Medium\",'Principle 3'!$F$7:$F$160,\"Y\")","v":0},{"$f":"COUNTIFS('Principle 1'!$B$7:$B$160,'Summary & Results'!O60,'Principle 3'!$A$7:$A$160,\"Low\",'Principle 3'!$F$7:$F$160,\"Y\")","v":0},null,null,null,null,null,null,null,"3.1.1b: Food and nutrition security for small-scale fishing communities",null,null,null,null,null,"LOW"]
[3,{"$f":"COUNTIFS('Principle 3'!$B$7:$B$92,'Summary & Results'!O61,'Principle 3'!$F$7:$F$92,\"NA\")","v":0},{"$f":"COUNTIFS('Principle 3'!$B$7:$B$92,'Summary & Results'!O61,'Principle 3'!$A$7:$A$92,\"Medium\",'Principle 3'!$F$7:$F$92,\"N\")","v":0},{"$f":"COUNTIFS('Principle 3'!$B$7:$B$92,'Summary & Results'!O61,'Principle 3'!$A$7:$A$92,\"Low\",'Principle 3'!$F$7:$F$92,\"N\")","v":0},{"$f":"COUNTIFS('Principle 3'!$B$7:$B$92,'Summary & Results'!O61,'Principle 3'!$F$7:$F$92,\"Not Assessed\")","v":0},{"$f":"COUNTIFS('Principle 3'!$B$7:$B$160,'Summary & Results'!O61,'Principle 3'!$A$7:$A$160,\"Medium\",'Principle 3'!$F$7:$F$160,\"Y\")","v":0},{"$f":"COUNTIFS('Principle 1'!$B$7:$B$160,'Summary & Results'!O61,'Principle 3'!$A$7:$A$160,\"Low\",'Principle 3'!$F$7:$F$160,\"Y\")","v":0},null,null,null,null,null,null,null,"3.1.2: Healthcare",null,null,null,null,null,"LOW"]
[3,{"$f":"COUNTIFS('Principle 3'!$B$7:$B$92,'Summary & Results'!O62,'Principle 3'!$F$7:$F$92,\"NA\")","v":0},{"$f":"COUNTIFS('Principle 3'!$B$7:$B$92,'Summary & Results'!O62,'Principle 3'!$A$7:$A$92,\"Medium\",'Principle 3'!$F$7:$F$92,\"N\")","v":0},{"$f":"COUNTIFS('Principle 3'!$B$7:$B$92,'Summary & Results'!O62,'Principle 3'!$A$7:$A$92,\"Low\",'Principle 3'!$F$7:$F$92,\"N\")","v":0},{"$f":"COUNTIFS('Principle 3'!$B$7:$B$92,'Summary & Results'!O62,'Principle 3'!$F$7:$F$92,\"Not Assessed\")","v":0},{"$f":"COUNTIFS('Principle 3'!$B$7:$B$160,'Summary & Results'!O62,'Principle 3'!$A$7:$A$160,\"Medium\",'Principle 3'!$F$7:$F$160,\"Y\")","v":0},{"$f":"COUNTIFS('Principle 1'!$B$7:$B$160,'Summary & Results'!O62,'Principle 3'!$A$7:$A$160,\"Low\",'Principle 3'!$F$7:$F$160,\"Y\")","v":0},null,null,null,null,null,null,null,"3.1.3: Education",null,null,null,null,null,"LOW"]
[3,{"$f":"COUNTIFS('Principle 3'!$B$7:$B$92,'Summary & Results'!O63,'Principle 3'!$F$7:$F$92,\"NA\")","v":0},{"$f":"COUNTIFS('Principle 3'!$B$7:$B$92,'Summary & Results'!O63,'Principle 3'!$A$7:$A$92,\"Medium\",'Principle 3'!$F$7:$F$92,\"N\")","v":0},{"$f":"COUNTIFS('Principle 3'!$B$7:$B$92,'Summary & Results'!O63,'Principle 3'!$A$7:$A$92,\"Low\",'Principle 3'!$F$7:$F$92,\"N\")","v":0},{"$f":"COUNTIFS('Principle 3'!$B$7:$B$92,'Summary & Results'!O63,'Principle 3'!$F$7:$F$92,\"Not Assessed\")","v":0},{"$f":"COUNTIFS('Principle 3'!$B$7:$B$160,'Summary & Results'!O63,'Principle 3'!$A$7:$A$160,\"Medium\",'Principle 3'!$F$7:$F$160,\"Y\")","v":0},{"$f":"COUNTIFS('Principle 1'!$B$7:$B$160,'Summary & Results'!O63,'Principle 3'!$A$7:$A$160,\"Low\",'Principle 3'!$F$7:$F$160,\"Y\")","v":0},null,null,null,null,"3.2\nLivelihood security ",null,null,"3.2.1: Benefits to and within community",null,null,null,null,null,"LOW"]
[3,{"$f":"COUNTIFS('Principle 3'!$B$7:$B$92,'Summary & Results'!O64,'Principle 3'!$F$7:$F$92,\"NA\")","v":0},{"$f":"COUNTIFS('Principle 3'!$B$7:$B$92,'Summary & Results'!O64,'Principle 3'!$A$7:$A$92,\"Medium\",'Principle 3'!$F$7:$F$92,\"N\")","v":0},{"$f":"COUNTIFS('Principle 3'!$B$7:$B$92,'Summary & Results'!O64,'Principle 3'!$A$7:$A$92,\"Low\",'Principle 3'!$F$7:$F$92,\"N\")","v":0},{"$f":"COUNTIFS('Principle 3'!$B$7:$B$92,'Summary & Results'!O64,'Principle 3'!$F$7:$F$92,\"Not Assessed\")","v":0},{"$f":"COUNTIFS('Principle 3'!$B$7:$B$160,'Summary & Results'!O64,'Principle 3'!$A$7:$A$160,\"Medium\",'Principle 3'!$F$7:$F$160,\"Y\")","v":0},{"$f":"COUNTIFS('Principle 1'!$B$7:$B$160,'Summary & Results'!O64,'Principle 3'!$A$7:$A$160,\"Low\",'Principle 3'!$F$7:$F$160,\"Y\")","v":0},null,null,null,null,null,null,null,"3.2.2: Economic value retention",null,null,null,null,null,"LOW"]
[3,{"$f":"COUNTIFS('Principle 3'!$B$7:$B$92,'Summary & Results'!O65,'Principle 3'!$F$7:$F$92,\"NA\")","v":0},{"$f":"COUNTIFS('Principle 3'!$B$7:$B$92,'Summary & Results'!O65,'Principle 3'!$A$7:$A$92,\"Medium\",'Principle 3'!$F$7:$F$92,\"N\")","v":0},{"$f":"COUNTIFS('Principle 3'!$B$7:$B$92,'Summary & Results'!O65,'Principle 3'!$A$7:$A$92,\"Low\",'Principle 3'!$F$7:$F$92,\"N\")","v":0},{"$f":"COUNTIFS('Principle 3'!$B$7:$B$92,'Summary & Results'!O65,'Principle 3'!$F$7:$F$92,\"Not Assessed\")","v":0},{"$f":"COUNTIFS('Principle 3'!$B$7:$B$160,'Summary & Results'!O65,'Principle 3'!$A$7:$A$160,\"Medium\",'Principle 3'!$F$7:$F$160,\"Y\")","v":0},{"$f":"COUNTIFS('Principle 1'!$B$7:$B$160,'Summary & Results'!O65,'Principle 3'!$A$7:$A$160,\"Low\",'Principle 3'!$F$7:$F$160,\"Y\")","v":0},null,null,null,null,null,null,null,"3.2.3: Long-term profitability and future workforce",null,null,null,null,null,"LOW"]
[3,{"$f":"COUNTIFS('Principle 3'!$B$7:$B$92,'Summary & Results'!O66,'Principle 3'!$F$7:$F$92,\"NA\")","v":0},{"$f":"COUNTIFS('Principle 3'!$B$7:$B$92,'Summary & Results'!O66,'Principle 3'!$A$7:$A$92,\"Medium\",'Principle 3'!$F$7:$F$92,\"N\")","v":0},{"$f":"COUNTIFS('Principle 3'!$B$7:$B$92,'Summary & Results'!O66,'Principle 3'!$A$7:$A$92,\"Low\",'Principle 3'!$F$7:$F$92,\"N\")","v":0},{"$f":"COUNTIFS('Principle 3'!$B$7:$B$92,'Summary & Results'!O66,'Principle 3'!$F$7:$F$92,\"Not Assessed\")","v":0},{"$f":"COUNTIFS('Principle 3'!$B$7:$B$160,'Summary & Results'!O66,'Principle 3'!$A$7:$A$160,\"Medium\",'Principle 3'!$F$7:$F$160,\"Y\")","v":0},{"$f":"COUNTIFS('Principle 1'!$B$7:$B$160,'Summary & Results'!O66,'Principle 3'!$A$7:$A$160,\"Low\",'Principle 3'!$F$7:$F$160,\"Y\")","v":0},null,null,null,null,null,null,null,"3.2.4: Economic flexibility and autonomy",null,null,null,null,null,"LOW"]
[3,{"$f":"COUNTIFS('Principle 3'!$B$7:$B$92,'Summary & Results'!O67,'Principle 3'!$F$7:$F$92,\"NA\")","v":0},{"$f":"COUNTIFS('Principle 3'!$B$7:$B$92,'Summary & Results'!O67,'Principle 3'!$A$7:$A$92,\"Medium\",'Principle 3'!$F$7:$F$92,\"N\")","v":0},{"$f":"COUNTIFS('Principle 3'!$B$7:$B$92,'Summary & Results'!O67,'Principle 3'!$A$7:$A$92,\"Low\",'Principle 3'!$F$7:$F$92,\"N\")","v":0},{"$f":"COUNTIFS('Principle 3'!$B$7:$B$92,'Summary & Results'!O67,'Principle 3'!$F$7:$F$92,\"Not Assessed\")","v":0},{"$f":"COUNTIFS('Principle 3'!$B$7:$B$160,'Summary & Results'!O67,'Principle 3'!$A$7:$A$160,\"Medium\",'Principle 3'!$F$7:$F$160,\"Y\")","v":0},{"$f":"COUNTIFS('Principle 1'!$B$7:$B$160,'Summary & Results'!O67,'Principle 3'!$A$7:$A$160,\"Low\",'Principle 3'!$F$7:$F$160,\"Y\")","v":0},null,null,null,null,null,null,null,"3.2.5: Livelihood security ",null,null,null,null,null,"LOW"]
[3,{"$f":"COUNTIFS('Principle 3'!$B$7:$B$92,'Summary & Results'!O68,'Principle 3'!$F$7:$F$92,\"NA\")","v":0},{"$f":"COUNTIFS('Principle 3'!$B$7:$B$92,'Summary & Results'!O68,'Principle 3'!$A$7:$A$92,\"Medium\",'Principle 3'!$F$7:$F$92,\"N\")","v":0},{"$f":"COUNTIFS('Principle 3'!$B$7:$B$92,'Summary & Results'!O68,'Principle 3'!$A$7:$A$92,\"Low\",'Principle 3'!$F$7:$F$92,\"N\")","v":0},{"$f":"COUNTIFS('Principle 3'!$B$7:$B$92,'Summary & Results'!O68,'Principle 3'!$F$7:$F$92,\"Not Assessed\")","v":0},{"$f":"COUNTIFS('Principle 3'!$B$7:$B$160,'Summary & Results'!O68,'Principle 3'!$A$7:$A$160,\"Medium\",'Principle 3'!$F$7:$F$160,\"Y\")","v":0},{"$f":"COUNTIFS('Principle 1'!$B$7:$B$160,'Summary & Results'!O68,'Principle 3'!$A$7:$A$160,\"Low\",'Principle 3'!$F$7:$F$160,\"Y\")","v":0},null,null,null,null,null,null,null,"3.2.6: Economic fuel efficiency",null,null,null,null,null,"LOW"]
[]
[]
[null,null,null,null,null,null,null,null,"How the scores are calculated:"]
[]
[null,null,null,null,null,null,null,null,"After each PISG is assessed, there is a risk level determined for each indicator. This is determined as follows:"]
[]
[]
[]
[]
[]
[]
[]
[]
[]
[]
[]
[]
[]
[]
[]
[]
[]
[]
[]
[]
[]
[]
[]
[]
[]
[]
[]
[]
[]
[]
[]
[]
[]
[]
[]
[]
[]
[]
[]
[]
[]
[]
[]
[]
[]
[]
[]
[]
[]
[]
[]
[]
[]
[]
[null,null,null,null,null,null,null,null,"This is then aggregated into a final score for each Principle. An indicator received a score of 1 for high risk, 2 for medium risk, and 3 for low risk."]
[null,null,null,null,null,null,null,null,"These are then summed up and compared to the score if all indicators were to be low to get a percentage for each principle, which would be score of 100%."]
[null,null,null,null,null,null,null,null,"The resulting risk level is determined as follows:"]

{"sheet":"Final Report","index":7,"n_rows":698,"n_cols":30,"rows_kept":698,"cut":false,"hidden":false,"merged":[[688,8,688,23],[689,8,689,23],[690,8,690,23],[691,8,691,23],[692,8,692,23],[693,8,693,23],[694,8,694,23],[695,8,695,23],[696,8,696,23],[697,8,697,23],[521,8,521,22],[529,7,529,9],[529,10,529,11],[531,8,531,22],[541,7,541,9],[541,10,541,11],[543,8,543,22],[554,7,554,9],[554,10,554,11],[556,8,556,22],[568,7,568,9],[568,10,568,11],[570,8,570,22],[686,8,686,23],[687,8,687,23],[632,10,632,11],[628,8,628,9],[629,8,629,9],[630,8,630,9],[614,12,614,21],[684,8,684,23],[685,8,685,23],[673,8,673,23],[674,8,674,23],[675,8,675,23],[676,8,676,23],[677,8,677,23],[678,8,678,23],[679,8,679,23],[680,8,680,23],[681,8,681,23],[682,8,682,23],[664,8,664,23],[665,8,665,23],[645,22,645,23],[644,12,644,21],[645,12,645,21],[302,22,302,23],[303,8,303,9],[304,8,304,9],[463,10,463,11],[465,8,465,22],[476,7,476,9],[476,10,476,11],[478,8,478,22],[492,7,492,9],[492,10,492,11],[494,8,494,22],[503,7,503,9],[503,10,503,11],[505,8,505,22],[519,7,519,9],[519,10,519,11],[628,10,628,11],[683,8,683,23],[638,7,638,9],[638,10,638,11],[640,8,640,22],[379,8,379,22],[666,8,666,23],[667,8,667,23],[668,8,668,23],[669,8,669,23],[670,8,670,23],[671,8,671,23],[672,8,672,23],[649,8,649,23],[650,8,650,23],[651,8,651,23],[652,8,652,23],[653,8,653,23],[654,8,654,23],[655,8,655,23],[656,8,656,23],[657,8,657,23],[658,8,658,23],[659,8,659,23],[660,8,660,23],[661,8,661,23],[662,8,662,23],[663,8,663,23],[463,7,463,9],[460,8,460,23],[627,22,627,23],[628,7,632,7],[633,7,635,7],[109,15,109,23],[110,15,110,23],[138,15,138,23],[117,15,117,23],[118,15,118,23],[119,15,119,23],[120,15,120,23],[342,7,342,9],[342,10,342,11],[344,8,344,22],[359,7,359,9],[359,10,359,11],[361,8,361,22],[377,7,377,9],[377,10,377,11],[251,7,251,9],[251,10,251,11],[253,8,253,22],[266,7,266,9],[266,10,266,11],[268,8,268,22],[281,7,281,9],[281,10,281,11],[283,8,283,22],[294,7,294,9],[294,10,294,11],[296,8,296,22],[307,7,307,9],[307,10,307,11],[223,14,223,21],[224,14,224,21],[135,15,135,23],[106,8,106,23],[127,8,127,23],[144,8,144,23],[171,8,171,12],[172,8,172,12],[173,8,173,12],[174,8,174,12],[171,13,171,23],[172,13,172,23],[173,13,173,23],[174,13,174,23],[218,22,218,23],[219,22,219,23],[220,22,220,23],[221,22,221,23],[222,22,222,23],[164,14,164,23],[217,7,217,9],[217,10,217,12],[217,14,217,21],[217,22,217,23],[218,14,218,21],[219,14,219,21],[220,14,220,21],[221,14,221,21],[222,14,222,21],[147,15,147,23],[148,15,148,23],[181,14,181,23],[185,14,185,17],[186,14,186,17],[134,15,134,23],[146,15,146,23],[223,22,223,23],[224,22,224,23],[225,14,225,21],[226,14,226,21],[227,14,227,21],[228,14,228,21],[229,14,229,21],[226,22,226,23],[227,22,227,23],[228,22,228,23],[229,22,229,23],[230,22,230,23],[231,22,231,23],[232,22,232,23],[225,22,225,23],[178,14,178,23],[179,14,179,23],[159,16,159,23],[187,14,187,17],[188,14,188,17],[153,15,153,23],[152,15,152,23],[615,12,615,21],[620,10,620,11],[616,22,616,23],[617,22,617,23],[618,22,618,23],[619,22,619,23],[620,22,620,23],[616,12,616,21],[587,10,587,11],[608,8,608,22],[597,22,597,23],[600,8,600,9],[601,8,601,9],[602,8,602,9],[603,8,603,9],[611,22,611,23],[612,22,612,23],[613,22,613,23],[614,22,614,23],[615,22,615,23],[611,12,611,21],[612,12,612,21],[613,12,613,21],[589,10,589,11],[597,8,597,9],[597,10,597,11],[8,29,11,33],[13,29,15,33],[642,8,642,9],[642,10,642,11],[642,22,642,23],[645,8,645,9],[644,8,644,9],[644,10,644,11],[645,10,645,11],[644,22,644,23],[634,22,634,23],[635,22,635,23],[628,12,628,21],[629,12,629,21],[630,12,630,21],[631,12,631,21],[632,12,632,21],[633,12,633,21],[634,12,634,21],[635,12,635,21],[628,22,628,23],[629,22,629,23],[630,22,630,23],[616,8,616,9],[617,8,617,9],[618,8,618,9],[619,8,619,9],[631,8,631,9],[632,8,632,9],[620,12,620,21],[627,8,627,9],[627,10,627,11],[629,10,629,11],[630,10,630,11],[631,10,631,11],[623,7,623,9],[623,10,623,11],[625,8,625,22],[631,22,631,23],[632,22,632,23],[633,22,633,23],[633,8,633,9],[634,8,634,9],[635,8,635,9],[633,10,633,11],[634,10,634,11],[635,10,635,11],[589,8,589,9],[590,8,590,9],[620,8,620,9],[616,10,616,11],[617,10,617,11],[618,10,618,11],[619,10,619,11],[616,7,620,7],[611,8,611,9],[612,8,612,9],[613,8,613,9],[614,8,614,9],[615,8,615,9],[610,8,610,9],[610,10,610,11],[606,7,606,9],[606,10,606,11],[598,7,600,7],[598,10,598,11],[599,10,599,11],[600,10,600,11],[601,10,601,11],[617,12,617,21],[618,12,618,21],[619,12,619,21],[615,10,615,11],[601,12,601,21],[602,12,602,21],[603,12,603,21],[610,22,610,23],[611,7,615,7],[611,10,611,11],[612,10,612,11],[613,10,613,11],[614,10,614,11],[598,22,598,23],[599,22,599,23],[600,22,600,23],[601,22,601,23],[602,22,602,23],[603,22,603,23],[602,10,602,11],[603,10,603,11],[598,12,598,21],[599,12,599,21],[600,12,600,21],[601,7,603,7],[598,8,598,9],[599,8,599,9],[584,8,584,22],[593,7,593,9],[593,10,593,11],[595,8,595,22],[577,22,577,23],[578,22,578,23],[579,22,579,23],[590,10,590,11],[587,22,587,23],[588,22,588,23],[589,22,589,23],[590,22,590,23],[587,12,587,21],[588,12,588,21],[589,12,589,21],[590,12,590,21],[589,7,590,7],[587,8,587,9],[588,8,588,9],[577,12,577,21],[578,12,578,21],[579,12,579,21],[586,8,586,9],[586,10,586,11],[573,12,573,21],[574,12,574,21],[576,8,576,9],[577,8,577,9],[578,8,578,9],[579,8,579,9],[573,10,573,11],[574,10,574,11],[575,10,575,11],[576,10,576,11],[577,10,577,11],[578,10,578,11],[586,22,586,23],[587,7,588,7],[572,8,572,9],[572,10,572,11],[572,22,572,23],[573,7,575,7],[576,7,579,7],[573,8,573,9],[574,8,574,9],[575,8,575,9],[573,22,573,23],[574,22,574,23],[575,22,575,23],[576,22,576,23],[588,10,588,11],[579,10,579,11],[575,12,575,21],[576,12,576,21],[582,7,582,9],[582,10,582,11],[562,12,562,21],[563,12,563,21],[564,12,564,21],[559,22,559,23],[560,22,560,23],[561,22,561,23],[562,22,562,23],[563,22,563,23],[564,22,564,23],[563,8,563,9],[564,8,564,9],[559,10,559,11],[560,10,560,11],[561,10,561,11],[562,10,562,11],[563,10,563,11],[564,10,564,11],[558,8,558,9],[558,10,558,11],[558,22,558,23],[559,7,562,7],[563,7,564,7],[559,8,559,9],[560,8,560,9],[561,8,561,9],[562,8,562,9],[546,12,546,21],[547,12,547,21],[548,12,548,21],[549,12,549,21],[550,12,550,21],[551,12,551,21],[546,22,546,23],[547,22,547,23],[548,22,548,23],[549,22,549,23],[550,22,550,23],[551,22,551,23],[550,8,550,9],[551,8,551,9],[546,10,546,11],[547,10,547,11],[548,10,548,11],[549,10,549,11],[550,10,550,11],[551,10,551,11],[559,12,559,21],[560,12,560,21],[561,12,561,21],[513,7,514,7],[545,8,545,9],[545,10,545,11],[545,22,545,23],[546,7,548,7],[549,7,551,7],[546,8,546,9],[547,8,547,9],[548,8,548,9],[549,8,549,9],[534,22,534,23],[535,22,535,23],[536,22,536,23],[537,22,537,23],[538,22,538,23],[534,12,534,21],[535,12,535,21],[536,12,536,21],[537,12,537,21],[538,12,538,21],[535,10,535,11],[536,10,536,11],[537,8,537,9],[538,8,538,9],[537,10,537,11],[538,10,538,11],[533,8,533,9],[533,10,533,11],[533,22,533,23],[534,7,536,7],[537,7,538,7],[534,8,534,9],[535,8,535,9],[536,8,536,9],[534,10,534,11],[526,10,526,11],[524,22,524,23],[525,22,525,23],[526,22,526,23],[524,12,524,21],[525,12,525,21],[526,12,526,21],[523,8,523,9],[523,10,523,11],[523,22,523,23],[524,7,525,7],[524,8,524,9],[525,8,525,9],[524,10,524,11],[525,10,525,11],[526,8,526,9],[514,22,514,23],[508,12,508,21],[509,12,509,21],[510,12,510,21],[511,12,511,21],[512,12,512,21],[513,12,513,21],[514,12,514,21],[508,22,508,23],[509,22,509,23],[510,22,510,23],[511,22,511,23],[512,22,512,23],[513,22,513,23],[511,10,511,11],[512,10,512,11],[513,8,513,9],[514,8,514,9],[513,10,513,11],[514,10,514,11],[484,8,484,9],[485,8,485,9],[486,8,486,9],[487,8,487,9],[488,8,488,9],[508,8,508,9],[509,8,509,9],[510,8,510,9],[511,8,511,9],[512,8,512,9],[500,12,500,21],[507,8,507,9],[507,10,507,11],[507,22,507,23],[508,7,512,7],[508,10,508,11],[509,10,509,11],[510,10,510,11],[498,10,498,11],[499,10,499,11],[500,10,500,11],[497,22,497,23],[498,22,498,23],[499,22,499,23],[500,22,500,23],[497,12,497,21],[498,12,498,21],[499,12,499,21],[496,8,496,9],[496,10,496,11],[496,22,496,23],[497,7,498,7],[499,7,500,7],[497,8,497,9],[498,8,498,9],[499,8,499,9],[500,8,500,9],[497,10,497,11],[481,10,481,11],[482,10,482,11],[483,10,483,11],[484,10,484,11],[485,10,485,11],[480,8,480,9],[480,10,480,11],[480,22,480,23],[481,7,484,7],[485,7,488,7],[481,8,481,9],[482,8,482,9],[483,8,483,9],[488,22,488,23],[481,12,481,21],[482,12,482,21],[483,12,483,21],[484,12,484,21],[485,12,485,21],[486,12,486,21],[487,12,487,21],[488,12,488,21],[486,10,486,11],[487,10,487,11],[488,10,488,11],[481,22,481,23],[482,22,482,23],[483,22,483,23],[484,22,484,23],[485,22,485,23],[486,22,486,23],[487,22,487,23],[469,12,469,21],[470,12,470,21],[471,12,471,21],[472,12,472,21],[473,12,473,21],[468,22,468,23],[469,22,469,23],[470,22,470,23],[471,22,471,23],[472,22,472,23],[473,22,473,23],[472,8,472,9],[473,8,473,9],[468,10,468,11],[469,10,469,11],[470,10,470,11],[471,10,471,11],[472,10,472,11],[473,10,473,11],[467,8,467,9],[467,10,467,11],[467,22,467,23],[468,7,470,7],[471,7,473,7],[468,8,468,9],[469,8,469,9],[470,8,470,9],[471,8,471,9],[468,12,468,21],[455,12,455,21],[456,12,456,21],[457,12,457,21],[456,10,456,11],[457,10,457,11],[458,10,458,11],[450,22,450,23],[451,22,451,23],[452,22,452,23],[453,22,453,23],[454,22,454,23],[455,22,455,23],[456,22,456,23],[450,10,450,11],[451,10,451,11],[452,10,452,11],[453,10,453,11],[454,8,454,9],[455,8,455,9],[454,10,454,11],[455,10,455,11],[450,7,453,7],[454,7,458,7],[450,8,450,9],[451,8,451,9],[452,8,452,9],[453,8,453,9],[456,8,456,9],[457,8,457,9],[458,8,458,9],[440,12,440,21],[441,12,441,21],[442,12,442,21],[449,8,449,9],[449,10,449,11],[458,12,458,21],[445,7,445,9],[445,10,445,11],[447,8,447,22],[449,22,449,23],[441,22,441,23],[442,22,442,23],[457,22,457,23],[458,22,458,23],[450,12,450,21],[451,12,451,21],[452,12,452,21],[453,12,453,21],[454,12,454,21],[438,7,442,7],[432,8,432,9],[433,8,433,9],[434,8,434,9],[435,8,435,9],[436,8,436,9],[437,8,437,9],[442,8,442,9],[423,12,423,21],[431,8,431,9],[431,10,431,11],[427,7,427,9],[427,10,427,11],[429,8,429,22],[431,22,431,23],[432,7,437,7],[432,10,432,11],[433,10,433,11],[434,10,434,11],[435,10,435,11],[432,12,432,21],[433,12,433,21],[434,12,434,21],[435,12,435,21],[436,12,436,21],[437,12,437,21],[438,12,438,21],[439,12,439,21],[442,10,442,11],[432,22,432,23],[433,22,433,23],[434,22,434,23],[417,22,417,23],[418,22,418,23],[419,22,419,23],[420,22,420,23],[421,22,421,23],[422,22,422,23],[423,22,423,23],[417,10,417,11],[418,10,418,11],[419,10,419,11],[420,10,420,11],[421,10,421,11],[422,8,422,9],[438,8,438,9],[439,8,439,9],[440,8,440,9],[441,8,441,9],[438,10,438,11],[439,10,439,11],[440,10,440,11],[441,10,441,11],[435,22,435,23],[436,22,436,23],[437,22,437,23],[438,22,438,23],[439,22,439,23],[440,22,440,23],[436,10,436,11],[437,10,437,11],[408,8,408,9],[409,8,409,9],[403,8,403,9],[398,10,398,11],[399,10,399,11],[400,10,400,11],[401,10,401,11],[402,10,402,11],[417,12,417,21],[418,12,418,21],[419,12,419,21],[420,12,420,21],[421,12,421,21],[422,12,422,21],[423,8,423,9],[422,10,422,11],[423,10,423,11],[383,22,383,23],[384,22,384,23],[385,22,385,23],[386,22,386,23],[387,22,387,23],[388,22,388,23],[389,22,389,23],[390,22,390,23],[390,12,390,21],[393,10,393,11],[395,8,395,22],[412,10,412,11],[414,8,414,22],[382,7,386,7],[387,7,390,7],[417,7,421,7],[422,7,423,7],[417,8,417,9],[418,8,418,9],[419,8,419,9],[420,8,420,9],[421,8,421,9],[404,12,404,21],[405,12,405,21],[406,12,406,21],[407,12,407,21],[408,12,408,21],[409,12,409,21],[398,12,398,21],[399,12,399,21],[400,12,400,21],[401,12,401,21],[398,7,403,7],[404,7,409,7],[398,8,398,9],[399,8,399,9],[400,8,400,9],[401,8,401,9],[402,8,402,9],[393,7,393,9],[389,8,389,9],[403,10,403,11],[416,8,416,9],[416,10,416,11],[412,7,412,9],[416,22,416,23],[409,22,409,23],[403,22,403,23],[399,22,399,23],[400,22,400,23],[401,22,401,23],[402,22,402,23],[398,22,398,23],[404,22,404,23],[405,22,405,23],[406,22,406,23],[390,10,390,11],[402,12,402,21],[403,12,403,21],[409,10,409,11],[404,8,404,9],[405,8,405,9],[406,8,406,9],[407,8,407,9],[390,8,390,9],[382,10,382,11],[407,22,407,23],[408,22,408,23],[404,10,404,11],[405,10,405,11],[406,10,406,11],[407,10,407,11],[408,10,408,11],[389,10,389,11],[381,22,381,23],[388,12,388,21],[389,12,389,21],[397,8,397,9],[397,10,397,11],[397,22,397,23],[382,12,382,21],[383,12,383,21],[384,12,384,21],[385,12,385,21],[386,12,386,21],[387,12,387,21],[382,8,382,9],[383,8,383,9],[384,8,384,9],[385,8,385,9],[386,8,386,9],[387,8,387,9],[388,8,388,9],[381,8,381,9],[381,10,381,11],[382,22,382,23],[365,22,365,23],[366,22,366,23],[367,22,367,23],[368,22,368,23],[383,10,383,11],[384,10,384,11],[385,10,385,11],[386,10,386,11],[387,10,387,11],[388,10,388,11],[365,8,365,9],[366,8,366,9],[367,8,367,9],[368,8,368,9],[369,8,369,9],[364,12,364,21],[365,12,365,21],[366,12,366,21],[367,12,367,21],[368,12,368,21],[369,12,369,21],[374,8,374,9],[369,22,369,23],[370,22,370,23],[371,22,371,23],[372,22,372,23],[373,22,373,23],[374,22,374,23],[370,10,370,11],[371,10,371,11],[372,10,372,11],[373,10,373,11],[355,22,355,23],[356,22,356,23],[355,12,355,21],[356,12,356,21],[363,8,363,9],[363,10,363,11],[363,22,363,23],[370,12,370,21],[371,12,371,21],[372,12,372,21],[373,12,373,21],[370,8,370,9],[352,7,356,7],[355,8,355,9],[356,8,356,9],[355,10,355,11],[356,10,356,11],[371,8,371,9],[372,8,372,9],[373,8,373,9],[364,10,364,11],[365,10,365,11],[366,10,366,11],[367,10,367,11],[368,10,368,11],[369,10,369,11],[364,7,369,7],[370,7,374,7],[364,8,364,9],[374,10,374,11],[364,22,364,23],[374,12,374,21],[352,12,352,21],[353,10,353,11],[354,10,354,11],[347,22,347,23],[348,22,348,23],[350,22,350,23],[351,22,351,23],[352,22,352,23],[353,22,353,23],[354,22,354,23],[349,22,349,23],[351,8,351,9],[352,8,352,9],[353,8,353,9],[354,8,354,9],[347,10,347,11],[348,10,348,11],[349,10,349,11],[350,10,350,11],[351,10,351,11],[352,10,352,11],[353,12,353,21],[354,12,354,21],[347,7,351,7],[347,8,347,9],[348,8,348,9],[349,8,349,9],[350,8,350,9],[333,12,333,21],[334,12,334,21],[335,12,335,21],[336,12,336,21],[337,12,337,21],[338,12,338,21],[327,12,327,21],[328,12,328,21],[329,12,329,21],[330,12,330,21],[331,12,331,21],[332,12,332,21],[336,10,336,11],[337,10,337,11],[338,10,338,11],[339,10,339,11],[347,12,347,21],[348,12,348,21],[349,12,349,21],[350,12,350,21],[351,12,351,21],[333,10,333,11],[334,10,334,11],[335,10,335,11],[333,8,333,9],[334,8,334,9],[335,8,335,9],[336,8,336,9],[337,8,337,9],[338,8,338,9],[318,22,318,23],[319,22,319,23],[316,8,316,9],[317,8,317,9],[318,8,318,9],[346,8,346,9],[346,10,346,11],[346,22,346,23],[333,22,333,23],[334,22,334,23],[335,22,335,23],[336,22,336,23],[338,22,338,23],[339,22,339,23],[337,22,337,23],[327,7,335,7],[336,7,339,7],[327,8,327,9],[328,8,328,9],[329,8,329,9],[330,8,330,9],[331,8,331,9],[332,8,332,9],[318,12,318,21],[319,12,319,21],[326,8,326,9],[326,10,326,11],[326,22,326,23],[339,12,339,21],[324,8,324,22],[322,7,322,9],[322,10,322,11],[318,10,318,11],[319,10,319,11],[327,22,327,23],[328,22,328,23],[329,22,329,23],[330,22,330,23],[331,22,331,23],[332,22,332,23],[339,8,339,9],[327,10,327,11],[328,10,328,11],[329,10,329,11],[330,10,330,11],[331,10,331,11],[332,10,332,11],[314,10,314,11],[315,10,315,11],[316,10,316,11],[317,10,317,11],[311,8,311,9],[311,10,311,11],[309,8,309,22],[315,8,315,9],[317,12,317,21],[312,22,312,23],[313,22,313,23],[303,22,303,23],[304,22,304,23],[299,22,299,23],[300,22,300,23],[301,22,301,23],[311,22,311,23],[314,22,314,23],[315,22,315,23],[316,22,316,23],[317,22,317,23],[298,8,298,9],[298,10,298,11],[298,22,298,23],[299,7,303,7],[299,8,299,9],[300,8,300,9],[301,8,301,9]],"merged_total":1237,"flags":["merged_cut"]}
[]
[]
[]
[null,null,null,null,null,null,null,null,null,null,null,null,null,null,null,null,null,null,null,null,null,null,null,null,null,"Please reach out to emilie.carroll@elevatelimited.com If you have any issues or suggestions on how to improve this tool."]
[]
[]
[]
[]
[null,null,null,null,null,null,null,null,null,null,null,null,null,null,null,null,null,null,null,null,null,null,null,null,null,null,null,null,null,"Use this button to export the 4 page executive summary"]
[]
[]
[]
[]
[null,null,null,null,null,null,null,null,null,null,null,null,null,null,null,null,null,null,null,null,null,null,null,null,null,null,null,null,null,"Use this button to export the full 18 page report"]
[]
[]
[]
[]
[]
[]
[null,null,null,null,null,null,null,null,"Social Responsibility Assessment (SRA) Tool"]
[null,null,null,null,null,null,null,null,"Final Assessment Report"]
[]
[]
[]
[null,null,null,null,null,null,null,null,"Final Report Date:",null,null,null,{"$f":"TODAY()","v":"2024-02-23"}]
[]
[]
[]
[]
[]
[]
[]
[]
[]
[]
[]
[]
[]
[]
[null,null,null,null,null,null,null,null,null,"Unit of Assessment (UoA) Information"]
[]
[null,null,null,null,null,null,null,null,null,"UoA Name:",null,null,null,{"$f":"'Assessment Information'!C40","v":0}]
[null,null,null,null,null,null,null,null,null,"Contact Name:",null,null,null,{"$f":"'Assessment Information'!C42","v":0}]
[null,null,null,null,null,null,null,null,null,"Contact Information:",null,null,null,{"$f":"'Assessment Information'!C44","v":0}]
[null,null,null,null,null,null,null,"Fishery Improvement Project ID:",null,null,null,null,null,{"$f":"IF('Assessment Information'!C46=\"Yes\",'Assessment Information'!C48,IF('Assessment Information'!C46=\"No\",\"NA\",0))","v":0}]
[null,null,null,null,null,null,null,"Fishery Improvement Project Name:",null,null,null,null,"Fishery Improvement Project Name:",{"$f":"'Assessment Information'!C47","v":0}]
[]
[null,null,null,null,null,null,null,null,null,"Assessment Information:"]
[]
[null,null,null,null,null,null,null,null,null,"Lead Assessor:",null,null,null,{"$f":"'Assessment Information'!C8","v":0}]
[null,null,null,null,null,null,null,null,null,"Assessor Organization:",null,null,"Assessor Organization:",{"$f":"'Assessment Information'!C11","v":0}]
[null,null,null,null,null,null,null,null,null,"Assessment Start Date:",null,null,null,{"$f":"'Assessment Information'!C19","v":"00:00:00"}]
[null,null,null,null,null,null,null,null,null,"Assessment End Date:",null,null,null,{"$f":"'Assessment Information'!C20","v":"00:00:00"}]
[]
[]
[]
[]
[]
[]
[]
[]
[]
[]
[]
[]
[]
[]
[]
[]
[]
[]
[]
[]
[]
[null,null,null,null,null,null,null,"Unit of Assessment Information Summary"]
[null,null,null,null,null,null,null,null,"UoA Description & Other Information:"]
[null,null,null,null,null,null,null,null,{"$f":"'Assessment Information'!C39","v":0}]
[]
[null,null,null,null,null,null,null,"Worker/Fisher/Farmer Summary:"]
[null,null,null,null,null,null,null,null,null,null,null,null,"Total number of individuals in UoA scope:",{"$f":"SUM(K98:K99)","v":0}]
[]
[]
[]
[]
[]
[]
[]
[]
[]
[]
[]
[]
[]
[]
[]
[]
[null,null,null,null,null,null,null,null,"Male",null,{"$f":"'Assessment Information'!D82+'Assessment Information'!D84+'Assessment Information'!D113+'Assessment Information'!D115+'Assessment Information'!D141+'Assessment Information'!D143","v":0},null,"Fishing",null,{"$f":"SUM('Assessment Information'!D82:D85)","v":0},null,"Permanent",null,{"$f":"'Assessment Information'!D82+'Assessment Information'!D83+'Assessment Information'!D113+'Assessment Information'!D114+'Assessment Information'!D141+'Assessment Information'!D142","v":0},null,"Local",null,{"$f":"SUM(K98:K99)-W99","v":0}]
[null,null,null,null,null,null,null,null,"Female",null,{"$f":"'Assessment Information'!D83+'Assessment Information'!D85+'Assessment Information'!D114+'Assessment Information'!D116+'Assessment Information'!D142+'Assessment Information'!D144","v":0},null,"Aquaculture",null,{"$f":"SUM('Assessment Information'!D113:D116)","v":0},null,"Seasonal",null,{"$f":"'Assessment Information'!D84+'Assessment Information'!D85+'Assessment Information'!D115+'Assessment Information'!D116+'Assessment Information'!D143+'Assessment Information'!D144","v":0},null,"Migrant",null,{"$f":"SUM('Assessment Information'!G88:G97,'Assessment Information'!G119:G128,'Assessment Information'!G147:G156)","v":0}]
[null,null,null,null,null,null,null,null,null,null,null,null,"Processing",null,{"$f":"SUM('Assessment Information'!D141:D144)","v":0}]
[]
[null,null,null,null,null,null,null,null,null,"Production in scope:",null,null,{"$f":"'Assessment Information'!C59","v":0}]
[]
[null,null,null,null,null,null,null,"Production Information:"]
[null,null,null,null,null,null,null,null,null,"Wild-Capture Fishing Information:"]
[null,null,null,null,null,null,null,null,"Description of the fishery:"]
[null,null,null,null,null,null,null,null,{"$f":"'Assessment Information'!C62","v":0}]
[]
[null,null,null,null,null,null,null,null,null,null,null,null,null,null,"Species:",{"$f":"IF(OR('Assessment Information'!$C$59:$F$59=\"Wild-Capture Fishing\",'Assessment Information'!$C$59:$F$59=\"Wild-Capture Fishing, Processing\"),'Assessment Information'!C63,IF(OR('Assessment Information'!$C$59:$F$59=\"Aquaculture\",'Assessment Information'!$C$59:$F$59=\"Aquaculture, Processing\"),\"NA\",0))","v":0}]
[null,null,null,null,null,null,null,null,null,null,null,null,null,null,"Gear type(s):",{"$f":"IF(OR('Assessment Information'!$C$59:$F$59=\"Wild-Capture Fishing\",'Assessment Information'!$C$59:$F$59=\"Wild-Capture Fishing, Processing\"),'Assessment Information'!C64,IF(OR('Assessment Information'!$C$59:$F$59=\"Aquaculture\",'Assessment Information'!$C$59:$F$59=\"Aquaculture, Processing\"),\"NA\",0))","v":0}]
[null,null,null,null,null,null,null,null,null,null,null,null,null,null,"Number of Vessels:",{"$f":"IF(OR('Assessment Information'!$C$59:$F$59=\"Wild-Capture Fishing\",'Assessment Information'!$C$59:$F$59=\"Wild-Capture Fishing, Processing\"),'Assessment Information'!C65,IF(OR('Assessment Information'!$C$59:$F$59=\"Aquaculture\",'Assessment Information'!$C$59:$F$59=\"Aquaculture, Processing\"),\"NA\",0))","v":0}]
[null,null,null,null,null,null,null,null,null,null,null,null,null,null,"FAO Major Fishing Area(s):",{"$f":"IF(OR('Assessment Information'!$C$59:$F$59=\"Wild-Capture Fishing\",'Assessment Information'!$C$59:$F$59=\"Wild-Capture Fishing, Processing\"),'Assessment Information'!C66,IF(OR('Assessment Information'!$C$59:$F$59=\"Aquaculture\",'Assessment Information'!$C$59:$F$59=\"Aquaculture, Processing\"),\"NA\",0))","v":0}]
[null,null,null,null,null,null,null,null,null,null,null,null,null,null,"Exclusive Economic Zone(s):",{"$f":"IF(OR('Assessment Information'!$C$59:$F$59=\"Wild-Capture Fishing\",'Assessment Information'!$C$59:$F$59=\"Wild-Capture Fishing, Processing\"),'Assessment Information'!C67,IF(OR('Assessment Information'!$C$59:$F$59=\"Aquaculture\",'Assessment Information'!$C$59:$F$59=\"Aquaculture, Processing\"),\"NA\",0))","v":0}]
[null,null,null,null,null,null,null,null,null,null,null,null,null,null,"Flag State of Vessels:",{"$f":"IF(OR('Assessment Information'!$C$59:$F$59=\"Wild-Capture Fishing\",'Assessment Information'!$C$59:$F$59=\"Wild-Capture Fishing, Processing\"),'Assessment Information'!C68,IF(OR('Assessment Information'!$C$59:$F$59=\"Aquaculture\",'Assessment Information'!$C$59:$F$59=\"Aquaculture, Processing\"),\"NA\",0))","v":0}]
[null,null,null,null,null,null,null,null,null,"Regional Fisheries Management Organization (when applicable):",null,null,null,null,null,{"$f":"IF(OR('Assessment Information'!$C$59:$F$59=\"Wild-Capture Fishing\",'Assessment Information'!$C$59:$F$59=\"Wild-Capture Fishing, Processing\"),'Assessment Information'!C69,IF(OR('Assessment Information'!$C$59:$F$59=\"Aquaculture\",'Assessment Information'!$C$59:$F$59=\"Aquaculture, Processing\"),\"NA\",0))","v":0}]
[null,null,null,null,null,null,null,null,null,null,null,null,null,null,"High Seas Name (when applicable):",{"$f":"IF(OR('Assessment Information'!$C$59:$F$59=\"Wild-Capture Fishing\",'Assessment Information'!$C$59:$F$59=\"Wild-Capture Fishing, Processing\"),'Assessment Information'!C70,IF(OR('Assessment Information'!$C$59:$F$59=\"Aquaculture\",'Assessment Information'!$C$59:$F$59=\"Aquaculture, Processing\"),\"NA\",0))","v":0}]
[null,null,null,null,null,null,null,null,null,null,null,null,null,null,"Estimated total landings in previous year (metric tons):",{"$f":"IF(OR('Assessment Information'!$C$59:$F$59=\"Wild-Capture Fishing\",'Assessment Information'!$C$59:$F$59=\"Wild-Capture Fishing, Processing\"),'Assessment Information'!C71,IF(OR('Assessment Information'!$C$59:$F$59=\"Aquaculture\",'Assessment Information'!$C$59:$F$59=\"Aquaculture, Processing\"),\"NA\",0))","v":0}]
[null,null,null,null,null,null,null,null,null,null,null,null,null,null,"Average length of time at sea (days):",{"$f":"IF(OR('Assessment Information'!$C$59:$F$59=\"Wild-Capture Fishing\",'Assessment Information'!$C$59:$F$59=\"Wild-Capture Fishing, Processing\"),'Assessment Information'!C72,IF(OR('Assessment Information'!$C$59:$F$59=\"Aquaculture\",'Assessment Information'!$C$59:$F$59=\"Aquaculture, Processing\"),\"NA\",0))","v":0}]
[null,null,null,null,null,null,null,null,null,null,null,null,null,null,"Landing site(s) name:",{"$f":"IF(OR('Assessment Information'!$C$59:$F$59=\"Wild-Capture Fishing\",'Assessment Information'!$C$59:$F$59=\"Wild-Capture Fishing, Processing\"),'Assessment Information'!C75,IF(OR('Assessment Information'!$C$59:$F$59=\"Aquaculture\",'Assessment Information'!$C$59:$F$59=\"Aquaculture, Processing\"),\"NA\",0))","v":0}]
[null,null,null,null,null,null,null,null,null,null,null,null,null,null,"Landing site(s) GPS coordinates:",{"$f":"IF(OR('Assessment Information'!$C$59:$F$59=\"Wild-Capture Fishing\",'Assessment Information'!$C$59:$F$59=\"Wild-Capture Fishing, Processing\"),'Assessment Information'!C76,IF(OR('Assessment Information'!$C$59:$F$59=\"Aquaculture\",'Assessment Information'!$C$59:$F$59=\"Aquaculture, Processing\"),\"NA\",0))","v":0}]
[null,null,null,null,null,null,null,null,null,null,null,null,null,null,"Landing site(s) Address:",{"$f":"IF(OR('Assessment Information'!$C$59:$F$59=\"Wild-Capture Fishing\",'Assessment Information'!$C$59:$F$59=\"Wild-Capture Fishing, Processing\"),'Assessment Information'!C77,IF(OR('Assessment Information'!$C$59:$F$59=\"Aquaculture\",'Assessment Information'!$C$59:$F$59=\"Aquaculture, Processing\"),\"NA\",0))","v":0}]
[null,null,null,null,null,null,null,null,null,null,null,null,null,null,"City:",{"$f":"IF(OR('Assessment Information'!$C$59:$F$59=\"Wild-Capture Fishing\",'Assessment Information'!$C$59:$F$59=\"Wild-Capture Fishing, Processing\"),'Assessment Information'!C78,IF(OR('Assessment Information'!$C$59:$F$59=\"Aquaculture\",'Assessment Information'!$C$59:$F$59=\"Aquaculture, Processing\"),\"NA\",0))","v":0}]
[null,null,null,null,null,null,null,null,null,null,null,null,null,null,"Province:",{"$f":"IF(OR('Assessment Information'!$C$59:$F$59=\"Wild-Capture Fishing\",'Assessment Information'!$C$59:$F$59=\"Wild-Capture Fishing, Processing\"),'Assessment Information'!C79,IF(OR('Assessment Information'!$C$59:$F$59=\"Aquaculture\",'Assessment Information'!$C$59:$F$59=\"Aquaculture, Processing\"),\"NA\",0))","v":0}]
[null,null,null,null,null,null,null,null,null,null,null,null,null,null,"Country:",{"$f":"IF(OR('Assessment Information'!$C$59:$F$59=\"Wild-Capture Fishing\",'Assessment Information'!$C$59:$F$59=\"Wild-Capture Fishing, Processing\"),'Assessment Information'!C80,IF(OR('Assessment Information'!$C$59:$F$59=\"Aquaculture\",'Assessment Information'!$C$59:$F$59=\"Aquaculture, Processing\"),\"NA\",0))","v":0}]
[]
[null,null,null,null,null,null,null,null,null,"Aquaculture Information:"]
[null,null,null,null,null,null,null,null,"Description of Aquaculture Production:"]
[null,null,null,null,null,null,null,null,{"$f":"'Assessment Information'!C100","v":0}]
[]
[null,null,null,null,null,null,null,null,null,null,null,null,null,null,"Site Name:",{"$f":"IF(OR('Assessment Information'!$C$59:$F$59=\"Wild-Capture Fishing\",'Assessment Information'!$C$59:$F$59=\"Wild-Capture Fishing, Processing\"),\"NA\",IF(OR('Assessment Information'!$C$59:$F$59=\"Aquaculture\",'Assessment Information'!$C$59:$F$59=\"Aquaculture, Processing\"),'Assessment Information'!C101,0))","v":0}]
[null,null,null,null,null,null,null,null,null,null,null,null,null,null,"GPS Cooridinates:",{"$f":"IF(OR('Assessment Information'!$C$59:$F$59=\"Wild-Capture Fishing\",'Assessment Information'!$C$59:$F$59=\"Wild-Capture Fishing, Processing\"),\"NA\",IF(OR('Assessment Information'!$C$59:$F$59=\"Aquaculture\",'Assessment Information'!$C$59:$F$59=\"Aquaculture, Processing\"),'Assessment Information'!C102,0))","v":0}]
[null,null,null,null,null,null,null,null,null,null,null,null,null,null,"Address:",{"$f":"IF(OR('Assessment Information'!$C$59:$F$59=\"Wild-Capture Fishing\",'Assessment Information'!$C$59:$F$59=\"Wild-Capture Fishing, Processing\"),\"NA\",IF(OR('Assessment Information'!$C$59:$F$59=\"Aquaculture\",'Assessment Information'!$C$59:$F$59=\"Aquaculture, Processing\"),'Assessment Information'!C103,0))","v":0}]
[null,null,null,null,null,null,null,null,null,null,null,null,null,null,"City:",{"$f":"IF(OR('Assessment Information'!$C$59:$F$59=\"Wild-Capture Fishing\",'Assessment Information'!$C$59:$F$59=\"Wild-Capture Fishing, Processing\"),\"NA\",IF(OR('Assessment Information'!$C$59:$F$59=\"Aquaculture\",'Assessment Information'!$C$59:$F$59=\"Aquaculture, Processing\"),'Assessment Information'!C104,0))","v":0}]
[null,null,null,null,null,null,null,null,null,null,null,null,null,null,"Province:",{"$f":"IF(OR('Assessment Information'!$C$59:$F$59=\"Wild-Capture Fishing\",'Assessment Information'!$C$59:$F$59=\"Wild-Capture Fishing, Processing\"),\"NA\",IF(OR('Assessment Information'!$C$59:$F$59=\"Aquaculture\",'Assessment Information'!$C$59:$F$59=\"Aquaculture, Processing\"),'Assessment Information'!C105,0))","v":0}]
[null,null,null,null,null,null,null,null,null,null,null,null,null,null,"Country:",{"$f":"IF(OR('Assessment Information'!$C$59:$F$59=\"Wild-Capture Fishing\",'Assessment Information'!$C$59:$F$59=\"Wild-Capture Fishing, Processing\"),\"NA\",IF(OR('Assessment Information'!$C$59:$F$59=\"Aquaculture\",'Assessment Information'!$C$59:$F$59=\"Aquaculture, Processing\"),'Assessment Information'!C106,0))","v":0}]
[null,null,null,null,null,null,null,null,null,null,null,null,null,null,"Species:",{"$f":"IF(OR('Assessment Information'!$C$59:$F$59=\"Wild-Capture Fishing\",'Assessment Information'!$C$59:$F$59=\"Wild-Capture Fishing, Processing\"),\"NA\",IF(OR('Assessment Information'!$C$59:$F$59=\"Aquaculture\",'Assessment Information'!$C$59:$F$59=\"Aquaculture, Processing\"),'Assessment Information'!C107,0))","v":0}]
[null,null,null,null,null,null,null,null,null,null,null,null,null,null,"Production type (RAS, pond, etc.):",{"$f":"IF(OR('Assessment Information'!$C$59:$F$59=\"Wild-Capture Fishing\",'Assessment Information'!$C$59:$F$59=\"Wild-Capture Fishing, Processing\"),\"NA\",IF(OR('Assessment Information'!$C$59:$F$59=\"Aquaculture\",'Assessment Information'!$C$59:$F$59=\"Aquaculture, Processing\"),'Assessment Information'!C110,))","v":0}]
[null,null,null,null,null,null,null,null,null,null,null,null,null,null,"Production area (ha):",{"$f":"IF(OR('Assessment Information'!$C$59:$F$59=\"Wild-Capture Fishing\",'Assessment Information'!$C$59:$F$59=\"Wild-Capture Fishing, Processing\"),\"NA\",IF(OR('Assessment Information'!$C$59:$F$59=\"Aquaculture\",'Assessment Information'!$C$59:$F$59=\"Aquaculture, Processing\"),'Assessment Information'!C108,))","v":0}]
[null,null,null,null,null,null,null,null,null,null,null,null,null,null,"Annual Production Volume (metric tons):",{"$f":"IF(OR('Assessment Information'!$C$59:$F$59=\"Wild-Capture Fishing\",'Assessment Information'!$C$59:$F$59=\"Wild-Capture Fishing, Processing\"),\"NA\",IF(OR('Assessment Information'!$C$59:$F$59=\"Aquaculture\",'Assessment Information'!$C$59:$F$59=\"Aquaculture, Processing\"),'Assessment Information'!C109,))","v":0}]
[]
[]
[]
[null,null,null,null,null,null,null,null,null,"Processing Information:"]
[null,null,null,null,null,null,null,null,"Description of processing activity:"]
[null,null,null,null,null,null,null,null,{"$f":"'Assessment Information'!C131","v":0}]
[]
[null,null,null,null,null,null,null,null,null,null,null,null,null,null,"Site Name:",{"$f":"IF(OR('Assessment Information'!$C$59=\"Wild-Capture Fishing, Processing\",'Assessment Information'!$C$59=\"Aquaculture, Processing\",'Assessment Information'!$C$59=\"Processing\"),'Assessment Information'!C132,\"NA\")","v":"NA"}]
[null,null,null,null,null,null,null,null,null,null,null,null,null,null,"GPS Cooridinates:",{"$f":"IF(OR('Assessment Information'!$C$59=\"Wild-Capture Fishing, Processing\",'Assessment Information'!$C$59=\"Aquaculture, Processing\",'Assessment Information'!$C$59=\"Processing\"),'Assessment Information'!C133,\"NA\")","v":"NA"}]
[null,null,null,null,null,null,null,null,null,null,null,null,null,null,"Address:",{"$f":"IF(OR('Assessment Information'!$C$59=\"Wild-Capture Fishing, Processing\",'Assessment Information'!$C$59=\"Aquaculture, Processing\",'Assessment Information'!$C$59=\"Processing\"),'Assessment Information'!C134,\"NA\")","v":"NA"}]
[null,null,null,null,null,null,null,null,null,null,null,null,null,null,"City:",{"$f":"IF(OR('Assessment Information'!$C$59=\"Wild-Capture Fishing, Processing\",'Assessment Information'!$C$59=\"Aquaculture, Processing\",'Assessment Information'!$C$59=\"Processing\"),'Assessment Information'!C135,\"NA\")","v":"NA"}]
[null,null,null,null,null,null,null,null,null,null,null,null,null,null,"Province:",{"$f":"IF(OR('Assessment Information'!$C$59=\"Wild-Capture Fishing, Processing\",'Assessment Information'!$C$59=\"Aquaculture, Processing\",'Assessment Information'!$C$59=\"Processing\"),'Assessment Information'!C136,\"NA\")","v":"NA"}]
[null,null,null,null,null,null,null,null,null,null,null,null,null,null,"Country:",{"$f":"IF(OR('Assessment Information'!$C$59=\"Wild-Capture Fishing, Processing\",'Assessment Information'!$C$59=\"Aquaculture, Processing\",'Assessment Information'!$C$59=\"Processing\"),'Assessment Information'!C137,\"NA\")","v":"NA"}]
[null,null,null,null,null,null,null,null,null,null,null,null,null,null,"Total site size:",{"$f":"IF(OR('Assessment Information'!$C$59=\"Wild-Capture Fishing, Processing\",'Assessment Information'!$C$59=\"Aquaculture, Processing\",'Assessment Information'!$C$59=\"Processing\"),'Assessment Information'!C138,\"NA\")","v":"NA"}]
[null,null,null,null,null,null,null,null,null,null,null,null,null,null,"Number of buildings on site:",{"$f":"IF(OR('Assessment Information'!$C$59=\"Wild-Capture Fishing, Processing\",'Assessment Information'!$C$59=\"Aquaculture, Processing\",'Assessment Information'!$C$59=\"Processing\"),'Assessment Information'!C139,\"NA\")","v":"NA"}]
[null,null,null,null,null,null,null,"UoA Certification or Standards"]
[null,null,null,null,null,null,null,null,null,null,null,null,null,"Marine Stewardship Council:",{"$f":"IF('Assessment Information'!D49=\"Y\",\"X\",\"\")","v":""},null,null,null,null,null,"Seafood Task Force:",{"$f":"IF('Assessment Information'!D54=\"Y\",\"X\",\"\")","v":""}]
[null,null,null,null,null,null,null,null,null,null,null,null,null,"Aquaculture Stewardship Council:",{"$f":"IF('Assessment Information'!D50=\"Y\",\"X\",\"\")","v":""},null,null,null,null,null,"Thai Union:",{"$f":"IF('Assessment Information'!D55=\"Y\",\"X\",\"\")","v":""}]
[null,null,null,null,null,null,null,null,null,null,null,null,null,"Fair Trade USA Capture Fisheries Standard:",{"$f":"IF('Assessment Information'!D51=\"Y\",\"X\",\"\")","v":""},null,null,null,null,null,"Best Aquaculture Practices (BAP):",{"$f":"IF('Assessment Information'!D56=\"Y\",\"X\",\"\")","v":""}]
[null,null,null,null,null,null,null,null,null,null,null,null,null,"Responsible Fishing Vessel Standard:",{"$f":"IF('Assessment Information'!D52=\"Y\",\"X\",\"\")","v":""},null,"Other Certifications or Standards (please specify):"]
[null,null,null,null,null,null,null,null,null,null,null,null,null,"AENOR Atun de Pesca:",{"$f":"IF('Assessment Information'!D53=\"Y\",\"X\",\"\")","v":""},null,{"$f":"'Assessment Information'!C57","v":0}]
[null,null,null,null,null,null,null,"Assessment Information Summary"]
[]
[null,null,null,null,null,null,null,"Assessor / Assessment Team Information"]
[null,null,null,null,null,null,null,null,null,null,null,null,null,"Name of Lead Assessor:",{"$f":"'Assessment Information'!C8","v":0}]
[null,null,null,null,null,null,null,null,null,null,null,null,null,"Lead Assessor Job Title:",{"$f":"'Assessment Information'!C9","v":0}]
[null,null,null,null,null,null,null,null,null,null,null,null,null,"Other Assessor(s) on Assessment Team:",{"$f":"'Assessment Information'!C10","v":0}]
[null,null,null,null,null,null,null,null,null,null,null,null,null,"Assessor Organization:",{"$f":"'Assessment Information'!C11","v":0}]
[null,null,null,null,null,null,null,null,null,null,null,null,null,"Lead Assessor Email:",{"$f":"'Assessment Information'!C12","v":0}]
[null,null,null,null,null,null,null,null,null,null,null,null,null,"Lead Assessor Phone:",{"$f":"'Assessment Information'!C13","v":0}]
[null,null,null,null,null,null,null,null,"Assessor(s) qualifications / accreditations:"]
[]
[null,null,null,null,null,null,null,null,"Experience",null,null,null,null,"Qualifications"]
[null,null,null,null,null,null,null,null,"Social assessment/auditing experience",null,null,null,null,{"$f":"'Assessment Information'!C15","v":0}]
[null,null,null,null,null,null,null,null,"Fishery/Aquaculture experience",null,null,null,null,{"$f":"'Assessment Information'!C16","v":0}]
[null,null,null,null,null,null,null,null,"Language proficiency",null,null,null,null,{"$f":"'Assessment Information'!C17","v":0}]
[]
[null,null,null,null,null,null,null,"Assessment Sampling Information"]
[null,null,null,null,null,null,null,null,null,null,null,null,null,"Sampling method:",{"$f":"'Assessment Information'!C27","v":0}]
[null,null,null,null,null,null,null,null,null,null,null,null,null,"Sampling method source:",{"$f":"'Assessment Information'!C28","v":0}]
[null,null,null,null,null,null,null,null,null,null,null,null,null,"Total number of interviews:",{"$f":"'Assessment Information'!C29","v":0}]
[null,null,null,null,null,null,null,null,null,null,null,null,null,"Total number of vessels inspected:",{"$f":"'Assessment Information'!C30","v":0}]
[null,null,null,null,null,null,null,null,null,null,null,null,null,"Percentage of individuals interviewed:",{"$f":"IFERROR(O180/N81,\"-%\")","v":"-%"}]
[null,null,null,null,null,null,null,null,null,null,null,null,null,"Percentage of vessels inspected:",{"$f":"IFERROR(O181/'Assessment Information'!C65,\"-%\")","v":"-%"}]
[]
[]
[null,null,null,null,null,null,null,null,null,null,null,null,null,"Primary data collection methods:","Focused Interviews:",null,null,null,{"$f":"IF('Assessment Information'!D31=\"Y\",\"X\",\"\")","v":""}]
[null,null,null,null,null,null,null,null,null,null,null,null,null,null,"Group Interviews:",null,null,null,{"$f":"IF('Assessment Information'!D32=\"Y\",\"X\",\"\")","v":""}]
[null,null,null,null,null,null,null,null,null,null,null,null,null,null,"Surveys:",null,null,null,{"$f":"IF('Assessment Information'!D33=\"Y\",\"X\",\"\")","v":""}]
[null,null,null,null,null,null,null,null,null,null,null,null,null,null,"Record Review:",null,null,null,{"$f":"IF('Assessment Information'!D34=\"Y\",\"X\",\"\")","v":""}]
[null,null,null,null,null,null,null,null,null,null,null,null,null,null,"Site Observation:",null,null,null,{"$f":"IF('Assessment Information'!D35=\"Y\",\"X\",\"\")","v":""}]
[null,null,null,null,null,null,null,null,null,null,null,null,null,null,"Other:",null,null,null,{"$f":"IF('Assessment Information'!D36=\"Y\",\"X\",\"\")","v":""}]
[null,null,null,null,null,null,null,"Specify any other primary data collection methods in the space provided:",null,null,null,null,null,null,{"$f":"'Assessment Information'!C37","v":0}]
[]
[]
[null,null,null,null,null,null,null,"Assessment Executive Summary"]
[]
[null,null,null,null,null,null,null,null,null,{"$f":"IF(J216=\"LOW\",\"▼\",\"\")","v":"▼"},{"$f":"IF(J216=\"MEDIUM\",\"▼\",\"\")","v":""},{"$f":"IF(J216=\"HIGH\",\"▼\",\"\")","v":""},null,null,{"$f":"IF(O216=\"LOW\",\"▼\",\"\")","v":"▼"},{"$f":"IF(O216=\"MEDIUM\",\"▼\",\"\")","v":""},{"$f":"IF(O216=\"HIGH\",\"▼\",\"\")","v":""},null,null,{"$f":"IF(T216=\"LOW\",\"▼\",\"\")","v":"▼"},{"$f":"IF(T216=\"MEDIUM\",\"▼\",\"\")","v":""},{"$f":"IF(T216=\"HIGH\",\"▼\",\"\")","v":""}]
[]
[]
[]
[]
[]
[]
[]
[]
[]
[]
[]
[]
[]
[]
[]
[]
[null,null,null,null,null,null,null,null,null,null,"Score",null,null,null,null,"Score",null,null,null,null,"Score"]
[null,null,null,null,null,null,null,null,null,null,{"$f":"'Summary & Results'!K36","v":1},null,null,null,null,{"$f":"'Summary & Results'!O36","v":1},null,null,null,null,{"$f":"'Summary & Results'!S36","v":1}]
[null,null,null,null,null,null,null,null,null,{"$f":"'Summary & Results'!K37","v":"LOW"},null,null,null,null,{"$f":"'Summary & Results'!O37","v":"LOW"},null,null,null,null,{"$f":"'Summary & Results'!S37","v":"LOW"}]
[]
[null,null,null,null,null,null,null,"PRINCIPLE",null,null,"COMPONENT",null,null,"PI","PERFORMANCE INDICATOR",null,null,null,null,null,null,null,"RISK"]
[null,"Score","NA","Medium","Low","Not Assessed",null,"1\nProtect human rights, dignity, and access to resources",null,null,"1.1\nHuman and labor rights",null,null,"1.1.1"," Abuse and harrassment ",null,null,null,null,null,null,null,{"$f":"'Summary & Results'!U42","v":"LOW"}]
[null,{"$f":"'Summary & Results'!A42","v":3},{"$f":"'Summary & Results'!B42","v":0},{"$f":"'Summary & Results'!C42","v":0},{"$f":"'Summary & Results'!D42","v":0},{"$f":"'Summary & Results'!E42","v":0},null,null,null,null,null,null,null,"1.1.2a"," Human trafficking and forced labor",null,null,null,null,null,null,null,{"$f":"'Summary & Results'!U43","v":"LOW"}]
[null,{"$f":"'Summary & Results'!A43","v":3},{"$f":"'Summary & Results'!B43","v":0},{"$f":"'Summary & Results'!C43","v":0},{"$f":"'Summary & Results'!D43","v":0},{"$f":"'Summary & Results'!E43","v":0},null,null,null,null,null,null,null,"1.1.2b"," Debt bandage in small-scale fisheries",null,null,null,null,null,null,null,{"$f":"'Summary & Results'!U44","v":"LOW"}]
[null,{"$f":"'Summary & Results'!A44","v":3},{"$f":"'Summary & Results'!B44","v":0},{"$f":"'Summary & Results'!C44","v":0},{"$f":"'Summary & Results'!D44","v":0},{"$f":"'Summary & Results'!E44","v":0},null,null,null,null,null,null,null,"1.1.3"," Child Labor",null,null,null,null,null,null,null,{"$f":"'Summary & Results'!U45","v":"LOW"}]
[null,{"$f":"'Summary & Results'!A45","v":3},{"$f":"'Summary & Results'!B45","v":0},{"$f":"'Summary & Results'!C45","v":0},{"$f":"'Summary & Results'!D45","v":0},{"$f":"'Summary & Results'!E45","v":0},null,null,null,null,null,null,null,"1.1.4"," Freedom of Association and Collective Bargaining",null,null,null,null,null,null,null,{"$f":"'Summary & Results'!U46","v":"LOW"}]
[null,{"$f":"'Summary & Results'!A46","v":3},{"$f":"'Summary & Results'!B46","v":0},{"$f":"'Summary & Results'!C46","v":0},{"$f":"'Summary & Results'!D46","v":0},{"$f":"'Summary & Results'!E46","v":0},null,null,null,null,null,null,null,"1.1.5"," Earnings and Benefits",null,null,null,null,null,null,null,{"$f":"'Summary & Results'!U47","v":"LOW"}]
[null,{"$f":"'Summary & Results'!A47","v":3},{"$f":"'Summary & Results'!B47","v":0},{"$f":"'Summary & Results'!C47","v":0},{"$f":"'Summary & Results'!D47","v":0},{"$f":"'Summary & Results'!E47","v":0},null,null,null,null,null,null,null,"1.1.6"," Adequate rest",null,null,null,null,null,null,null,{"$f":"'Summary & Results'!U48","v":"LOW"}]
[null,{"$f":"'Summary & Results'!A48","v":3},{"$f":"'Summary & Results'!B48","v":0},{"$f":"'Summary & Results'!C48","v":0},{"$f":"'Summary & Results'!D48","v":0},{"$f":"'Summary & Results'!E48","v":0},null,null,null,null,null,null,null,"1.1.7a"," Access to basic services for worker housing/live-aboard vessels",null,null,null,null,null,null,null,{"$f":"'Summary & Results'!U49","v":"LOW"}]
[null,{"$f":"'Summary & Results'!A49","v":3},{"$f":"'Summary & Results'!B49","v":0},{"$f":"'Summary & Results'!C49","v":0},{"$f":"'Summary & Results'!D49","v":0},{"$f":"'Summary & Results'!E49","v":0},null,null,null,null,null,null,null,"1.1.7b"," Access to basic services (Small-scale fishing communities)",null,null,null,null,null,null,null,{"$f":"'Summary & Results'!U50","v":"LOW"}]
[null,{"$f":"'Summary & Results'!A50","v":3},{"$f":"'Summary & Results'!B50","v":0},{"$f":"'Summary & Results'!C50","v":0},{"$f":"'Summary & Results'!D50","v":0},{"$f":"'Summary & Results'!E50","v":0},null,null,null,null,null,null,null,"1.1.8"," Occupational safety",null,null,null,null,null,null,null,{"$f":"'Summary & Results'!U51","v":"LOW"}]
[null,{"$f":"'Summary & Results'!A51","v":3},{"$f":"'Summary & Results'!B51","v":0},{"$f":"'Summary & Results'!C51","v":0},{"$f":"'Summary & Results'!D51","v":0},{"$f":"'Summary & Results'!E51","v":0},null,null,null,null,null,null,null,"1.1.9"," Medical response",null,null,null,null,null,null,null,{"$f":"'Summary & Results'!U52","v":"LOW"}]
[null,{"$f":"'Summary & Results'!A52","v":3},{"$f":"'Summary & Results'!B52","v":0},{"$f":"'Summary & Results'!C52","v":0},{"$f":"'Summary & Results'!D52","v":0},{"$f":"'Summary & Results'!E52","v":0},null,null,null,null,"1.2\nAccess rights",null,null,"1.2.1"," Customary use rights",null,null,null,null,null,null,null,{"$f":"'Summary & Results'!U53","v":"LOW"}]
[null,{"$f":"'Summary & Results'!#REF!","v":{"$error":"#REF!"}},{"$f":"'Summary & Results'!#REF!","v":{"$error":"#REF!"}},{"$f":"'Summary & Results'!#REF!","v":{"$error":"#REF!"}},{"$f":"'Summary & Results'!#REF!","v":{"$error":"#REF!"}},{"$f":"'Summary & Results'!#REF!","v":{"$error":"#REF!"}},null,null,null,null,null,null,null,"1.2.2"," Corporate responsibility and transparency",null,null,null,null,null,null,null,{"$f":"'Summary & Results'!U54","v":"LOW"}]
[null,{"$f":"'Summary & Results'!A53","v":3},{"$f":"'Summary & Results'!B53","v":0},{"$f":"'Summary & Results'!C53","v":0},{"$f":"'Summary & Results'!D53","v":0},{"$f":"'Summary & Results'!E53","v":0},null,"2\nEnsure equality and equitable opportunity to benefit",null,null,"2.1\nEquality",null,null,"2.1.1"," Grievance reporting and access to remedy",null,null,null,null,null,null,null,{"$f":"'Summary & Results'!U55","v":"LOW"}]
[null,{"$f":"'Summary & Results'!A54","v":3},{"$f":"'Summary & Results'!B54","v":0},{"$f":"'Summary & Results'!C54","v":0},{"$f":"'Summary & Results'!D54","v":0},{"$f":"'Summary & Results'!E54","v":0},null,null,null,null,null,null,null,"2.1.2"," Stakeholder Participation and Collaborative Management",null,null,null,null,null,null,null,{"$f":"'Summary & Results'!U56","v":"LOW"}]
[null,{"$f":"'Summary & Results'!#REF!","v":{"$error":"#REF!"}},{"$f":"'Summary & Results'!#REF!","v":{"$error":"#REF!"}},{"$f":"'Summary & Results'!#REF!","v":{"$error":"#REF!"}},{"$f":"'Summary & Results'!#REF!","v":{"$error":"#REF!"}},{"$f":"'Summary & Results'!#REF!","v":{"$error":"#REF!"}},null,null,null,null,"2.2\nEquity",null,null,"2.2.1"," Equitable opportunity to benefit",null,null,null,null,null,null,null,{"$f":"'Summary & Results'!U57","v":"LOW"}]
[null,{"$f":"'Summary & Results'!#REF!","v":{"$error":"#REF!"}},{"$f":"'Summary & Results'!#REF!","v":{"$error":"#REF!"}},{"$f":"'Summary & Results'!#REF!","v":{"$error":"#REF!"}},{"$f":"'Summary & Results'!#REF!","v":{"$error":"#REF!"}},{"$f":"'Summary & Results'!#REF!","v":{"$error":"#REF!"}},null,null,null,null,null,null,null,"2.2.2"," Discrimination",null,null,null,null,null,null,null,{"$f":"'Summary & Results'!U58","v":"LOW"}]
[null,{"$f":"'Summary & Results'!A57","v":3},{"$f":"'Summary & Results'!B57","v":0},{"$f":"'Summary & Results'!C57","v":0},{"$f":"'Summary & Results'!D57","v":0},{"$f":"'Summary & Results'!E57","v":0},null,"3\nImprove food, nutrition, and livelihood security",null,null,"3.1\nFood and nutrition security",null,null,"3.1.1a"," Food and nutrition security impacts of industrial fisheries",null,null,null,null,null,null,null,{"$f":"'Summary & Results'!U59","v":"LOW"}]
[null,{"$f":"'Summary & Results'!A58","v":3},{"$f":"'Summary & Results'!B58","v":0},{"$f":"'Summary & Results'!C58","v":0},{"$f":"'Summary & Results'!D58","v":0},{"$f":"'Summary & Results'!E58","v":0},null,null,null,null,null,null,null,"3.1.1b"," Food and nutrition security for small-scale fishing communities",null,null,null,null,null,null,null,{"$f":"'Summary & Results'!U60","v":"LOW"}]
[null,{"$f":"'Summary & Results'!#REF!","v":{"$error":"#REF!"}},{"$f":"'Summary & Results'!#REF!","v":{"$error":"#REF!"}},{"$f":"'Summary & Results'!#REF!","v":{"$error":"#REF!"}},{"$f":"'Summary & Results'!#REF!","v":{"$error":"#REF!"}},{"$f":"'Summary & Results'!#REF!","v":{"$error":"#REF!"}},null,null,null,null,null,null,null,"3.1.2"," Healthcare",null,null,null,null,null,null,null,{"$f":"'Summary & Results'!U61","v":"LOW"}]
[null,null,null,null,null,null,null,null,null,null,null,null,null,"3.1.3","Education",null,null,null,null,null,null,null,{"$f":"'Summary & Results'!U62","v":"LOW"}]
[null,{"$f":"'Summary & Results'!A60","v":3},{"$f":"'Summary & Results'!B60","v":0},{"$f":"'Summary & Results'!C60","v":0},{"$f":"'Summary & Results'!D60","v":0},{"$f":"'Summary & Results'!E60","v":0},null,null,null,null,"3.2\nLivelihood security",null,null,"3.2.1"," Benefits to and within community",null,null,null,null,null,null,null,{"$f":"'Summary & Results'!U63","v":"LOW"}]
[null,{"$f":"'Summary & Results'!A61","v":3},{"$f":"'Summary & Results'!B61","v":0},{"$f":"'Summary & Results'!C61","v":0},{"$f":"'Summary & Results'!D61","v":0},{"$f":"'Summary & Results'!E61","v":0},null,null,null,null,null,null,null,"3.2.2"," Economic value retention",null,null,null,null,null,null,null,{"$f":"'Summary & Results'!U64","v":"LOW"}]
[null,null,null,null,null,null,null,null,null,null,null,null,null,"3.2.3"," Long-term profitability and future workforce",null,null,null,null,null,null,null,{"$f":"'Summary & Results'!U65","v":"LOW"}]
[null,{"$f":"'Summary & Results'!A63","v":3},{"$f":"'Summary & Results'!B63","v":0},{"$f":"'Summary & Results'!C63","v":0},{"$f":"'Summary & Results'!D63","v":0},{"$f":"'Summary & Results'!E63","v":0},null,null,null,null,null,null,null,"3.2.4"," Economic flexibility and autonomy",null,null,null,null,null,null,null,{"$f":"'Summary & Results'!U66","v":"LOW"}]
[null,{"$f":"'Summary & Results'!A64","v":3},{"$f":"'Summary & Results'!B64","v":0},{"$f":"'Summary & Results'!C64","v":0},{"$f":"'Summary & Results'!D64","v":0},{"$f":"'Summary & Results'!E64","v":0},null,null,null,null,null,null,null,"3.2.5"," Livelihood security ",null,null,null,null,null,null,null,{"$f":"'Summary & Results'!U67","v":"LOW"}]
[null,{"$f":"'Summary & Results'!A65","v":3},{"$f":"'Summary & Results'!B65","v":0},{"$f":"'Summary & Results'!C65","v":0},{"$f":"'Summary & Results'!D65","v":0},{"$f":"'Summary & Results'!E65","v":0},null,null,null,null,null,null,null,"3.2.6"," Economic fuel efficiency",null,null,null,null,null,null,null,{"$f":"'Summary & Results'!U68","v":"LOW"}]
[null,null,null,null,null,null,null,"Complete Assessment Findings"]
[]
[null,null,null,null,null,null,null,"PRINCIPLE 1. Protect human rights, dignity, access to resources"]
[null,null,null,null,null,null,null,"1.1 Fundamental human rights respected, labor rights protected"]
[null,null,null,null,null,null,null,"1.1.1 Abuse and harrassment "]
[]
[null,null,null,null,null,null,null,"Indicator Risk Result:",null,null,{"$f":"W219","v":"LOW"}]
[null,null,null,null,null,null,null,null,"Justification:"]
[null,null,null,null,null,null,null,null,{"$f":"'Principle 1'!A6","v":0}]
[]
[null,null,null,null,null,null,null,null,"SRA PISG #",null,"FIP?",null,"Performance Indicator Guidepost",null,null,null,null,null,null,null,null,null,"Finding"]
[null,null,null,null,null,null,null,"MEDIUM RISK","SRA1.1.1 S1",null,"FIP Requirement",null,"There are reliable and transparent data available on abuse and harassment.",null,null,null,null,null,null,null,null,null,{"$f":"'Principle 1'!F7","v":0}]
[null,null,null,null,null,null,null,null,"SRA1.1.1 S2",null,"FIP Requirement",null,"Migrant status is not used as a threat or tool of coercion.",null,null,null,null,null,null,null,null,null,{"$f":"'Principle 1'!F8","v":0}]
[null,null,null,null,null,null,null,null,"SRA1.1.1 S3",null,"FIP Requirement",null,"There is no corporal punishment, mental or physical coercion, verbal abuse (significantly different than colloquial banter), genderbased violence, sexual harassment, or any other form of harassment, including excessive or abusive disciplinary action, and fisheries observers (when present) are able to conduct duties free from assault, harassment, interference, or bribery,",null,null,null,null,null,null,null,null,null,{"$f":"'Principle 1'!F9","v":0}]
[null,null,null,null,null,null,null,null,"SRA1.1.1 S4",null,"FIP Requirement",null,"Workers/fishers/farmers’ families or community members are not threatened by employers, buyers, labor brokers, or organized crime.",null,null,null,null,null,null,null,null,null,{"$f":"'Principle 1'!F10","v":0}]
[null,null,null,null,null,null,null,null,"SRA1.1.1 S5",null,"FIP Requirement",null,"There is no forced drug use, or labor and/or product is not compensated for with drugs.",null,null,null,null,null,null,null,null,null,{"$f":"'Principle 1'!F11","v":0}]
[null,null,null,null,null,null,null,"LOW RISK","SRA1.1.1 S6",null,"FIP Requirement",null,"There is a written policy publicly disclosed, posted in all languages with special accommodations for illiteracy that prohibits physical abuse, bullying, and sexual harassment, with a disciplinary procedure in place to address cases of harassment, and discipline commensurate to the actions.",null,null,null,null,null,null,null,null,null,{"$f":"'Principle 1'!F12","v":0}]
[null,null,null,null,null,null,null,null,"SRA1.1.1 S7",null,"FIP Requirement",null,"Managers and workers/fishers/farmers are aware of and trained on the harassment policy. ",null,null,null,null,null,null,null,null,null,{"$f":"'Principle 1'!F13","v":0}]
[null,null,null,null,null,null,null,null,"SRA1.1.1 S8",null,"FIP Requirement",null,"Workers have grievance procedures to report harassment and do not face retaliation for using them.",null,null,null,null,null,null,null,null,null,{"$f":"'Principle 1'!F14","v":0}]
[null,null,null,null,null,null,null,null,"1.1.2a  Human trafficking and forced labor"]
[]
[null,null,null,null,null,null,null,"Indicator Risk Result:",null,null,{"$f":"W220","v":"LOW"}]
[null,null,null,null,null,null,null,null,"Justification:"]
[null,null,null,null,null,null,null,null,{"$f":"'Principle 1'!A17","v":0}]
[]
[null,null,null,null,null,null,null,null,"SRA PISG #",null,"FIP?",null,"Performance Indicator Guidepost",null,null,null,null,null,null,null,null,null,"Finding"]
[null,null,null,null,null,null,null,"MEDIUM RISK","SRA1.1.2a S1",null,"FIP Requirement",null,"There are reliable and transparent data available on human trafficking and forced labor.",null,null,null,null,null,null,null,null,null,{"$f":"'Principle 1'!F18","v":0}]
[null,null,null,null,null,null,null,null,"SRA1.1.2a S2",null,"FIP Requirement",null,"The farm/fishery has a policy prohibiting the use of forced, bonded, indentured, prison labor, slavery or trafficked labor,",null,null,null,null,null,null,null,null,null,{"$f":"'Principle 1'!F19","v":0}]
[null,null,null,null,null,null,null,null,"SRA1.1.2a S3",null,"FIP Requirement",null,"There are one or more indicators of forced labor in the fishery/ farm (abuse of vulnerability, deception, restriction of movement, isolation, physical and sexual violence, intimidation or threats, retention of identity documents, withholding of wages, debt bondage, abusive living and working conditions, excessive overtime), but the farm/fishery is actively implementing, tracking progress on, and reporting on a remediation plan, \nOR\nThere are no indicators of forced labor in the fishery/farm (abuse of\nvulnerability, deception, restriction of movement, isolation, physical and\nsexual violence, intimidation or threats, retention of identity documents,\nwithholding of wages, debt bondage, abusive living and working\nconditions, excessive overtime), but the farm/fishery does not have a\nrobust system in place to monitor, remediate, and report on both its own\nperformance on recruitment and labor practice, and when applicable, the\nperformance and compliance of labor recruiters.",null,null,null,null,null,null,null,null,null,{"$f":"'Principle 1'!F20","v":0}]
[null,null,null,null,null,null,null,"LOW RISK","SRA1.1.2a S4",null,"FIP Requirement",null,"The farm/fishery has a policy prohibiting the use of forced, bonded, indentured, prison labor, slavery or trafficked labor, and managers and workers/fishers/farmers are aware of and trained on the forced labour policy with access to effective grievance procedures for reporting violations of the policy,",null,null,null,null,null,null,null,null,null,{"$f":"'Principle 1'!F21","v":0}]
[null,null,null,null,null,null,null,null,"SRA1.1.2a S5",null,"FIP Requirement",null,"There are no indicators of forced labor in the fishery/farm (abuse of vulnerability, deception, restriction of movement, isolation, physical and sexual violence, intimidation or threats, retention of identity documents, withholding of wages, debt bondage, abusive living and working conditions, excessive overtime), and the fishery/farm has a robust operational system in place to monitor, remediate, and report on both its own performance on recruitment and labor practice, and when applicable, the performance and compliance of labor recruiters,",null,null,null,null,null,null,null,null,null,{"$f":"'Principle 1'!F22","v":0}]
[null,null,null,null,null,null,null,null,"SRA1.1.2a S6",null,"FIP Requirement",null,"All workers/fishers/farmers, including domestic and foreign migrants, have written contracts in a language they understand, with extra provisions made for illiterate workers, so that their rights and terms of recruitment and employment are clearly understood,",null,null,null,null,null,null,null,null,null,{"$f":"'Principle 1'!F23","v":0}]
[null,null,null,null,null,null,null,null,"SRA1.1.2a S7",null,"FIP Requirement",null,"Workers/fishers/farmers do not pay any recruitment fees (document/visa/passport fees excluded).",null,null,null,null,null,null,null,null,null,{"$f":"'Principle 1'!F24","v":0}]
[null,null,null,null,null,null,null,null,"SRA1.1.2a S8",null,"FIP Requirement",null,"Workers/fishers/farmers are paid at least monthly.",null,null,null,null,null,null,null,null,null,{"$f":"'Principle 1'!F25","v":0}]
[null,null,null,null,null,null,null,null,"1.1.2b Debt bandage in small-scale fisheries"]
[]
[null,null,null,null,null,null,null,"Indicator Risk Result:",null,null,{"$f":"W221","v":"LOW"}]
[null,null,null,null,null,null,null,null,"Justification:"]
[null,null,null,null,null,null,null,null,{"$f":"'Principle 1'!A28","v":0}]
[]
[null,null,null,null,null,null,null,null,"SRA PISG #",null,"FIP?",null,"Performance Indicator Guidepost",null,null,null,null,null,null,null,null,null,"Finding"]
[null,null,null,null,null,null,null,"MEDIUM RISK","SRA1.1.2b S1",null,"FIP Requirement",null,"There are reliable and transparent data available on debt bondage.",null,null,null,null,null,null,null,null,null,{"$f":"'Principle 1'!F29","v":0}]
[null,null,null,null,null,null,null,null,"SRA1.1.2b S2",null,"FIP Requirement",null,"The fisher/farmer is paying off debt to the cooperative, association, buyer, or permit holder (for equipment, permit fees, fuel costs, ice, etc.), but most of their income is kept and a smaller percentage is used to pay back their debts.",null,null,null,null,null,null,null,null,null,{"$f":"'Principle 1'!F30","v":0}]
[null,null,null,null,null,null,null,null,"SRA1.1.2b S3",null,"FIP Requirement",null,"The fisher/farmer is paying off debt to the cooperative, association, buyer, or permit holder (for equipment, permit fees, fuel costs, ice, etc.) and their debt has remained stable or decreased over time proportional to their income (or share of catch).",null,null,null,null,null,null,null,null,null,{"$f":"'Principle 1'!F31","v":0}]
[null,null,null,null,null,null,null,null,"SRA1.1.2b S4",null,"FIP Requirement",null,"The fisher/farmer is allowed to witness the product being weighed or graded to calculate their income.",null,null,null,null,null,null,null,null,null,{"$f":"'Principle 1'!F32","v":0}]
[null,null,null,null,null,null,null,"LOW RISK","SRA1.1.2b S5",null,"FIP Requirement",null,"The fisher/farmer is paying off debt to the cooperative, association, buyer, or permit holder (for equipment, permit fees, fuel costs, ice, etc.), but a minimal percentage of their income is used to pay back their debts, and their debt has decreased over time proportional to their income.",null,null,null,null,null,null,null,null,null,{"$f":"'Principle 1'!F34","v":0}]
[null,null,null,null,null,null,null,null,"SRA1.1.2b S6",null,"FIP Requirement",null,"The fisher/farmer is NOT paying off debt to the cooperative, association, buyer, or permit holder.",null,null,null,null,null,null,null,null,null,{"$f":"'Principle 1'!#REF!","v":{"$error":"#REF!"}}]
[null,null,null,null,null,null,null,null,"1.1.3: Child Labor"]
[]
[null,null,null,null,null,null,null,"Indicator Risk Result:",null,null,{"$f":"W222","v":"LOW"}]
[null,null,null,null,null,null,null,null,"Justification:"]
[null,null,null,null,null,null,null,null,{"$f":"'Principle 1'!A37","v":0}]
[]
[null,null,null,null,null,null,null,null,"SRA PISG #",null,"FIP?",null,"Performance Indicator Guidepost",null,null,null,null,null,null,null,null,null,"Finding"]
[null,null,null,null,null,null,null,"MEDIUM RISK","SRA1.1.3 S1",null,"FIP Requirement",null,"There are reliable and transparent data available on child labor,",null,null,null,null,null,null,null,null,null,{"$f":"'Principle 1'!F38","v":0}]
[null,null,null,null,null,null,null,null,"SRA1.1.3 S2",null,"FIP Requirement",null,"There is no evidence of hazardous child labor,",null,null,null,null,null,null,null,null,null,{"$f":"'Principle 1'!F39","v":0}]
[null,null,null,null,null,null,null,null,"SRA1.1.3 S3",null,"FIP Requirement",null,"Children below the legal age of employment are not employed as waged workers, ",null,null,null,null,null,null,null,null,null,{"$f":"'Principle 1'!F40","v":0}]
[null,null,null,null,null,null,null,null,"SRA1.1.3 S4",null,"FIP Requirement",null,"Children below the legal age of employment work alongside family members only if this does not interfere with schooling, and on tasks which do not harm their health, safety or morals, and do not work at night,",null,null,null,null,null,null,null,null,null,{"$f":"'Principle 1'!F41","v":0}]
[null,null,null,null,null,null,null,null,"SRA1.1.3 S5",null,"FIP Requirement",null,"There is no evidence of hazardous child labor, children below the legal age of employment are not paid as waged workers, nor does the work interfere with their schooling or pose risk to their health and safety, BUT the farm or fishery does not have a child labor policy that ensures the best interests of the child and that the child does not end up in a worse form of employment.",null,null,null,null,null,null,null,null,null,{"$f":"'Principle 1'!F42","v":0}]
[null,null,null,null,null,null,null,"LOW RISK","SRA1.1.3 S6",null,"FIP Requirement",null,"There is no evidence of hazardous child labor, children below the legal age of employment are not paid as waged workers, nor does the work alongside family members interfere with their schooling or pose risk to their health and safety, and the farm or fishery has a child labor policy that ensures the best interests of the child and that the child does not end up in a worse form of employment.",null,null,null,null,null,null,null,null,null,{"$f":"'Principle 1'!F43","v":0}]
[null,null,null,null,null,null,null,null,"1.1.4: Freedom of Association and Collective Bargaining"]
[]
[null,null,null,null,null,null,null,"Indicator Risk Result:",null,null,{"$f":"W223","v":"LOW"}]
[null,null,null,null,null,null,null,null,"Justification:"]
[null,null,null,null,null,null,null,null,{"$f":"'Principle 1'!A46","v":0}]
[]
[null,null,null,null,null,null,null,null,"SRA PISG #",null,"FIP?",null,"Performance Indicator Guidepost",null,null,null,null,null,null,null,null,null,"Finding"]
[null,null,null,null,null,null,null,"MEDIUM RISK","SRA 1.1.4 S1",null,"FIP Requirement",null,"There are reliable and transparent data available on freedom of association and collective bargaining,",null,null,null,null,null,null,null,null,null,{"$f":"'Principle 1'!F47","v":0}]
[null,null,null,null,null,null,null,null,"SRA 1.1.4 S2",null,"FIP Requirement",null,"Workers/fishers/farmers are free to form worker organizations, including trade unions, to advocate for and protect their rights, and have the right to decide their own structure, policies, programs, priorities, etc. without employer interference.",null,null,null,null,null,null,null,null,null,{"$f":"'Principle 1'!F48","v":0}]
[null,null,null,null,null,null,null,null,"SRA 1.1.4 S3",null,"FIP Requirement",null,"There are national laws protecting collective workers’ rights (including cooperatives) which are upheld and respected, or the country restricts trade union rights but the company/fishery/farm has provided a way for workers/fishers/farmers to organize and express grievances, ",null,null,null,null,null,null,null,null,null,{"$f":"'Principle 1'!F49","v":0}]
[null,null,null,null,null,null,null,null,"SRA 1.1.4 S4",null,"FIP Requirement",null,"Human rights defenders are not actively suppressed and there is no recent record of litigation by employers against human rights defenders,",null,null,null,null,null,null,null,null,null,{"$f":"'Principle 1'!F50","v":0}]
[null,null,null,null,null,null,null,null,"SRA 1.1.4 S5",null,"FIP Requirement",null,"There is no discrimination against workers/fishers/farmers who are members or leaders of organizations, unions or cooperatives, and workers/fishers/farmers are not dismissed for exercising their right to strike.",null,null,null,null,null,null,null,null,null,{"$f":"'Principle 1'!F51","v":0}]
[null,null,null,null,null,null,null,"LOW RISK","SRA1.1.4 S6",null,"FIP Requirement",null,"The employer or association has a written policy or by-laws (shared with workers/fishers/farmers in relevant languages and with provisions for illiteracy) that they respect the rights of workers/fishers/farmers to Freedom of Association and Collective Bargaining,",null,null,null,null,null,null,null,null,null,{"$f":"'Principle 1'!F52","v":0}]
[null,null,null,null,null,null,null,null,"SRA1.1.4 S7",null,"FIP Requirement",null,"Workers/fishers/farmers are trained by workers’ organizations on their rights to organize and bargain collectively,",null,null,null,null,null,null,null,null,null,{"$f":"'Principle 1'!F53","v":0}]
[null,null,null,null,null,null,null,null,"SRA1.1.4 S8",null,"FIP Requirement",null,"Women participate in unions or cooperatives commensurate with their representation in the workforce.",null,null,null,null,null,null,null,null,null,{"$f":"'Principle 1'!F54","v":0}]
[null,null,null,null,null,null,null,null,"1.1.5: Earnings and Benefits"]
[]
[null,null,null,null,null,null,null,"Indicator Risk Result:",null,null,{"$f":"W224","v":"LOW"}]
[null,null,null,null,null,null,null,null,"Justification:"]
[null,null,null,null,null,null,null,null,{"$f":"'Principle 1'!A57","v":0}]
[]
[null,null,null,null,null,null,null,null,"SRA PISG #",null,"FIP?",null,"Performance Indicator Guidepost",null,null,null,null,null,null,null,null,null,"Finding"]
[null,null,null,null,null,null,null,"MEDIUM RISK","SRA1.1.5 S1",null,"FIP Requirement",null,"There are reliable and transparent data available on earnings and benefits,",null,null,null,null,null,null,null,null,null,{"$f":"'Principle 1'!F58","v":0}]
[null,null,null,null,null,null,null,null,"SRA1.1.5 S2",null,"FIP Requirement",null,"Minimum legal requirements for income and benefits are properly defined in domestic labor law,",null,null,null,null,null,null,null,null,null,{"$f":"'Principle 1'!F59","v":0}]
[null,null,null,null,null,null,null,null,"SRA1.1.5 S3",null,"FIP Requirement",null,"Domestic law may not recognize equal remuneration for work of equal value for men and women, however, wages paid to workers/fishers/farmers do reflect equal remuneration,",null,null,null,null,null,null,null,null,null,{"$f":"'Principle 1'!F60","v":0}]
[null,null,null,null,null,null,null,null,"SRA1.1.5 S4",null,"FIP Requirement",null,"Wage levels and benefits meet the minimum legal requirements according to domestic labor laws of workplace, farm, or country of flagged vessel,",null,null,null,null,null,null,null,null,null,{"$f":"'Principle 1'!F61","v":0}]
[null,null,null,null,null,null,null,null,"SRA1.1.5 S5",null,"FIP Requirement",null,"Overtime wages are paid in accordance with minimum legal requirements, based on domestic labor laws of workplace, farm, or country of flagged vessel,",null,null,null,null,null,null,null,null,null,{"$f":"'Principle 1'!F62","v":0}]
[null,null,null,null,null,null,null,null,"SRA1.1.5 S6",null,"FIP Requirement",null,"Wages paid to workers/fishers/farmers are what was promised at the time of employment, are not withheld as a form of discipline, do not contain illegal deductions, are paid on time or directly to the worker/fisher/farmer, and workers/fishers/farmers do not go longer than one month without being paid,",null,null,null,null,null,null,null,null,null,{"$f":"'Principle 1'!F63","v":0}]
[null,null,null,null,null,null,null,null,"SRA1.1.5 S7",null,"FIP Requirement",null,"Employers legally contract employees, ",null,null,null,null,null,null,null,null,null,{"$f":"'Principle 1'!F64","v":0}]
[null,null,null,null,null,null,null,null,"SRA1.1.5 S8",null,"FIP Requirement",null,"Workers/fishers/farmers are aware of how their earnings or deductions are calculated and their rights to benefits, are allowed to witness procedures used to determine earnings (weighing, grading), and only sign contracts they understand with provisions for different languages or illiteracy,",null,null,null,null,null,null,null,null,null,{"$f":"'Principle 1'!F65","v":0}]
[null,null,null,null,null,null,null,null,"SRA1.1.5 S9",null,"FIP Requirement",null,"Workers/fishers/farmers receive wage slips with deductions itemized or written receipts.",null,null,null,null,null,null,null,null,null,{"$f":"'Principle 1'!F66","v":0}]
[null,null,null,null,null,null,null,"LOW RISK","SRA1.1.5 S10",null,"FIP Requirement",null,"Wages or earnings are higher than minimum legal wages or meet living wage levels (includes being able to provide for family, save, or invest), and benefits are provided beyond legal minimums,",null,null,null,null,null,null,null,null,null,{"$f":"'Principle 1'!F67","v":0}]
[null,null,null,null,null,null,null,null,"SRA1.1.5 S11",null,"FIP Requirement",null,"Both domestic law and practices and policies of the fishery/farm uphold the principles of equal remuneration for men and women,",null,null,null,null,null,null,null,null,null,{"$f":"'Principle 1'!F68","v":0}]
[null,null,null,null,null,null,null,null,"SRA1.1.5 S12",null,"FIP Requirement",null,"The employer and workers discuss how they can improve wages and productivity in mutually beneficial ways,",null,null,null,null,null,null,null,null,null,{"$f":"'Principle 1'!F69","v":0}]
[null,null,null,null,null,null,null,null,"SRA1.1.5 S13",null,"FIP Requirement",null,"There are written contracts between employer and employees in a language employees understand with provisions for illiterate workers. ",null,null,null,null,null,null,null,null,null,{"$f":"'Principle 1'!F70","v":0}]
[null,null,null,null,null,null,null,null,"1.1.6: Adequate rest"]
[]
[null,null,null,null,null,null,null,"Indicator Risk Result:",null,null,{"$f":"W225","v":"LOW"}]
[null,null,null,null,null,null,null,null,"Justification:"]
[null,null,null,null,null,null,null,null,{"$f":"'Principle 1'!A73","v":0}]
[]
[null,null,null,null,null,null,null,null,"SRA PISG #",null,"FIP?",null,"Performance Indicator Guidepost",null,null,null,null,null,null,null,null,null,"Finding"]
[null,null,null,null,null,null,null,"MEDIUM RISK","SRA1.1.6 S1",null,"FIP Requirement",null,"There are reliable and transparent data available on workers/fishers/farmers’ hours,",null,null,null,null,null,null,null,null,null,{"$f":"'Principle 1'!F74","v":0}]
[null,null,null,null,null,null,null,null,"SRA1.1.6 S2",null,"FIP Requirement",null,"There is a mechanism in place for workers/fishers/farmers to record hours worked,",null,null,null,null,null,null,null,null,null,{"$f":"'Principle 1'!F75","v":0}]
[null,null,null,null,null,null,null,null,"SRA1.1.6 S3",null,"FIP Requirement",null,"Working hours meet the domestic legal minimum requirements, and overtime hours are paid at a premium as required by law,",null,null,null,null,null,null,null,null,null,{"$f":"'Principle 1'!F76","v":0}]
[null,null,null,null,null,null,null,null,"SRA1.1.6 S4",null,"FIP Requirement",null,"Workers have at least 10 hours of rest in a 24 hour period and at least 77 hours in a 7 day period,",null,null,null,null,null,null,null,null,null,{"$f":"'Principle 1'!F77","v":0}]
[null,null,null,null,null,null,null,null,"SRA1.1.6 S5",null,"FIP Requirement",null,"Overtime is voluntary.",null,null,null,null,null,null,null,null,null,{"$f":"'Principle 1'!F78","v":0}]
[null,null,null,null,null,null,null,"LOW RISK","SRA1.1.6 S6",null,"FIP Requirement",null,"There is an independent, third party oversight mechanism for verification of working hours,",null,null,null,null,null,null,null,null,null,{"$f":"'Principle 1'!F79","v":0}]
[null,null,null,null,null,null,null,null,"SRA1.1.6 S7",null,"FIP Requirement",null,"Onshore workers do not work more than 48 hours/week even if the law permits more,",null,null,null,null,null,null,null,null,null,{"$f":"'Principle 1'!F80","v":0}]
[null,null,null,null,null,null,null,null,"SRA1.1.6 S8",null,"FIP Requirement",null,"Onshore workers do not work more than 6 days/week,",null,null,null,null,null,null,null,null,null,{"$f":"'Principle 1'!F81","v":0}]
[null,null,null,null,null,null,null,null,"SRA1.1.6 S9",null,"FIP Requirement",null,"The workplace/farm/fishery has systems in place to anticipate peak production needs and seasonal variation to ensure that excessive overtime is not required,  ",null,null,null,null,null,null,null,null,null,{"$f":"'Principle 1'!F82","v":0}]
[null,null,null,null,null,null,null,null,"SRA1.1.6 S10",null,"FIP Requirement",null,"The workplace/fishery/farm has paid pre- and post-natal maternity/paternity leave with adequate compensation.",null,null,null,null,null,null,null,null,null,{"$f":"'Principle 1'!F83","v":0}]
[null,null,null,null,null,null,null,null,"1.1.7a: Access to basic services for worker housing/live-aboard vessels"]
[]
[null,null,null,null,null,null,null,"Indicator Risk Result:",null,null,{"$f":"W226","v":"LOW"}]
[null,null,null,null,null,null,null,null,"Justification:"]
[null,null,null,null,null,null,null,null,{"$f":"'Principle 1'!A86","v":0}]
[]
[null,null,null,null,null,null,null,null,"SRA PISG #",null,"FIP?",null,"Performance Indicator Guidepost",null,null,null,null,null,null,null,null,null,"Finding"]
[null,null,null,null,null,null,null,"MEDIUM RISK","SRA1.1.7a S1",null,"FIP Requirement",null,"There are reliable and transparent data available on access to basic services,",null,null,null,null,null,null,null,null,null,{"$f":"'Principle 1'!F87","v":0}]
[null,null,null,null,null,null,null,null,"SRA1.1.7a S2",null,"FIP Requirement",null,"Housing and sleeping quarters have adequate fire prevention and air ventilation, meet legal requirements, and meet reasonable levels of safety, decency, hygiene, and comfort,",null,null,null,null,null,null,null,null,null,{"$f":"'Principle 1'!F88","v":0}]
[null,null,null,null,null,null,null,null,"SRA1.1.7a S3",null,"FIP Requirement",null,"When present, fisheries observers are provided adequate accommodation appropriate to the size of the monitored entity and equivalent to that of the officers of the monitored entity,",null,null,null,null,null,null,null,null,null,{"$f":"'Principle 1'!F89","v":0}]
[null,null,null,null,null,null,null,null,"SRA1.1.7a S4",null,"FIP Requirement",null,"Sanitary facilities (appropriate to vessel size) with adequate privacy are provided,",null,null,null,null,null,null,null,null,null,{"$f":"'Principle 1'!F90","v":0}]
[null,null,null,null,null,null,null,null,"SRA1.1.7a S5",null,"FIP Requirement",null,"Potable water is accessible to workers,",null,null,null,null,null,null,null,null,null,{"$f":"'Principle 1'!F91","v":0}]
[null,null,null,null,null,null,null,null,"SRA1.1.7a S6",null,"FIP Requirement",null,"Workers/fishers living on site or on board have access to adequate and sanitary food at fair prices.",null,null,null,null,null,null,null,null,null,{"$f":"'Principle 1'!F92","v":0}]
[null,null,null,null,null,null,null,"LOW RISK","SRA1.1.7a S7",null,"FIP Requirement",null,"There are separate sanitary facilities for men and women, or sanitary facilities can be locked from the inside, ",null,null,null,null,null,null,null,null,null,{"$f":"'Principle 1'!F93","v":0}]
[null,null,null,null,null,null,null,null,"SRA1.1.7a S8",null,"FIP Requirement",null,"There are separate sleeping quarters for men and women, or if there is one sleeping space, men and women have separate bunks, or share same bunk during different shifts,",null,null,null,null,null,null,null,null,null,{"$f":"'Principle 1'!F94","v":0}]
[null,null,null,null,null,null,null,null,"SRA1.1.7a S9",null,"FIP Requirement",null,"Sleeping quarters or sanitation facilities cannot be locked from the outside (restriction of movement is prevented),",null,null,null,null,null,null,null,null,null,{"$f":"'Principle 1'!F95","v":0}]
[null,null,null,null,null,null,null,null,"SRA1.1.7a S10",null,"FIP Requirement",null,"Workers’/fishers’ representatives and management meet regularly to discuss vessel or housing improvements,",null,null,null,null,null,null,null,null,null,{"$f":"'Principle 1'!F96","v":0}]
[null,null,null,null,null,null,null,null,"SRA1.1.7a S11",null,"FIP Requirement",null,"The workplace/fishery/farm provides childcare.",null,null,null,null,null,null,null,null,null,{"$f":"'Principle 1'!F97","v":0}]
[null,null,null,null,null,null,null,null,"1.1.7b: Access to basic services (Small-scale fishing communities)"]
[]
[null,null,null,null,null,null,null,"Indicator Risk Result:",null,null,{"$f":"W227","v":"LOW"}]
[null,null,null,null,null,null,null,null,"Justification:"]
[null,null,null,null,null,null,null,null,{"$f":"'Principle 1'!A100","v":"N/A"}]
[]
[null,null,null,null,null,null,null,null,"SRA PISG #",null,"FIP?",null,"Performance Indicator Guidepost",null,null,null,null,null,null,null,null,null,"Finding"]
[null,null,null,null,null,null,null,"MEDIUM RISK","SRA1.1.7b S1",null,"FIP Requirement",null,"There are reliable and transparent data available on access to basic services,",null,null,null,null,null,null,null,null,null,{"$f":"'Principle 1'!F101","v":0}]
[null,null,null,null,null,null,null,null,"SRA1.1.7b S2",null,"FIP Requirement",null,"There is access to potable water in the community,",null,null,null,null,null,null,null,null,null,{"$f":"'Principle 1'!F102","v":0}]
[null,null,null,null,null,null,null,null,"SRA1.1.7b S3",null,"FIP Requirement",null,"There is access to electricity intermittently,",null,null,null,null,null,null,null,null,null,{"$f":"'Principle 1'!F103","v":0}]
[null,null,null,null,null,null,null,null,"SRA1.1.7b S4",null,"FIP Requirement",null,"There is access to sewage disposal (i.e. sewage containers),",null,null,null,null,null,null,null,null,null,{"$f":"'Principle 1'!F104","v":0}]
[null,null,null,null,null,null,null,null,"SRA1.1.7b S5",null,"FIP Requirement",null,"There is access to waste disposal (i.e. community dump).",null,null,null,null,null,null,null,null,null,{"$f":"'Principle 1'!F105","v":0}]
[null,null,null,null,null,null,null,"LOW RISK","SRA1.1.7b S6",null,"FIP Requirement",null,"There is access to potable water in each household, ",null,null,null,null,null,null,null,null,null,{"$f":"'Principle 1'!F106","v":0}]
[null,null,null,null,null,null,null,null,"SRA1.1.7b S7",null,"FIP Requirement",null,"There is continuous access to electricity,",null,null,null,null,null,null,null,null,null,{"$f":"'Principle 1'!F107","v":0}]
[null,null,null,null,null,null,null,null,"SRA1.1.7b S8",null,"FIP Requirement",null,"There is access to sewage treatment (i.e. community treatment systems)",null,null,null,null,null,null,null,null,null,{"$f":"'Principle 1'!F108","v":0}]
[null,null,null,null,null,null,null,null,"SRA1.1.7b S9",null,"FIP Requirement",null,"There is access to waste management (i.e. garbage collection and sorting of recycled materials).",null,null,null,null,null,null,null,null,null,{"$f":"'Principle 1'!F109","v":0}]
[null,null,null,null,null,null,null,null,"1.1.8: Occupational safety"]
[]
[null,null,null,null,null,null,null,"Indicator Risk Result:",null,null,{"$f":"W228","v":"LOW"}]
[null,null,null,null,null,null,null,null,"Justification:"]
[null,null,null,null,null,null,null,null,{"$f":"'Principle 1'!A112","v":0}]
[]
[null,null,null,null,null,null,null,null,"SRA PISG #",null,"FIP?",null,"Performance Indicator Guidepost",null,null,null,null,null,null,null,null,null,"Finding"]
[null,null,null,null,null,null,null,"MEDIUM RISK","SRA1.1.8 S1",null,"FIP Requirement",null,"There are reliable and transparent data available on occupational safety,",null,null,null,null,null,null,null,null,null,{"$f":"'Principle 1'!F113","v":0}]
[null,null,null,null,null,null,null,null,"SRA1.1.8 S2",null,"FIP Requirement",null,"On large vessels, making long trips, vessels carry a crew list and provide a copy to authorized persons ashore at the time of vessel departure [long trips defined as 3 days],",null,null,null,null,null,null,null,null,null,{"$f":"'Principle 1'!F114","v":0}]
[null,null,null,null,null,null,null,null,"SRA1.1.8 S3",null,"FIP Requirement",null,"Workers/fishers/farmers have access to communication equipment, or there is a radio on board for vessels over 24 meters,",null,null,null,null,null,null,null,null,null,{"$f":"'Principle 1'!F115","v":0}]
[null,null,null,null,null,null,null,null,"SRA1.1.8 S4",null,"FIP Requirement",null,"Adequate personal protective equipment (PPE) (i.e. lifejackets) is provided on board or in the workplace/farm at no cost (unless self-employed),",null,null,null,null,null,null,null,null,null,{"$f":"'Principle 1'!F116","v":0}]
[null,null,null,null,null,null,null,null,"SRA1.1.8 S5",null,"FIP Requirement",null,"Workers/fishers/farmers and managers are trained in health and safety procedures and on proper use of PPE and safe operation of any equipment they use (unless self-employed),",null,null,null,null,null,null,null,null,null,{"$f":"'Principle 1'!F117","v":0}]
[null,null,null,null,null,null,null,null,"SRA1.1.8 S6",null,"FIP Requirement",null,"Vessel/farm/workplace complies with local/national safety and health regulations.",null,null,null,null,null,null,null,null,null,{"$f":"'Principle 1'!F118","v":0}]
[null,null,null,null,null,null,null,"LOW RISK","SRA1.1.8 S7",null,"FIP Requirement",null,"On small vessels (<24 meters), there is a working radio on board,",null,null,null,null,null,null,null,null,null,{"$f":"'Principle 1'!F119","v":0}]
[null,null,null,null,null,null,null,null,"SRA1.1.8 S8",null,"FIP Requirement",null,"Workers/fishers/farmers and managers are trained in health and safety procedures and on proper use of PPE and safe operation of any equipment they use,",null,null,null,null,null,null,null,null,null,{"$f":"'Principle 1'!F120","v":0}]
[null,null,null,null,null,null,null,null,"SRA1.1.8 S9",null,"FIP Requirement",null,"Workplace risks and risk areas are identified in relevant languages with provisions for illiteracy, and workplace accidents are recorded,",null,null,null,null,null,null,null,null,null,{"$f":"'Principle 1'!F121","v":0}]
[null,null,null,null,null,null,null,null,"SRA1.1.8 S10",null,"FIP Requirement",null,"Workplace/fishery/farm has a written health and safety policy, properly implemented, and workers/fishers/farmers are engaged in reviewing and implementing policy,",null,null,null,null,null,null,null,null,null,{"$f":"'Principle 1'!F122","v":0}]
[null,null,null,null,null,null,null,null,"SRA1.1.8 S11",null,"FIP Requirement",null,"Workplace/fishery/farm has a structure or mechanism in place (i.e. occupational health and safety committee), with formal channels of communications established, to discuss and implement protection of workplace health and safety,",null,null,null,null,null,null,null,null,null,{"$f":"'Principle 1'!F123","v":0}]
[null,null,null,null,null,null,null,null,"SRA1.1.8 S12",null,"FIP Requirement",null,"There are special protections for young, pregnant, or other vulnerable workers/fishers/farmers.",null,null,null,null,null,null,null,null,null,{"$f":"'Principle 1'!F124","v":0}]
[null,null,null,null,null,null,null,null,"1.1.9: Medical response"]
[]
[null,null,null,null,null,null,null,"Indicator Risk Result:",null,null,{"$f":"W229","v":"LOW"}]
[null,null,null,null,null,null,null,null,"Justification:"]
[null,null,null,null,null,null,null,null,{"$f":"'Principle 1'!A127","v":0}]
[]
[null,null,null,null,null,null,null,null,"SRA PISG #",null,"FIP?",null,"Performance Indicator Guidepost",null,null,null,null,null,null,null,null,null,"Finding"]
[null,null,null,null,null,null,null,"MEDIUM RISK","SRA1.1.9 S1",null,"FIP Requirement",null,"There are reliable and transparent data available on medical response,",null,null,null,null,null,null,null,null,null,{"$f":"'Principle 1'!F128","v":0}]
[null,null,null,null,null,null,null,null,"SRA1.1.9 S2",null,"FIP Requirement",null,"Adequate medical supplies are available (i.e. there is a first aid kit),",null,null,null,null,null,null,null,null,null,{"$f":"'Principle 1'!F129","v":0}]
[null,null,null,null,null,null,null,null,"SRA1.1.9 S3",null,"FIP Requirement",null,"In factories, farms, or large vessels, there is a trained first aid responder,",null,null,null,null,null,null,null,null,null,{"$f":"'Principle 1'!F130","v":0}]
[null,null,null,null,null,null,null,null,"SRA1.1.9 S4",null,"FIP Requirement",null,"On large vessels, making long trips, fishers have a valid medical certificate attesting to their fitness to work,",null,null,null,null,null,null,null,null,null,{"$f":"'Principle 1'!F131","v":0}]
[null,null,null,null,null,null,null,null,"SRA1.1.9 S5",null,"FIP Requirement",null,"Workers are provided with medical care for workplace injuries and are repatriated if necessary at employer’s expense.",null,null,null,null,null,null,null,null,null,{"$f":"'Principle 1'!F132","v":0}]
[null,null,null,null,null,null,null,"LOW RISK","SRA1.1.9 S6",null,"FIP Requirement",null,"Injuries sustained in the course of work are subject to worker’s compensation, lost time pay, and payment of medical expenses, if not by law, then by employer,",null,null,null,null,null,null,null,null,null,{"$f":"'Principle 1'!F133","v":0}]
[null,null,null,null,null,null,null,null,"SRA1.1.9 S7",null,"FIP Requirement",null,"Workers/fishers/farmers are trained in emergency response and first aid. ",null,null,null,null,null,null,null,null,null,{"$f":"'Principle 1'!F134","v":0}]
[null,null,null,null,null,null,null,null,"1.2 Rights and access to resources are respected and fairly allocated and respectful of collective and indigenous rights"]
[null,null,null,null,null,null,null,null,"1.2.1: Customary use rights"]
[]
[null,null,null,null,null,null,null,"Indicator Risk Result:",null,null,{"$f":"W230","v":"LOW"}]
[null,null,null,null,null,null,null,null,"Justification:"]
[null,null,null,null,null,null,null,null,{"$f":"'Principle 1'!A138","v":0}]
[]
[null,null,null,null,null,null,null,null,"SRA PISG #",null,"FIP?",null,"Performance Indicator Guidepost",null,null,null,null,null,null,null,null,null,"Finding"]
[null,null,null,null,null,null,null,"MEDIUM RISK","SRA1.2.1 S1",null,"FIP Requirement",null,"There are reliable and transparent data available on customary use rights,",null,null,null,null,null,null,null,null,null,{"$f":"'Principle 1'!F139","v":0}]
[null,null,null,null,null,null,null,null,"SRA1.2.1 S2",null,"FIP Requirement",null,"Customary use rights have been mapped out using a participatory stakeholder process,",null,null,null,null,null,null,null,null,null,{"$f":"'Principle 1'!F140","v":0}]
[null,null,null,null,null,null,null,null,"SRA1.2.1 S3",null,"FIP Requirement",null,"The fishery or farm observes the legal and customary rights of local people,",null,null,null,null,null,null,null,null,null,{"$f":"'Principle 1'!F141","v":0}]
[null,null,null,null,null,null,null,null,"SRA1.2.1 S4",null,"FIP Requirement",null,"Fishers are not denied or revoked of fishing rights due to discrimination (e.g. gender, ethnicity, religion, political affiliation) by authorities and/or other communities or entities,",null,null,null,null,null,null,null,null,null,{"$f":"'Principle 1'!F142","v":0}]
[null,null,null,null,null,null,null,null,"SRA1.2.1 S5",null,"FIP Requirement",null,"The farm or fishery is not designated in an area legitimately claimed by communities without their documented Free, Prior, and Informed Consent,",null,null,null,null,null,null,null,null,null,{"$f":"'Principle 1'!F143","v":0}]
[null,null,null,null,null,null,null,null,"SRA1.2.1 S6",null,"FIP Requirement",null,"The farm or fishery understands its impact on customary access to resources, and does not negatively impact adjacent communities, land, and/or water, or restrict access to vital community resources without community approval.",null,null,null,null,null,null,null,null,null,{"$f":"'Principle 1'!F144","v":0}]
[null,null,null,null,null,null,null,"LOW RISK","SRA1.2.1 S7",null,"FIP Requirement",null,"There is an active process to establish a protocol agreement, or there is a protocol agreement in place, with indigenous communities, or communities with customary use rights, using Free, Prior, and Informed Consent,",null,null,null,null,null,null,null,null,null,{"$f":"'Principle 1'!F145","v":0}]
[null,null,null,null,null,null,null,null,"SRA1.2.1 S8",null,"FIP Requirement",null,"Customary resource users are aware of their rights, and are protected under law and can seek recourse within the legal system,",null,null,null,null,null,null,null,null,null,{"$f":"'Principle 1'!F146","v":0}]
[null,null,null,null,null,null,null,null,"SRA1.2.1 S9",null,"FIP Requirement",null,"The fishery or farm is actively mitigating any impacts or conflicts on access to resources for customary users, ",null,null,null,null,null,null,null,null,null,{"$f":"'Principle 1'!F147","v":0}]
[null,null,null,null,null,null,null,null,"SRA1.2.1 S10",null,"FIP Requirement",null,"Communities or people with claims to the resource are strongly involved in management of the resource, and traditional practices and knowledge are incorporated into resource management,",null,null,null,null,null,null,null,null,null,{"$f":"'Principle 1'!F148","v":0}]
[null,null,null,null,null,null,null,null,"SRA1.2.1 S11",null,"FIP Requirement",null,"Special attention is paid to ensure women and disadvantaged groups are included in consultation.",null,null,null,null,null,null,null,null,null,{"$f":"'Principle 1'!F149","v":0}]
[null,null,null,null,null,null,null,null,"1.2.2: Corporate responsibility and transparency"]
[]
[null,null,null,null,null,null,null,"Indicator Risk Result:",null,null,{"$f":"W231","v":"LOW"}]
[null,null,null,null,null,null,null,null,"Justification:"]
[null,null,null,null,null,null,null,null,{"$f":"'Principle 1'!A152","v":0}]
[]
[null,null,null,null,null,null,null,null,"SRA PISG #",null,"FIP?",null,"Performance Indicator Guidepost",null,null,null,null,null,null,null,null,null,"Finding"]
[null,null,null,null,null,null,null,"MEDIUM RISK","1.2.2 S1",null,null,null,"There are reliable and transparent data available on corporate responsibility and transparency,",null,null,null,null,null,null,null,null,null,{"$f":"'Principle 1'!F153","v":0}]
[null,null,null,null,null,null,null,null,"1.2.2 S2",null,null,null,"There are documents demonstrating compliance with all tax laws,",null,null,null,null,null,null,null,null,null,{"$f":"'Principle 1'!F154","v":0}]
[null,null,null,null,null,null,null,null,"1.2.2 S3",null,null,null,"There is no evidence that owners, managers, fishers or farmers pay bribes to public servants to gain access to resources or to avoid compliance with local regulations.",null,null,null,null,null,null,null,null,null,{"$f":"'Principle 1'!F155","v":0}]
[null,null,null,null,null,null,null,null,"1.2.2 S4",null,null,null,"The fishery/farm has a human rights policy in place (appropriate to their size and circumstances to meet their responsibility to respect human rights), and can demonstrate evidentiary compliance with their policy.",null,null,null,null,null,null,null,null,null,{"$f":"'Principle 1'!F156","v":0}]
[null,null,null,null,null,null,null,"LOW RISK","1.2.2 S5",null,null,null,"Farm or fishery publicly discloses their social, economic, and environmental performance,",null,null,null,null,null,null,null,null,null,{"$f":"'Principle 1'!F157","v":0}]
[null,null,null,null,null,null,null,null,"1.2.2 S6",null,null,null,"Farm or fishery is engaged in multi-stakeholder, worker-centered initiatives aiming to improve social performance across the industry,",null,null,null,null,null,null,null,null,null,{"$f":"'Principle 1'!F158","v":0}]
[null,null,null,null,null,null,null,null,"1.2.2 S7",null,null,null,"Financial accounts are regularly reviewed by independent third-party auditors,",null,null,null,null,null,null,null,null,null,{"$f":"'Principle 1'!F159","v":0}]
[null,null,null,null,null,null,null,null,"1.2.2 S8",null,null,null,"Farm or fishery has published social responsibility and environmental policies.",null,null,null,null,null,null,null,null,null,{"$f":"'Principle 1'!F160","v":0}]
[null,null,null,null,null,null,null,null,"1.2.2 S9",null,null,null,"The human rights policy is communicated and training is provided, in a language or medium understandable to all workers and observers on the fishing vessel and other relevant persons who assume the responsibility or duties for the operation of the fishing vessel or its workers.",null,null,null,null,null,null,null,null,null,{"$f":"'Principle 1'!F161","v":0}]
[null,null,null,null,null,null,null,"PRINCIPLE 2. Ensure equality and equitable opportunity to benefit"]
[null,null,null,null,null,null,null,null,"2.1: Recognition, voice, and respectful engagement for all groups, irrespective of gender, ethnicity, culture, political, or socioeconomic status  "]
[null,null,null,null,null,null,null,null,"2.1.1 Grievance reporting and access to remedy"]
[]
[null,null,null,null,null,null,null,"Indicator Risk Result:",null,null,{"$f":"W232","v":"LOW"}]
[null,null,null,null,null,null,null,null,"Justification:"]
[null,null,null,null,null,null,null,null,{"$f":"'Principle 2'!A6","v":0}]
[]
[null,null,null,null,null,null,null,null,"SRA PISG #",null,"FIP?",null,"Performance Indicator Guidepost",null,null,null,null,null,null,null,null,null,"Finding"]
[null,null,null,null,null,null,null,"MEDIUM RISK","SRA2.1.1 S1",null,"FIP Requirement",null,"There are reliable and transparent data available on grievance reporting and access to remedy",null,null,null,null,null,null,null,null,null,{"$f":"'Principle 2'!F7","v":0}]
[null,null,null,null,null,null,null,null,"SRA2.1.1 S2",null,"FIP Requiremet",null,"Workers/fishers/farmers that pertain to a business have knowledge of and access to effective, fair, and confidential grievance mechanisms, or if workers/fisher/farmers are part of a cooperative, association, or customary group, they have knowledge and access to effective and fair grievance mechanisms (according to established protocols and by-laws of transparency, democracy, and equal representation),",null,null,null,null,null,null,null,null,null,{"$f":"'Principle 2'!F8","v":0}]
[null,null,null,null,null,null,null,null,"SRA2.1.1 S3",null,"FIP Requirement",null,"There is no retaliation or prejudice against workers/fishers/farmers who submit grievances, including gender-based prejudice or retaliation. ",null,null,null,null,null,null,null,null,null,{"$f":"'Principle 2'!F9","v":0}]
[null,null,null,null,null,null,null,"LOW RISK","SRA2.1.1 S4",null,"FIP Requirement",null,"Grievance mechanisms are both procedurally and substantively effective at remediation of conflicts and complaints in a time-bound manner with no reoccurring grievances, and these remediation processes (corrective action plans) are publicly disclosed, ",null,null,null,null,null,null,null,null,null,{"$f":"'Principle 2'!F10","v":0}]
[null,null,null,null,null,null,null,null,"SRA2.1.1 S5",null,"FIP Requirement",null,"The grievance procedure includes special consideration for vulnerable populations (e.g. migrant workers, women, ethnic minorities),",null,null,null,null,null,null,null,null,null,{"$f":"'Principle 2'!F11","v":0}]
[null,null,null,null,null,null,null,null,"SRA2.1.1 S6",null,"FIP Requirement",null,"Workers/fishers/farmers have access to third party independent organizations or local/customary governance body that can address grievances and ensure effective representation.",null,null,null,null,null,null,null,null,null,{"$f":"'Principle 2'!F12","v":0}]
[null,null,null,null,null,null,null,null,"2.1.2: Stakeholder Participation and Collaborative Management"]
[]
[null,null,null,null,null,null,null,"Indicator Risk Result:",null,null,{"$f":"W233","v":"LOW"}]
[null,null,null,null,null,null,null,null,"Justification:"]
[null,null,null,null,null,null,null,null,{"$f":"'Principle 2'!A15","v":0}]
[]
[null,null,null,null,null,null,null,null,"SRA PISG #",null,"FIP?",null,"Performance Indicator Guidepost",null,null,null,null,null,null,null,null,null,"Finding"]
[null,null,null,null,null,null,null,"MEDIUM RISK","SRA2.1.2 S1",null,null,null,"There are reliable and transparent data available on stakeholder participation and collaborative management,",null,null,null,null,null,null,null,null,null,{"$f":"'Principle 2'!F16","v":0}]
[null,null,null,null,null,null,null,null,"SRA2.1.2 S2",null,null,null,"There is a mechanism for stakeholder participation or in the fishery/farm management unit,",null,null,null,null,null,null,null,null,null,{"$f":"'Principle 2'!F17","v":0}]
[null,null,null,null,null,null,null,null,"SRA2.1.2 S3",null,null,null,"All affected and relevant stakeholders are represented and no stakeholder groups are excluded based on status, class, gender, ethnicity, etc.,",null,null,null,null,null,null,null,null,null,{"$f":"'Principle 2'!F18","v":0}]
[null,null,null,null,null,null,null,null,"SRA2.1.2 S4",null,null,null,"Stakeholder input is considered and integrated into decision-making. ",null,null,null,null,null,null,null,null,null,{"$f":"'Principle 2'!F19","v":0}]
[null,null,null,null,null,null,null,"LOW RISK","SRA2.1.2 S5",null,null,null,"Decisions are publicly communicated, promoted, and transparent,",null,null,null,null,null,null,null,null,null,{"$f":"'Principle 2'!F20","v":0}]
[null,null,null,null,null,null,null,null,"SRA2.1.2 S6",null,null,null,"Decision-making processes have special consideration provided for disadvantaged and vulnerable groups (i.e. migrant workers, women, ethnic minorities), so that decisions are made by affected stakeholders on equal terms, ",null,null,null,null,null,null,null,null,null,{"$f":"'Principle 2'!F21","v":0}]
[null,null,null,null,null,null,null,null,"SRA2.1.2 S7",null,null,null,"All affected and relevant stakeholders are free to engage in all aspects of fishery/aquaculture governance including decision-making, monitoring, enforcement, and conflict resolution,",null,null,null,null,null,null,null,null,null,{"$f":"'Principle 2'!F22","v":0}]
[null,null,null,null,null,null,null,null,"SRA2.1.2 S8",null,null,null,"Participation and collaborative management between local stakeholders and government is fostered and reinforced by civil society organizations working to protect the interests of relevant stakeholders.",null,null,null,null,null,null,null,null,null,{"$f":"'Principle 2'!F23","v":0}]
[null,null,null,null,null,null,null,null,"2.2: Equitable opportunities to benefit are ensured to all, through the entire supply chain "]
[null,null,null,null,null,null,null,null,"2.2.1: Equitable opportunity to benefit"]
[]
[null,null,null,null,null,null,null,"Indicator Risk Result:",null,null,{"$f":"W234","v":"LOW"}]
[null,null,null,null,null,null,null,null,"Justification:"]
[null,null,null,null,null,null,null,null,{"$f":"'Principle 2'!A27","v":0}]
[]
[null,null,null,null,null,null,null,null,"SRA PISG #",null,"FIP?",null,"Performance Indicator Guidepost",null,null,null,null,null,null,null,null,null,"Finding"]
[null,null,null,null,null,null,null,"MEDIUM RISK","SRA2.2.1 S1",null,null,null,"There are reliable and transparent data available on social equity and equal opportunity to benefit,",null,null,null,null,null,null,null,null,null,{"$f":"'Principle 2'!F28","v":0}]
[null,null,null,null,null,null,null,null,"SRA2.2.1 S2",null,null,null,"There is equal access to or opportunity to benefit from the fishery/farm regardless of gender, ethnicity, religion, sexual orientation, class, migrant status, political affiliation, etc.,\nOR\nThere is not equal access to or opportunity to benefit from the fishery/farm, but a strategy or policy to address inequity is in place.",null,null,null,null,null,null,null,null,null,{"$f":"'Principle 2'!F29","v":0}]
[null,null,null,null,null,null,null,"LOW RISK","SRA2.2.1 S3",null,null,null,"There is evidence of equal access to or opportunity to benefit from the fishery/farm, and marginalized groups are in leadership positions or positions of power,",null,null,null,null,null,null,null,null,null,{"$f":"'Principle 2'!F30","v":0}]
[null,null,null,null,null,null,null,null,"SRA2.2.1 S4",null,null,null,"Gender transformative policies and research programs are in place (i.e. routine data collection of gender disaggregated data).",null,null,null,null,null,null,null,null,null,{"$f":"'Principle 2'!F31","v":0}]
[null,null,null,null,null,null,null,null,"2.2.2: Discrimination"]
[]
[null,null,null,null,null,null,null,"Indicator Risk Result:",null,null,{"$f":"W235","v":"LOW"}]
[null,null,null,null,null,null,null,null,"Justification:"]
[null,null,null,null,null,null,null,null,{"$f":"'Principle 2'!A34","v":0}]
[]
[null,null,null,null,null,null,null,null,"SRA PISG #",null,"FIP?",null,"Performance Indicator Guidepost",null,null,null,null,null,null,null,null,null,"Finding"]
[null,null,null,null,null,null,null,"MEDIUM RISK","SRA2.2.2 S1",null,"FIP Requirement",null,"There are reliable and transparent data available on discrimination in the fishery/farm,",null,null,null,null,null,null,null,null,null,{"$f":"'Principle 2'!F35","v":0}]
[null,null,null,null,null,null,null,null,"SRA2.2.2 S2",null,"FIP Requirement",null,"Workers/fishers/farmers receive equal pay for work of equal value,",null,null,null,null,null,null,null,null,null,{"$f":"'Principle 2'!F36","v":0}]
[null,null,null,null,null,null,null,null,"SRA2.2.2 S3",null,"FIP Requirement",null,"There is no discrimination in recruitment promotion, access to training, access to permits, remuneration, allocation of work, termination of employment, retirement, ability to join unions or cooperatives, or other activities.",null,null,null,null,null,null,null,null,null,{"$f":"'Principle 2'!F37","v":0}]
[null,null,null,null,null,null,null,null,"SRA2.2.2 S4",null,"FIP Requirement",null,"There is no discrimination in access to benefits e.g. health care, savings accounts, insurance, etc.,",null,null,null,null,null,null,null,null,null,{"$f":"'Principle 2'!F38","v":0}]
[null,null,null,null,null,null,null,null,"SRA2.2.2 S5",null,"FIP Requirement",null,"There is no compulsory pregnancy testing for female workers/fishers/farmers.",null,null,null,null,null,null,null,null,null,{"$f":"'Principle 2'!F39","v":0}]
[null,null,null,null,null,null,null,"LOW RISK","SRA2.2.2 S6",null,"FIP Requirement",null,"There is a comprehensive and proactive anti-discrimination policy for the fishery or farm. The policy is implemented through procedures and practices, posted in all languages and visible to all workers,",null,null,null,null,null,null,null,null,null,{"$f":"'Principle 2'!F40","v":0}]
[null,null,null,null,null,null,null,null,"SRA2.2.2 S7",null,"FIP Requirement",null,"Managers and workers/fishers/farmers are aware of and trained on the antidiscrimination policy. ",null,null,null,null,null,null,null,null,null,{"$f":"'Principle 2'!F41","v":0}]
[null,null,null,null,null,null,null,"PRINCIPLE 3. Improve food, nutrition, and livelihood security"]
[null,null,null,null,null,null,null,null,"3.1 Nutritional and sustenance needs of resource-dependent communities are maintained or improved"]
[null,null,null,null,null,null,null,null,"3.1.1a Food and nutrition security impacts of industrial fisheries"]
[]
[null,null,null,null,null,null,null,"Indicator Risk Result:",null,null,{"$f":"W236","v":"LOW"}]
[null,null,null,null,null,null,null,null,"Justification:"]
[null,null,null,null,null,null,null,null,{"$f":"'Principle 3'!A6","v":0}]
[]
[null,null,null,null,null,null,null,null,"SRA PISG #",null,"FIP?",null,"Performance Indicator Guidepost",null,null,null,null,null,null,null,null,null,"Finding"]
[null,null,null,null,null,null,null,"MEDIUM RISK","SRA3.1.1a S1",null,null,null,"There are reliable and transparent data available,",null,null,null,null,null,null,null,null,null,{"$f":"'Principle 3'!F7","v":0}]
[null,null,null,null,null,null,null,null,"SRA3.1.1a S2",null,null,null,"The fishery/farm is operating offshore a marine resource-dependent community or fishing for the same resource (or fish stock) as the local community (either directly as target catch, or indirectly as bycatch), but active measures are being taken to address these impacts,\nOR\nThe majority of the catch landed by the fishery/farm is not retained for local\nconsumption, or the country or community in question is food/nutrition insecurev(i.e., based on % undernourished or FIES, respectively), but active measures arebeing taken to address these impacts.",null,null,null,null,null,null,null,null,null,{"$f":"'Principle 3'!F8","v":0}]
[null,null,null,null,null,null,null,"LOW RISK","SRA3.1.1a S3",null,null,null,"The fishery/farm is not operating offshore a marine resource-dependent community or fishing for the same resource (or fish stock) as the local community (either directly as target catch, or indirectly as bycatch),\nOR\nThe majority of the catch landed by the fishery/farm is retained for local consumption, and the country or community in question is not food/nutrition insecure (i.e., based on % undernourished or FIES, respectively).",null,null,null,null,null,null,null,null,null,{"$f":"'Principle 3'!F9","v":0}]
[null,null,null,null,null,null,null,null,"3.1.1b Food and nutrition security for small-scale fishing communities"]
[]
[null,null,null,null,null,null,null,"Indicator Risk Result:",null,null,{"$f":"W237","v":"LOW"}]
[null,null,null,null,null,null,null,null,"Justification:"]
[null,null,null,null,null,null,null,null,{"$f":"'Principle 3'!A12","v":0}]
[]
[null,null,null,null,null,null,null,null,"SRA PISG #",null,"FIP?",null,"Performance Indicator Guidepost",null,null,null,null,null,null,null,null,null,"Finding"]
[null,null,null,null,null,null,null,"MEDIUM RISK","SRA3.1.1b S1",null,null,null,"There are reliable and transparent data available on food and nutrition security,",null,null,null,null,null,null,null,null,null,{"$f":"'Principle 3'!F13","v":0}]
[null,null,null,null,null,null,null,null,"SRA3.1.1b S2",null,null,null,"The country is food/nutrition secure (i.e. based on % undernourished), or a participatory local food and nutrition security assessment has found low to moderate risk of food/nutrition insecurity,",null,null,null,null,null,null,null,null,null,{"$f":"'Principle 3'!F14","v":0}]
[null,null,null,null,null,null,null,null,"SRA3.1.1b S3",null,null,null,"International or export trade agreements with the fishery/farm have not resulted in food/nutrition insecurity for the workers/fishers/farmers, their families, or community members,\nOR\nA participatory local food and nutrition security assessment (i.e. FIES or MDDI-W) has found food/nutrition insecurity impacts due to the fishery/farm (i.e. lack of access to marine resources for subsistence purposes) but active measures are being taken to address these impacts. ",null,null,null,null,null,null,null,null,null,{"$f":"'Principle 3'!F15","v":0}]
[null,null,null,null,null,null,null,"LOW RISK","SRA3.1.1b S4",null,null,null,"There is no food/nutrition insecurity among workers/fishers/farmers and their families, nor among community members adjacent to a fishery/farm (i.e. based on FIES or MDDI-W),\nOR\nWhere food/nutrition insecurity has been found among seafood-dependent communities (i.e. based on FIES or MDDI-W), local data shows improving food/nutrition security factors (i.e. increasing access to marine resources for subsistence purposes).",null,null,null,null,null,null,null,null,null,{"$f":"'Principle 3'!F16","v":0}]
[null,null,null,null,null,null,null,null,"SRA3.1.1b S5",null,null,null,"There are programs in place to ensure international or export trade agreements with the fishery/farm do not result in food/nutrition insecurity for the workers/fishers/farmers, their families, or community members,",null,null,null,null,null,null,null,null,null,{"$f":"'Principle 3'!F17","v":0}]
[null,null,null,null,null,null,null,null,"3.1.2 Healthcare"]
[]
[null,null,null,null,null,null,null,"Indicator Risk Result:",null,null,{"$f":"W238","v":"LOW"}]
[null,null,null,null,null,null,null,null,"Justification:"]
[null,null,null,null,null,null,null,null,{"$f":"'Principle 3'!A20","v":0}]
[]
[null,null,null,null,null,null,null,null,"SRA PISG #",null,"FIP?",null,"Performance Indicator Guidepost",null,null,null,null,null,null,null,null,null,"Finding"]
[null,null,null,null,null,null,null,"MEDIUM RISK","SRA3.1.2 S1",null,null,null,"There are reliable and transparent data available on healthcare,",null,null,null,null,null,null,null,null,null,{"$f":"'Principle 3'!F21","v":0}]
[null,null,null,null,null,null,null,null,"SRA3.1.2 S2",null,null,null,"The community’s (adjacent to fishery/farm) healthcare needs have been assessed,",null,null,null,null,null,null,null,null,null,{"$f":"'Principle 3'!F22","v":0}]
[null,null,null,null,null,null,null,null,"SRA3.1.2 S3",null,null,null,"The community’s (adjacent to fishery/farm) healthcare needs are not of concern. ",null,null,null,null,null,null,null,null,null,{"$f":"'Principle 3'!F23","v":0}]
[null,null,null,null,null,null,null,"LOW RISK","SRA3.1.2 S4",null,null,null,"The community’s (adjacent to fishery/farm) healthcare needs have been assessed and there are resources being invested to address any needs uncovered, ",null,null,null,null,null,null,null,null,null,{"$f":"'Principle 3'!F24","v":0}]
[null,null,null,null,null,null,null,null,"SRA3.1.2 S5",null,null,null,"Women have adequate access to reproductive healthcare including family planning, pre- and post-natal, and maternal care,",null,null,null,null,null,null,null,null,null,{"$f":"'Principle 3'!F25","v":0}]
[null,null,null,null,null,null,null,null,"SRA3.1.2 S6",null,null,null,"Local data shows improving healthcare. ",null,null,null,null,null,null,null,null,null,{"$f":"'Principle 3'!F26","v":0}]
[null,null,null,null,null,null,null,null,"3.1.3 Education"]
[]
[null,null,null,null,null,null,null,"Indicator Risk Result:",null,null,{"$f":"W239","v":"LOW"}]
[null,null,null,null,null,null,null,null,"Justification:"]
[null,null,null,null,null,null,null,null,{"$f":"'Principle 3'!A29","v":0}]
[]
[null,null,null,null,null,null,null,null,"SRA PISG #",null,"FIP?",null,"Performance Indicator Guidepost",null,null,null,null,null,null,null,null,null,"Finding"]
[null,null,null,null,null,null,null,"MEDIUM RISK","SRA3.1.3 S1",null,null,null,"There are reliable and transparent data available on gender disaggregated education,",null,null,null,null,null,null,null,null,null,{"$f":"'Principle 3'!F30","v":0}]
[null,null,null,null,null,null,null,null,"SRA3.1.3 S2",null,null,null,"The community’s (adjacent to fishery/farm) education needs have been assessed,",null,null,null,null,null,null,null,null,null,{"$f":"'Principle 3'!F31","v":0}]
[null,null,null,null,null,null,null,null,"SRA3.1.3 S3",null,null,null,"The community (adjacent to fishery/farm) has adequate literacy (literacy rate among youth aged 15-24 is 90% or more), and schooling rates (less than 10% of primary school-age children are out of school) (see SFP 2016),",null,null,null,null,null,null,null,null,null,{"$f":"'Principle 3'!F32","v":0}]
[null,null,null,null,null,null,null,null,"SRA3.1.3 S4",null,null,null,"Girls and boys do not have different rates of educational attainment.",null,null,null,null,null,null,null,null,null,{"$f":"'Principle 3'!F33","v":0}]
[null,null,null,null,null,null,null,"LOW RISK","SRA3.1.3 S5",null,null,null,"The community’s educational needs have been assessed and there are resources being invested to address any needs uncovered,",null,null,null,null,null,null,null,null,null,{"$f":"'Principle 3'!F34","v":0}]
[null,null,null,null,null,null,null,null,"SRA3.1.3 S6",null,null,null,"There is universal access to education through a secondary school level, via remote learning where relevant, or access to a technical school, or university.",null,null,null,null,null,null,null,null,null,{"$f":"'Principle 3'!F35","v":0}]
[null,null,null,null,null,null,null,null,"3.2: Livelihood opportunities are secured or improved, including fair access to markets and capabilities to maintain income generation "]
[null,null,null,null,null,null,null,null,"3.2.1: Benefits to and within community"]
[]
[null,null,null,null,null,null,null,"Indicator Risk Result:",null,null,{"$f":"W240","v":"LOW"}]
[null,null,null,null,null,null,null,null,"Justification:"]
[null,null,null,null,null,null,null,null,{"$f":"'Principle 3'!A39","v":0}]
[]
[null,null,null,null,null,null,null,null,"SRA PISG #",null,"FIP?",null,"Performance Indicator Guidepost",null,null,null,null,null,null,null,null,null,"Finding"]
[null,null,null,null,null,null,null,"MEDIUM RISK","SRA3.2.1 S1",null,null,null,"There are reliable and transparent data available on benefits to community generated by the fishery/farm,",null,null,null,null,null,null,null,null,null,{"$f":"'Principle 3'!F40","v":0}]
[null,null,null,null,null,null,null,null,"SRA3.2.1 S2",null,null,null,"People from within the community hold resource access rights or permits,",null,null,null,null,null,null,null,null,null,{"$f":"'Principle 3'!F41","v":0}]
[null,null,null,null,null,null,null,null,"SRA3.2.1 S3",null,null,null,"Consideration is paid to hiring a local workforce.",null,null,null,null,null,null,null,null,null,{"$f":"'Principle 3'!F42","v":0}]
[null,null,null,null,null,null,null,"LOW RISK","SRA3.2.1 S4",null,null,null,"The majority of the harvesting workforce is comprised of local residents,",null,null,null,null,null,null,null,null,null,{"$f":"'Principle 3'!F43","v":0}]
[null,null,null,null,null,null,null,null,"SRA3.2.1 S5",null,null,null,"People from within the community hold the majority of resource access rights or permits,",null,null,null,null,null,null,null,null,null,{"$f":"'Principle 3'!F44","v":0}]
[null,null,null,null,null,null,null,null,"SRA3.2.1 S6",null,null,null,"Majority of livelihoods and economic benefits from fishery/farm are distributed and retained locally,",null,null,null,null,null,null,null,null,null,{"$f":"'Principle 3'!F45","v":0}]
[null,null,null,null,null,null,null,null,"SRA3.2.1 S7",null,null,null,"High employment rates of women in local jobs created by fishery/farm.",null,null,null,null,null,null,null,null,null,{"$f":"'Principle 3'!F46","v":0}]
[null,null,null,null,null,null,null,null,"3.2.2: Economic value retention"]
[]
[null,null,null,null,null,null,null,"Indicator Risk Result:",null,null,{"$f":"W241","v":"LOW"}]
[null,null,null,null,null,null,null,null,"Justification:"]
[null,null,null,null,null,null,null,null,{"$f":"'Principle 3'!A49","v":0}]
[]
[null,null,null,null,null,null,null,null,"SRA PISG #",null,"FIP?",null,"Performance Indicator Guidepost",null,null,null,null,null,null,null,null,null,"Finding"]
[null,null,null,null,null,null,null,"MEDIUM RISK","SRA3.2.2 S1",null,null,null,"There are reliable and transparent data available on profit sharing for the fishery/farm,",null,null,null,null,null,null,null,null,null,{"$f":"'Principle 3'!F50","v":0}]
[null,null,null,null,null,null,null,null,"SRA3.2.2 S2",null,null,null,"The ratio of gross value added to turnover is between 47-57%. ",null,null,null,null,null,null,null,null,null,{"$f":"'Principle 3'!F51","v":0}]
[null,null,null,null,null,null,null,"LOW RISK","SRA3.2.2 S3",null,null,null,"The ratio of gross value added to turnover is above 57%,",null,null,null,null,null,null,null,null,null,{"$f":"'Principle 3'!F52","v":0}]
[null,null,null,null,null,null,null,null,"SRA3.2.2 S4",null,null,null,"Formalized training is provided to fishers/farmers in how to add value to their product. ",null,null,null,null,null,null,null,null,null,{"$f":"'Principle 3'!F53","v":0}]
[null,null,null,null,null,null,null,null,"3.2.3: Long-term profitability and future workforce"]
[]
[null,null,null,null,null,null,null,"Indicator Risk Result:",null,null,{"$f":"W242","v":"LOW"}]
[null,null,null,null,null,null,null,null,"Justification:"]
[null,null,null,null,null,null,null,null,{"$f":"'Principle 3'!A56","v":0}]
[]
[null,null,null,null,null,null,null,null,"SRA PISG #",null,"FIP?",null,"Performance Indicator Guidepost",null,null,null,null,null,null,null,null,null,"Finding"]
[null,null,null,null,null,null,null,"MEDIUM RISK","SRA3.2.3 S1",null,null,null,"There are reliable and transparent data available on long-term profitability of the fishery/farm,",null,null,null,null,null,null,null,null,null,{"$f":"'Principle 3'!F57","v":0}]
[null,null,null,null,null,null,null,null,"SRA3.2.3 S2",null,null,null,"Long-term average operating profit margin is between 11%-18%,",null,null,null,null,null,null,null,null,null,{"$f":"'Principle 3'!F58","v":0}]
[null,null,null,null,null,null,null,null,"SRA3.2.3 S3",null,null,null,"The average age of workers/fishers/farmers is close to the average age in the country, and new workers/fishers/farmers are joining the workforce.",null,null,null,null,null,null,null,null,null,{"$f":"'Principle 3'!F59","v":0}]
[null,null,null,null,null,null,null,"LOW RISK","SRA3.2.3 S4",null,null,null,"Long-term average operating profit margin is above 18%,",null,null,null,null,null,null,null,null,null,{"$f":"'Principle 3'!F60","v":0}]
[null,null,null,null,null,null,null,null,"SRA3.2.3 S5",null,null,null,"New workers/fishers/farmers including women are being recruited into the workforce,",null,null,null,null,null,null,null,null,null,{"$f":"'Principle 3'!F61","v":0}]
[null,null,null,null,null,null,null,null,"SRA3.2.3 S6",null,null,null,"Women are increasingly taking leadership roles in the supply chain and fishing/farming communities.",null,null,null,null,null,null,null,null,null,{"$f":"'Principle 3'!F62","v":0}]
[null,null,null,null,null,null,null,null,"3.2.4: Economic flexibility and autonomy"]
[]
[null,null,null,null,null,null,null,"Indicator Risk Result:",null,null,{"$f":"W243","v":"LOW"}]
[null,null,null,null,null,null,null,null,"Justification:"]
[null,null,null,null,null,null,null,null,{"$f":"'Principle 3'!A65","v":0}]
[]
[null,null,null,null,null,null,null,null,"SRA PISG #",null,"FIP?",null,"Performance Indicator Guidepost",null,null,null,null,null,null,null,null,null,"Finding"]
[null,null,null,null,null,null,null,"MEDIUM RISK","SRA3.2.4 S1",null,null,null,"There are reliable and transparent data available on economic flexibility and autonomy for the fishery/farm,",null,null,null,null,null,null,null,null,null,{"$f":"'Principle 3'!F66","v":0}]
[null,null,null,null,null,null,null,null,"SRA3.2.4 S2",null,null,null,"If applicable, interest rates charged to fishers/farmers are transparent and agreed upon in advance with fishers/farmers,",null,null,null,null,null,null,null,null,null,{"$f":"'Principle 3'!F67","v":0}]
[null,null,null,null,null,null,null,null,"SRA3.2.4 S3",null,null,null,"There is more than one local fish buyer, and harvesters are free to sell to whomever they wish without retribution, ",null,null,null,null,null,null,null,null,null,{"$f":"'Principle 3'!F68","v":0}]
[null,null,null,null,null,null,null,null,"SRA3.2.4 S4",null,null,null,"There is no price collusion among local buyers,",null,null,null,null,null,null,null,null,null,{"$f":"'Principle 3'!F69","v":0}]
[null,null,null,null,null,null,null,null,"SRA3.2.4 S5",null,null,null,"Fishers/farmers know the quality expected of the product, how the price is calculated, and when they will be paid via verbal contract with buyers.",null,null,null,null,null,null,null,null,null,{"$f":"'Principle 3'!F70","v":0}]
[null,null,null,null,null,null,null,"LOW RISK","SRA3.2.4 S6",null,null,null," If applicable, fishers/farmers can access loans from at least two types of lenders at interest rates not exceeding government rates or lender’s borrowing rate,",null,null,null,null,null,null,null,null,null,{"$f":"'Principle 3'!F71","v":0}]
[null,null,null,null,null,null,null,null,"SRA3.2.4 S7",null,null,null,"Fishers/farmers are organized into groups to better negotiate with buyers and may be price setters,",null,null,null,null,null,null,null,null,null,{"$f":"'Principle 3'!F72","v":0}]
[null,null,null,null,null,null,null,null,"SRA3.2.4 S8",null,null,null,"Fishers/farmers know the quality expected of the product, how the price is calculated, and when they will be paid via written contract with buyers (in a language understood or with provisions for illiteracy),",null,null,null,null,null,null,null,null,null,{"$f":"'Principle 3'!F73","v":0}]
[null,null,null,null,null,null,null,null,"SRA3.2.4 S9",null,null,null,"When applicable, buyers support fishers/farmers through sharing costs of certification and training,",null,null,null,null,null,null,null,null,null,{"$f":"'Principle 3'!F74","v":0}]
[null,null,null,null,null,null,null,null,"SRA3.2.4 S10",null,null,null,"Fishers/farmers have access to competitive credit markets or are recipients of investment opportunities.",null,null,null,null,null,null,null,null,null,{"$f":"'Principle 3'!F75","v":0}]
[null,null,null,null,null,null,null,null,"3.2.5: Livelihood security "]
[]
[null,null,null,null,null,null,null,"Indicator Risk Result:",null,null,{"$f":"W244","v":"LOW"}]
[null,null,null,null,null,null,null,null,"Justification:"]
[null,null,null,null,null,null,null,null,{"$f":"'Principle 3'!A78","v":0}]
[]
[null,null,null,null,null,null,null,null,"SRA PISG #",null,"FIP?",null,"Performance Indicator Guidepost",null,null,null,null,null,null,null,null,null,"Finding"]
[null,null,null,null,null,null,null,"MEDIUM RISK","SRA3.2.5 S1",null,null,null,"There are reliable and transparent data available on livelihood security for the fishery/farm,",null,null,null,null,null,null,null,null,null,{"$f":"'Principle 3'!F79","v":0}]
[null,null,null,null,null,null,null,null,"SRA3.2.5 S2",null,null,null,"Fishers/farmers/workers work under a license(s) or are recognized as part of the legal work force,",null,null,null,null,null,null,null,null,null,{"$f":"'Principle 3'!F80","v":0}]
[null,null,null,null,null,null,null,null,"SRA3.2.5 S3",null,null,null,"Fishers/farmers/workers have harvesting access (formally or informally) to more than one species/species group,",null,null,null,null,null,null,null,null,null,{"$f":"'Principle 3'!F81","v":0}]
[null,null,null,null,null,null,null,null,"SRA3.2.5 S4",null,null,null,"Fishers/farmers/workers have access to fishing/farming gear needed to fulfill livelihood responsibilities (ice, engines, boats, gear, fuel, bait etc.),",null,null,null,null,null,null,null,null,null,{"$f":"'Principle 3'!F82","v":0}]
[null,null,null,null,null,null,null,null,"SRA3.2.5 S5",null,null,null,"Fishers/farmers/workers, or someone in their household, have alternative livelihoods outside of the fishery or farm.",null,null,null,null,null,null,null,null,null,{"$f":"'Principle 3'!F83","v":0}]
[null,null,null,null,null,null,null,"LOW RISK","SRA3.2.5 S6",null,null,null,"Male and female fishers/farmers/workers have formal (legal) access to a portfolio of species/species groups and gear types,",null,null,null,null,null,null,null,null,null,{"$f":"'Principle 3'!F84","v":0}]
[null,null,null,null,null,null,null,null,"SRA3.2.5 S7",null,null,null,"Male and female fishers/farmers/workers have ownership over the fishing/farming gear needed to fulfill livelihood responsibilities (ice, engines, boats, gear, fuel, bait etc.),",null,null,null,null,null,null,null,null,null,{"$f":"'Principle 3'!F85","v":0}]
[null,null,null,null,null,null,null,null,"SRA3.2.5 S8",null,null,null,"Male and female fishers/farmers/workers have access to professional development training or capacity building either inside the fishery/farm, or outside (in alternative livelihoods).",null,null,null,null,null,null,null,null,null,{"$f":"'Principle 3'!F86","v":0}]
[null,null,null,null,null,null,null,null,"3.2.6: Economic fuel efficiency"]
[]
[null,null,null,null,null,null,null,"Indicator Risk Result:",null,null,{"$f":"W245","v":"LOW"}]
[null,null,null,null,null,null,null,null,"Justification:"]
[null,null,null,null,null,null,null,null,{"$f":"'Principle 3'!A89","v":0}]
[]
[null,null,null,null,null,null,null,null,"SRA PISG #",null,"FIP?",null,"Performance Indicator Guidepost",null,null,null,null,null,null,null,null,null,"Finding"]
[null,null,null,null,null,null,null,"MEDIUM RISK","SRA3.2.6 S1",null,null,null,"There are reliable and transparent data available on fuel efficiency.",null,null,null,null,null,null,null,null,null,{"$f":"'Principle 3'!F90","v":0}]
[null,null,null,null,null,null,null,null,"SRA3.2.6 S2",null,null,null,"Ratio of true vessel fuel costs (including subsidy) / fish sales is between 13%-18%.",null,null,null,null,null,null,null,null,null,{"$f":"'Principle 3'!F91","v":0}]
[null,null,null,null,null,null,null,"LOW RISK","SRA3.2.6 S3",null,null,null,"Ratio of true vessel fuel costs (including subsidy) / fish sales is under 13%.",null,null,null,null,null,null,null,null,null,{"$f":"'Principle 3'!F92","v":0}]
[]
[null,null,null,null,null,null,null,"References"]
[]
[null,null,null,null,null,null,null,{"$f":"IF('Assessment Information'!B159=\"\",\"\",'Assessment Information'!A159)","v":""},{"$f":"IF('Assessment Information'!B159=\"\",\"\",'Assessment Information'!B159)","v":""}]
[null,null,null,null,null,null,null,{"$f":"IF('Assessment Information'!B160=\"\",\"\",'Assessment Information'!A160)","v":""},{"$f":"IF('Assessment Information'!B160=\"\",\"\",'Assessment Information'!B160)","v":""}]
[null,null,null,null,null,null,null,{"$f":"IF('Assessment Information'!B161=\"\",\"\",'Assessment Information'!A161)","v":""},{"$f":"IF('Assessment Information'!B161=\"\",\"\",'Assessment Information'!B161)","v":""}]
[null,null,null,null,null,null,null,{"$f":"IF('Assessment Information'!B162=\"\",\"\",'Assessment Information'!A162)","v":""},{"$f":"IF('Assessment Information'!B162=\"\",\"\",'Assessment Information'!B162)","v":""}]
[null,null,null,null,null,null,null,{"$f":"IF('Assessment Information'!B163=\"\",\"\",'Assessment Information'!A163)","v":""},{"$f":"IF('Assessment Information'!B163=\"\",\"\",'Assessment Information'!B163)","v":""}]
[null,null,null,null,null,null,null,{"$f":"IF('Assessment Information'!B164=\"\",\"\",'Assessment Information'!A164)","v":""},{"$f":"IF('Assessment Information'!B164=\"\",\"\",'Assessment Information'!B164)","v":""}]
[null,null,null,null,null,null,null,{"$f":"IF('Assessment Information'!B165=\"\",\"\",'Assessment Information'!A165)","v":""},{"$f":"IF('Assessment Information'!B165=\"\",\"\",'Assessment Information'!B165)","v":""}]
[null,null,null,null,null,null,null,{"$f":"IF('Assessment Information'!B166=\"\",\"\",'Assessment Information'!A166)","v":""},{"$f":"IF('Assessment Information'!B166=\"\",\"\",'Assessment Information'!B166)","v":""}]
[null,null,null,null,null,null,null,{"$f":"IF('Assessment Information'!B167=\"\",\"\",'Assessment Information'!A167)","v":""},{"$f":"IF('Assessment Information'!B167=\"\",\"\",'Assessment Information'!B167)","v":""}]
[null,null,null,null,null,null,null,{"$f":"IF('Assessment Information'!B168=\"\",\"\",'Assessment Information'!A168)","v":""},{"$f":"IF('Assessment Information'!B168=\"\",\"\",'Assessment Information'!B168)","v":""}]
[null,null,null,null,null,null,null,{"$f":"IF('Assessment Information'!B169=\"\",\"\",'Assessment Information'!A169)","v":""},{"$f":"IF('Assessment Information'!B169=\"\",\"\",'Assessment Information'!B169)","v":""}]
[null,null,null,null,null,null,null,{"$f":"IF('Assessment Information'!B170=\"\",\"\",'Assessment Information'!A170)","v":""},{"$f":"IF('Assessment Information'!B170=\"\",\"\",'Assessment Information'!B170)","v":""}]
[null,null,null,null,null,null,null,{"$f":"IF('Assessment Information'!B171=\"\",\"\",'Assessment Information'!A171)","v":""},{"$f":"IF('Assessment Information'!B171=\"\",\"\",'Assessment Information'!B171)","v":""}]
[null,null,null,null,null,null,null,{"$f":"IF('Assessment Information'!B172=\"\",\"\",'Assessment Information'!A172)","v":""},{"$f":"IF('Assessment Information'!B172=\"\",\"\",'Assessment Information'!B172)","v":""}]
[null,null,null,null,null,null,null,{"$f":"IF('Assessment Information'!B173=\"\",\"\",'Assessment Information'!A173)","v":""},{"$f":"IF('Assessment Information'!B173=\"\",\"\",'Assessment Information'!B173)","v":""}]
[null,null,null,null,null,null,null,{"$f":"IF('Assessment Information'!B174=\"\",\"\",'Assessment Information'!A174)","v":""},{"$f":"IF('Assessment Information'!B174=\"\",\"\",'Assessment Information'!B174)","v":""}]
[null,null,null,null,null,null,null,{"$f":"IF('Assessment Information'!B175=\"\",\"\",'Assessment Information'!A175)","v":""},{"$f":"IF('Assessment Information'!B175=\"\",\"\",'Assessment Information'!B175)","v":""}]
[null,null,null,null,null,null,null,{"$f":"IF('Assessment Information'!B176=\"\",\"\",'Assessment Information'!A176)","v":""},{"$f":"IF('Assessment Information'!B176=\"\",\"\",'Assessment Information'!B176)","v":""}]
[null,null,null,null,null,null,null,{"$f":"IF('Assessment Information'!B177=\"\",\"\",'Assessment Information'!A177)","v":""},{"$f":"IF('Assessment Information'!B177=\"\",\"\",'Assessment Information'!B177)","v":""}]
[null,null,null,null,null,null,null,{"$f":"IF('Assessment Information'!B178=\"\",\"\",'Assessment Information'!A178)","v":""},{"$f":"IF('Assessment Information'!B178=\"\",\"\",'Assessment Information'!B178)","v":""}]
[null,null,null,null,null,null,null,{"$f":"IF('Assessment Information'!B179=\"\",\"\",'Assessment Information'!A179)","v":""},{"$f":"IF('Assessment Information'!B179=\"\",\"\",'Assessment Information'!B179)","v":""}]
[null,null,null,null,null,null,null,{"$f":"IF('Assessment Information'!B180=\"\",\"\",'Assessment Information'!A180)","v":""},{"$f":"IF('Assessment Information'!B180=\"\",\"\",'Assessment Information'!B180)","v":""}]
[null,null,null,null,null,null,null,{"$f":"IF('Assessment Information'!B181=\"\",\"\",'Assessment Information'!A181)","v":""},{"$f":"IF('Assessment Information'!B181=\"\",\"\",'Assessment Information'!B181)","v":""}]
[null,null,null,null,null,null,null,{"$f":"IF('Assessment Information'!B182=\"\",\"\",'Assessment Information'!A182)","v":""},{"$f":"IF('Assessment Information'!B182=\"\",\"\",'Assessment Information'!B182)","v":""}]
[null,null,null,null,null,null,null,{"$f":"IF('Assessment Information'!B183=\"\",\"\",'Assessment Information'!A183)","v":""},{"$f":"IF('Assessment Information'!B183=\"\",\"\",'Assessment Information'!B183)","v":""}]
[null,null,null,null,null,null,null,{"$f":"IF('Assessment Information'!B184=\"\",\"\",'Assessment Information'!A184)","v":""},{"$f":"IF('Assessment Information'!B184=\"\",\"\",'Assessment Information'!B184)","v":""}]
[null,null,null,null,null,null,null,{"$f":"IF('Assessment Information'!B185=\"\",\"\",'Assessment Information'!A185)","v":""},{"$f":"IF('Assessment Information'!B185=\"\",\"\",'Assessment Information'!B185)","v":""}]
[null,null,null,null,null,null,null,{"$f":"IF('Assessment Information'!B186=\"\",\"\",'Assessment Information'!A186)","v":""},{"$f":"IF('Assessment Information'!B186=\"\",\"\",'Assessment Information'!B186)","v":""}]
[null,null,null,null,null,null,null,{"$f":"IF('Assessment Information'!B187=\"\",\"\",'Assessment Information'!A187)","v":""},{"$f":"IF('Assessment Information'!B187=\"\",\"\",'Assessment Information'!B187)","v":""}]
[null,null,null,null,null,null,null,{"$f":"IF('Assessment Information'!B188=\"\",\"\",'Assessment Information'!A188)","v":""},{"$f":"IF('Assessment Information'!B188=\"\",\"\",'Assessment Information'!B188)","v":""}]
[null,null,null,null,null,null,null,{"$f":"IF('Assessment Information'!B189=\"\",\"\",'Assessment Information'!A189)","v":""},{"$f":"IF('Assessment Information'!B189=\"\",\"\",'Assessment Information'!B189)","v":""}]
[null,null,null,null,null,null,null,{"$f":"IF('Assessment Information'!B190=\"\",\"\",'Assessment Information'!A190)","v":""},{"$f":"IF('Assessment Information'!B190=\"\",\"\",'Assessment Information'!B190)","v":""}]
[null,null,null,null,null,null,null,{"$f":"IF('Assessment Information'!B191=\"\",\"\",'Assessment Information'!A191)","v":""},{"$f":"IF('Assessment Information'!B191=\"\",\"\",'Assessment Information'!B191)","v":""}]
[null,null,null,null,null,null,null,{"$f":"IF('Assessment Information'!B192=\"\",\"\",'Assessment Information'!A192)","v":""},{"$f":"IF('Assessment Information'!B192=\"\",\"\",'Assessment Information'!B192)","v":""}]
[null,null,null,null,null,null,null,{"$f":"IF('Assessment Information'!B193=\"\",\"\",'Assessment Information'!A193)","v":""},{"$f":"IF('Assessment Information'!B193=\"\",\"\",'Assessment Information'!B193)","v":""}]
[null,null,null,null,null,null,null,{"$f":"IF('Assessment Information'!B194=\"\",\"\",'Assessment Information'!A194)","v":""},{"$f":"IF('Assessment Information'!B194=\"\",\"\",'Assessment Information'!B194)","v":""}]
[null,null,null,null,null,null,null,{"$f":"IF('Assessment Information'!B195=\"\",\"\",'Assessment Information'!A195)","v":""},{"$f":"IF('Assessment Information'!B195=\"\",\"\",'Assessment Information'!B195)","v":""}]
[null,null,null,null,null,null,null,{"$f":"IF('Assessment Information'!B196=\"\",\"\",'Assessment Information'!A196)","v":""},{"$f":"IF('Assessment Information'!B196=\"\",\"\",'Assessment Information'!B196)","v":""}]
[null,null,null,null,null,null,null,{"$f":"IF('Assessment Information'!B197=\"\",\"\",'Assessment Information'!A197)","v":""},{"$f":"IF('Assessment Information'!B197=\"\",\"\",'Assessment Information'!B197)","v":""}]
[null,null,null,null,null,null,null,{"$f":"IF('Assessment Information'!B198=\"\",\"\",'Assessment Information'!A198)","v":""},{"$f":"IF('Assessment Information'!B198=\"\",\"\",'Assessment Information'!B198)","v":""}]
[null,null,null,null,null,null,null,{"$f":"IF('Assessment Information'!B199=\"\",\"\",'Assessment Information'!A199)","v":""},{"$f":"IF('Assessment Information'!B199=\"\",\"\",'Assessment Information'!B199)","v":""}]
[null,null,null,null,null,null,null,{"$f":"IF('Assessment Information'!B200=\"\",\"\",'Assessment Information'!A200)","v":""},{"$f":"IF('Assessment Information'!B200=\"\",\"\",'Assessment Information'!B200)","v":""}]
[null,null,null,null,null,null,null,{"$f":"IF('Assessment Information'!B201=\"\",\"\",'Assessment Information'!A201)","v":""},{"$f":"IF('Assessment Information'!B201=\"\",\"\",'Assessment Information'!B201)","v":""}]
[null,null,null,null,null,null,null,{"$f":"IF('Assessment Information'!B202=\"\",\"\",'Assessment Information'!A202)","v":""},{"$f":"IF('Assessment Information'!B202=\"\",\"\",'Assessment Information'!B202)","v":""}]
[null,null,null,null,null,null,null,{"$f":"IF('Assessment Information'!B203=\"\",\"\",'Assessment Information'!A203)","v":""},{"$f":"IF('Assessment Information'!B203=\"\",\"\",'Assessment Information'!B203)","v":""}]
[null,null,null,null,null,null,null,{"$f":"IF('Assessment Information'!B204=\"\",\"\",'Assessment Information'!A204)","v":""},{"$f":"IF('Assessment Information'!B204=\"\",\"\",'Assessment Information'!B204)","v":""}]
[null,null,null,null,null,null,null,{"$f":"IF('Assessment Information'!B205=\"\",\"\",'Assessment Information'!A205)","v":""},{"$f":"IF('Assessment Information'!B205=\"\",\"\",'Assessment Information'!B205)","v":""}]
[null,null,null,null,null,null,null,{"$f":"IF('Assessment Information'!B206=\"\",\"\",'Assessment Information'!A206)","v":""},{"$f":"IF('Assessment Information'!B206=\"\",\"\",'Assessment Information'!B206)","v":""}]
[null,null,null,null,null,null,null,{"$f":"IF('Assessment Information'!B207=\"\",\"\",'Assessment Information'!A207)","v":""},{"$f":"IF('Assessment Information'!B207=\"\",\"\",'Assessment Information'!B207)","v":""}]

{"sheet":"Improvement Plan","index":8,"n_rows":204,"n_cols":21,"rows_kept":204,"cut":false,"hidden":false,"merged":[]}
[null,null,null,null,null,null,null,null,null,null,null,"Findings & Improvement Plan"]
[null,null,null,null,null,null,null,null,null,null,null,"Findings are any PISGs that were found to be 'N' during an assessment. This page pulls over all the findings into one place to keep track of everything and to begin planning for improvements. "]
["Coding","Principle","Component","Indicator","PISG","Risk","Result","Finding",null,"#",null,"Principle","Component","Indicator","PISG","PISG Risk","Resulting Indicator Risk","Evidence/Findings","Responsible Person","Priority \n(high, med, low)","Proposed course of action"]
[{"$f":"IF(OR(G4=\"Y\",G4=0,G4=\"NA\"),0,COUNTIF($G$4:$G4,\"N\"))","v":0},"Principle 1","1.1 Fundamental human rights respected, labor rights protected","1.1.1 Abuse and harrassment ","SRA1.1.1 S1","Medium",{"$f":"'Principle 1'!F7","v":0},{"$f":"'Principle 1'!H7","v":0},null,1,null,{"$f":"IFERROR(INDEX(B$4:B$204,MATCH($J4,$A$4:$A$204,0)),\"\")","v":""},{"$f":"IFERROR(INDEX(C$4:C$204,MATCH($J4,$A$4:$A$204,0)),\"\")","v":""},{"$f":"IFERROR(INDEX(D$4:D$204,MATCH($J4,$A$4:$A$204,0)),\"\")","v":""},{"$f":"IFERROR(INDEX(E$4:E$204,MATCH($J4,$A$4:$A$204,0)),\"\")","v":""},{"$f":"IFERROR(INDEX(F$4:F$204,MATCH($J4,$A$4:$A$204,0)),\"\")","v":""},{"$f":"IF(P4=\"Medium\",\"HIGH\",IF(P4=\"Low\",\"MEDIUM\",\"\"))","v":""},{"$f":"IFERROR(INDEX(H$4:H$204,MATCH($J4,$A$4:$A$204,0)),\"\")","v":""}]
[{"$f":"IF(OR(G5=\"Y\",G5=0,G5=\"NA\"),0,COUNTIF($G$4:$G5,\"N\"))","v":0},"Principle 1","1.1 Fundamental human rights respected, labor rights protected","1.1.1 Abuse and harrassment ","SRA1.1.1 S2","Medium",{"$f":"'Principle 1'!F8","v":0},{"$f":"'Principle 1'!H8","v":0},null,2,null,"","","","","",{"$f":"IF(P5=\"Medium\",\"HIGH\",IF(P5=\"Low\",\"MEDIUM\",\"\"))","v":""},""]
[{"$f":"IF(OR(G6=\"Y\",G6=0,G6=\"NA\"),0,COUNTIF($G$4:$G6,\"N\"))","v":0},"Principle 1","1.1 Fundamental human rights respected, labor rights protected","1.1.1 Abuse and harrassment ","SRA1.1.1 S3","Medium",{"$f":"'Principle 1'!F9","v":0},{"$f":"'Principle 1'!H9","v":0},null,3,null,"","","","","","",""]
[{"$f":"IF(OR(G7=\"Y\",G7=0,G7=\"NA\"),0,COUNTIF($G$4:$G7,\"N\"))","v":0},"Principle 1","1.1 Fundamental human rights respected, labor rights protected","1.1.1 Abuse and harrassment ","SRA1.1.1 S4","Medium",{"$f":"'Principle 1'!F10","v":0},{"$f":"'Principle 1'!H10","v":0},null,4,null,"","","","","","",""]
[{"$f":"IF(OR(G8=\"Y\",G8=0,G8=\"NA\"),0,COUNTIF($G$4:$G8,\"N\"))","v":0},"Principle 1","1.1 Fundamental human rights respected, labor rights protected","1.1.1 Abuse and harrassment ","SRA1.1.1 S5","Medium",{"$f":"'Principle 1'!F11","v":0},{"$f":"'Principle 1'!H11","v":0},null,5,null,"","","","","","",""]
[{"$f":"IF(OR(G9=\"Y\",G9=0,G9=\"NA\"),0,COUNTIF($G$4:$G9,\"N\"))","v":0},"Principle 1","1.1 Fundamental human rights respected, labor rights protected","1.1.1 Abuse and harrassment ","SRA1.1.1 S6","Low",{"$f":"'Principle 1'!F12","v":0},{"$f":"'Principle 1'!H12","v":0},null,6,null,"","","","","","",""]
[{"$f":"IF(OR(G10=\"Y\",G10=0,G10=\"NA\"),0,COUNTIF($G$4:$G10,\"N\"))","v":0},"Principle 1","1.1 Fundamental human rights respected, labor rights protected","1.1.1 Abuse and harrassment ","SRA1.1.1 S7","Low",{"$f":"'Principle 1'!F13","v":0},{"$f":"'Principle 1'!H13","v":0},null,7,null,"","","","","","",""]
[{"$f":"IF(OR(G11=\"Y\",G11=0,G11=\"NA\"),0,COUNTIF($G$4:$G11,\"N\"))","v":0},"Principle 1","1.1 Fundamental human rights respected, labor rights protected","1.1.1 Abuse and harrassment ","SRA1.1.1 S8","Low",{"$f":"'Principle 1'!F14","v":0},{"$f":"'Principle 1'!H14","v":0},null,8,null,"","","","","","",""]
[{"$f":"IF(OR(G12=\"Y\",G12=0,G12=\"NA\"),0,COUNTIF($G$4:$G12,\"N\"))","v":0},"Principle 1","1.1 Fundamental human rights respected, labor rights protected","1.1.2a  Human trafficking and forced labor","SRA1.1.2a S1","Medium",{"$f":"'Principle 1'!F18","v":0},{"$f":"'Principle 1'!H18","v":0},null,9,null,"","","","","","",""]
[{"$f":"IF(OR(G13=\"Y\",G13=0,G13=\"NA\"),0,COUNTIF($G$4:$G13,\"N\"))","v":0},"Principle 1","1.1 Fundamental human rights respected, labor rights protected","1.1.2a  Human trafficking and forced labor","SRA1.1.2a S2","Medium",{"$f":"'Principle 1'!F19","v":0},{"$f":"'Principle 1'!H19","v":0},null,10,null,"","","","","","",""]
[{"$f":"IF(OR(G14=\"Y\",G14=0,G14=\"NA\"),0,COUNTIF($G$4:$G14,\"N\"))","v":0},"Principle 1","1.1 Fundamental human rights respected, labor rights protected","1.1.2a  Human trafficking and forced labor","SRA1.1.2a S3","Medium",{"$f":"'Principle 1'!F20","v":0},{"$f":"'Principle 1'!H20","v":0},null,11,null,"","","","","","",""]
[{"$f":"IF(OR(G15=\"Y\",G15=0,G15=\"NA\"),0,COUNTIF($G$4:$G15,\"N\"))","v":0},"Principle 1","1.1 Fundamental human rights respected, labor rights protected","1.1.2a  Human trafficking and forced labor","SRA1.1.2a S4","Low",{"$f":"'Principle 1'!F21","v":0},{"$f":"'Principle 1'!H21","v":0},null,12,null,"","","","","","",""]
[{"$f":"IF(OR(G16=\"Y\",G16=0,G16=\"NA\"),0,COUNTIF($G$4:$G16,\"N\"))","v":0},"Principle 1","1.1 Fundamental human rights respected, labor rights protected","1.1.2a  Human trafficking and forced labor","SRA1.1.2a S5","Low",{"$f":"'Principle 1'!F22","v":0},{"$f":"'Principle 1'!H22","v":0},null,13,null,"","","","","","",""]
[{"$f":"IF(OR(G17=\"Y\",G17=0,G17=\"NA\"),0,COUNTIF($G$4:$G17,\"N\"))","v":0},"Principle 1","1.1 Fundamental human rights respected, labor rights protected","1.1.2a  Human trafficking and forced labor","SRA1.1.2a S6","Low",{"$f":"'Principle 1'!F23","v":0},{"$f":"'Principle 1'!H23","v":0},null,14,null,"","","","","","",""]
[{"$f":"IF(OR(G18=\"Y\",G18=0,G18=\"NA\"),0,COUNTIF($G$4:$G18,\"N\"))","v":0},"Principle 1","1.1 Fundamental human rights respected, labor rights protected","1.1.2a  Human trafficking and forced labor","SRA1.1.2a S7","Low",{"$f":"'Principle 1'!F24","v":0},{"$f":"'Principle 1'!H24","v":0},null,15,null,"","","","","","",""]
[{"$f":"IF(OR(G19=\"Y\",G19=0,G19=\"NA\"),0,COUNTIF($G$4:$G19,\"N\"))","v":0},"Principle 1","1.1 Fundamental human rights respected, labor rights protected","1.1.2a  Human trafficking and forced labor","SRA1.1.2a S8","Low",{"$f":"'Principle 1'!F25","v":0},{"$f":"'Principle 1'!H25","v":0},null,16,null,"","","","","","",""]
[{"$f":"IF(OR(G20=\"Y\",G20=0,G20=\"NA\"),0,COUNTIF($G$4:$G20,\"N\"))","v":0},"Principle 1","1.1 Fundamental human rights respected, labor rights protected","1.1.2b Debt bandage in small-scale fisheries","SRA1.1.2b S1","Medium",{"$f":"'Principle 1'!F29","v":0},{"$f":"'Principle 1'!H29","v":0},null,17,null,"","","","","","",""]
[{"$f":"IF(OR(G21=\"Y\",G21=0,G21=\"NA\"),0,COUNTIF($G$4:$G21,\"N\"))","v":0},"Principle 1","1.1 Fundamental human rights respected, labor rights protected","1.1.2b Debt bandage in small-scale fisheries","SRA1.1.2b S2","Medium",{"$f":"'Principle 1'!F30","v":0},{"$f":"'Principle 1'!H30","v":0},null,18,null,"","","","","","",""]
[{"$f":"IF(OR(G22=\"Y\",G22=0,G22=\"NA\"),0,COUNTIF($G$4:$G22,\"N\"))","v":0},"Principle 1","1.1 Fundamental human rights respected, labor rights protected","1.1.2b Debt bandage in small-scale fisheries","SRA1.1.2b S3","Medium",{"$f":"'Principle 1'!F31","v":0},{"$f":"'Principle 1'!H31","v":0},null,19,null,"","","","","","",""]
[{"$f":"IF(OR(G23=\"Y\",G23=0,G23=\"NA\"),0,COUNTIF($G$4:$G23,\"N\"))","v":0},"Principle 1","1.1 Fundamental human rights respected, labor rights protected","1.1.2b Debt bandage in small-scale fisheries","SRA1.1.2b S4","Medium",{"$f":"'Principle 1'!F32","v":0},{"$f":"'Principle 1'!H32","v":0},null,20,null,"","","","","","",""]
[{"$f":"IF(OR(G24=\"Y\",G24=0,G24=\"NA\"),0,COUNTIF($G$4:$G24,\"N\"))","v":0},"Principle 1","1.1 Fundamental human rights respected, labor rights protected","1.1.2b Debt bandage in small-scale fisheries","SRA1.1.2b S5","Low",{"$f":"'Principle 1'!F34","v":0},{"$f":"'Principle 1'!H34","v":0},null,21,null,"","","","","","",""]
[{"$f":"IF(OR(G25=\"Y\",G25=0,G25=\"NA\"),0,COUNTIF($G$4:$G25,\"N\"))","v":{"$error":"#REF!"}},"Principle 1","1.1 Fundamental human rights respected, labor rights protected","1.1.2b Debt bandage in small-scale fisheries","SRA1.1.2b S6","Low",{"$f":"'Principle 1'!#REF!","v":{"$error":"#REF!"}},{"$f":"'Principle 1'!#REF!","v":{"$error":"#REF!"}},null,22,null,"","","","","","",""]
[{"$f":"IF(OR(G26=\"Y\",G26=0,G26=\"NA\"),0,COUNTIF($G$4:$G26,\"N\"))","v":0},"Principle 1","1.1 Fundamental human rights respected, labor rights protected","1.1.3: Child Labor","SRA1.1.3 S1","Medium",{"$f":"'Principle 1'!F38","v":0},{"$f":"'Principle 1'!H38","v":0},null,23,null,"","","","","","",""]
[{"$f":"IF(OR(G27=\"Y\",G27=0,G27=\"NA\"),0,COUNTIF($G$4:$G27,\"N\"))","v":0},"Principle 1","1.1 Fundamental human rights respected, labor rights protected","1.1.3: Child Labor","SRA1.1.3 S2","Medium",{"$f":"'Principle 1'!F39","v":0},{"$f":"'Principle 1'!H39","v":0},null,24,null,"","","","","","",""]
[{"$f":"IF(OR(G28=\"Y\",G28=0,G28=\"NA\"),0,COUNTIF($G$4:$G28,\"N\"))","v":0},"Principle 1","1.1 Fundamental human rights respected, labor rights protected","1.1.3: Child Labor","SRA1.1.3 S3","Medium",{"$f":"'Principle 1'!F40","v":0},{"$f":"'Principle 1'!H40","v":0},null,25,null,"","","","","","",""]
[{"$f":"IF(OR(G29=\"Y\",G29=0,G29=\"NA\"),0,COUNTIF($G$4:$G29,\"N\"))","v":0},"Principle 1","1.1 Fundamental human rights respected, labor rights protected","1.1.3: Child Labor","SRA1.1.3 S4","Medium",{"$f":"'Principle 1'!F41","v":0},{"$f":"'Principle 1'!H41","v":0},null,26,null,"","","","","","",""]
[{"$f":"IF(OR(G30=\"Y\",G30=0,G30=\"NA\"),0,COUNTIF($G$4:$G30,\"N\"))","v":0},"Principle 1","1.1 Fundamental human rights respected, labor rights protected","1.1.3: Child Labor","SRA1.1.3 S5","Medium",{"$f":"'Principle 1'!F42","v":0},{"$f":"'Principle 1'!H42","v":0},null,27,null,"","","","","","",""]
[{"$f":"IF(OR(G31=\"Y\",G31=0,G31=\"NA\"),0,COUNTIF($G$4:$G31,\"N\"))","v":0},"Principle 1","1.1 Fundamental human rights respected, labor rights protected","1.1.3: Child Labor","SRA1.1.3 S6","Low",{"$f":"'Principle 1'!F43","v":0},{"$f":"'Principle 1'!H43","v":0},null,28,null,"","","","","","",""]
[{"$f":"IF(OR(G32=\"Y\",G32=0,G32=\"NA\"),0,COUNTIF($G$4:$G32,\"N\"))","v":0},"Principle 1","1.1 Fundamental human rights respected, labor rights protected","1.1.4: Freedom of Association and Collective Bargaining","SRA 1.1.4 S1","Medium",{"$f":"'Principle 1'!F47","v":0},{"$f":"'Principle 1'!H47","v":0},null,29,null,"","","","","","",""]
[{"$f":"IF(OR(G33=\"Y\",G33=0,G33=\"NA\"),0,COUNTIF($G$4:$G33,\"N\"))","v":0},"Principle 1","1.1 Fundamental human rights respected, labor rights protected","1.1.4: Freedom of Association and Collective Bargaining","SRA 1.1.4 S2","Medium",{"$f":"'Principle 1'!F48","v":0},{"$f":"'Principle 1'!H48","v":0},null,30,null,"","","","","","",""]
[{"$f":"IF(OR(G34=\"Y\",G34=0,G34=\"NA\"),0,COUNTIF($G$4:$G34,\"N\"))","v":0},"Principle 1","1.1 Fundamental human rights respected, labor rights protected","1.1.4: Freedom of Association and Collective Bargaining","SRA 1.1.4 S3","Medium",{"$f":"'Principle 1'!F49","v":0},{"$f":"'Principle 1'!H49","v":0},null,31,null,"","","","","","",""]
[{"$f":"IF(OR(G35=\"Y\",G35=0,G35=\"NA\"),0,COUNTIF($G$4:$G35,\"N\"))","v":0},"Principle 1","1.1 Fundamental human rights respected, labor rights protected","1.1.4: Freedom of Association and Collective Bargaining","SRA 1.1.4 S4","Medium",{"$f":"'Principle 1'!F50","v":0},{"$f":"'Principle 1'!H50","v":0},null,32,null,"","","","","","",""]
[{"$f":"IF(OR(G36=\"Y\",G36=0,G36=\"NA\"),0,COUNTIF($G$4:$G36,\"N\"))","v":0},"Principle 1","1.1 Fundamental human rights respected, labor rights protected","1.1.4: Freedom of Association and Collective Bargaining","SRA 1.1.4 S5","Medium",{"$f":"'Principle 1'!F51","v":0},{"$f":"'Principle 1'!H51","v":0},null,33,null,"","","","","","",""]
[{"$f":"IF(OR(G37=\"Y\",G37=0,G37=\"NA\"),0,COUNTIF($G$4:$G37,\"N\"))","v":0},"Principle 1","1.1 Fundamental human rights respected, labor rights protected","1.1.4: Freedom of Association and Collective Bargaining","SRA1.1.4 S6","Low",{"$f":"'Principle 1'!F52","v":0},{"$f":"'Principle 1'!H52","v":0},null,34,null,"","","","","","",""]
[{"$f":"IF(OR(G38=\"Y\",G38=0,G38=\"NA\"),0,COUNTIF($G$4:$G38,\"N\"))","v":0},"Principle 1","1.1 Fundamental human rights respected, labor rights protected","1.1.4: Freedom of Association and Collective Bargaining","SRA1.1.4 S7","Low",{"$f":"'Principle 1'!F53","v":0},{"$f":"'Principle 1'!H53","v":0},null,35,null,"","","","","","",""]
[{"$f":"IF(OR(G39=\"Y\",G39=0,G39=\"NA\"),0,COUNTIF($G$4:$G39,\"N\"))","v":0},"Principle 1","1.1 Fundamental human rights respected, labor rights protected","1.1.4: Freedom of Association and Collective Bargaining","SRA1.1.4 S8","Low",{"$f":"'Principle 1'!F54","v":0},{"$f":"'Principle 1'!H54","v":0},null,36,null,"","","","","","",""]
[{"$f":"IF(OR(G40=\"Y\",G40=0,G40=\"NA\"),0,COUNTIF($G$4:$G40,\"N\"))","v":0},"Principle 1","1.1 Fundamental human rights respected, labor rights protected","1.1.5: Earnings and Benefits","SRA1.1.5 S1","Medium",{"$f":"'Principle 1'!F58","v":0},{"$f":"'Principle 1'!H58","v":0},null,37,null,"","","","","","",""]
[{"$f":"IF(OR(G41=\"Y\",G41=0,G41=\"NA\"),0,COUNTIF($G$4:$G41,\"N\"))","v":0},"Principle 1","1.1 Fundamental human rights respected, labor rights protected","1.1.5: Earnings and Benefits","SRA1.1.5 S2","Medium",{"$f":"'Principle 1'!F59","v":0},{"$f":"'Principle 1'!H59","v":0},null,38,null,"","","","","","",""]
[{"$f":"IF(OR(G42=\"Y\",G42=0,G42=\"NA\"),0,COUNTIF($G$4:$G42,\"N\"))","v":0},"Principle 1","1.1 Fundamental human rights respected, labor rights protected","1.1.5: Earnings and Benefits","SRA1.1.5 S3","Medium",{"$f":"'Principle 1'!F60","v":0},{"$f":"'Principle 1'!H60","v":0},null,39,null,"","","","","","",""]
[{"$f":"IF(OR(G43=\"Y\",G43=0,G43=\"NA\"),0,COUNTIF($G$4:$G43,\"N\"))","v":0},"Principle 1","1.1 Fundamental human rights respected, labor rights protected","1.1.5: Earnings and Benefits","SRA1.1.5 S4","Medium",{"$f":"'Principle 1'!F61","v":0},{"$f":"'Principle 1'!H61","v":0},null,40,null,"","","","","","",""]
[{"$f":"IF(OR(G44=\"Y\",G44=0,G44=\"NA\"),0,COUNTIF($G$4:$G44,\"N\"))","v":0},"Principle 1","1.1 Fundamental human rights respected, labor rights protected","1.1.5: Earnings and Benefits","SRA1.1.5 S5","Medium",{"$f":"'Principle 1'!F62","v":0},{"$f":"'Principle 1'!H62","v":0},null,41,null,"","","","","","",""]
[{"$f":"IF(OR(G45=\"Y\",G45=0,G45=\"NA\"),0,COUNTIF($G$4:$G45,\"N\"))","v":0},"Principle 1","1.1 Fundamental human rights respected, labor rights protected","1.1.5: Earnings and Benefits","SRA1.1.5 S6","Medium",{"$f":"'Principle 1'!F63","v":0},{"$f":"'Principle 1'!H63","v":0},null,42,null,"","","","","","",""]
[{"$f":"IF(OR(G46=\"Y\",G46=0,G46=\"NA\"),0,COUNTIF($G$4:$G46,\"N\"))","v":0},"Principle 1","1.1 Fundamental human rights respected, labor rights protected","1.1.5: Earnings and Benefits","SRA1.1.5 S7","Medium",{"$f":"'Principle 1'!F64","v":0},{"$f":"'Principle 1'!H64","v":0},null,43,null,"","","","","","",""]
[{"$f":"IF(OR(G47=\"Y\",G47=0,G47=\"NA\"),0,COUNTIF($G$4:$G47,\"N\"))","v":0},"Principle 1","1.1 Fundamental human rights respected, labor rights protected","1.1.5: Earnings and Benefits","SRA1.1.5 S8","Medium",{"$f":"'Principle 1'!F65","v":0},{"$f":"'Principle 1'!H65","v":0},null,44,null,"","","","","","",""]
[{"$f":"IF(OR(G48=\"Y\",G48=0,G48=\"NA\"),0,COUNTIF($G$4:$G48,\"N\"))","v":0},"Principle 1","1.1 Fundamental human rights respected, labor rights protected","1.1.5: Earnings and Benefits","SRA1.1.5 S9","Medium",{"$f":"'Principle 1'!F66","v":0},{"$f":"'Principle 1'!H66","v":0},null,45,null,"","","","","","",""]
[{"$f":"IF(OR(G49=\"Y\",G49=0,G49=\"NA\"),0,COUNTIF($G$4:$G49,\"N\"))","v":0},"Principle 1","1.1 Fundamental human rights respected, labor rights protected","1.1.5: Earnings and Benefits","SRA1.1.5 S10","Low",{"$f":"'Principle 1'!F67","v":0},{"$f":"'Principle 1'!H67","v":0},null,46,null,"","","","","","",""]
[{"$f":"IF(OR(G50=\"Y\",G50=0,G50=\"NA\"),0,COUNTIF($G$4:$G50,\"N\"))","v":0},"Principle 1","1.1 Fundamental human rights respected, labor rights protected","1.1.5: Earnings and Benefits","SRA1.1.5 S11","Low",{"$f":"'Principle 1'!F68","v":0},{"$f":"'Principle 1'!H68","v":0},null,47,null,"","","","","","",""]
[{"$f":"IF(OR(G51=\"Y\",G51=0,G51=\"NA\"),0,COUNTIF($G$4:$G51,\"N\"))","v":0},"Principle 1","1.1 Fundamental human rights respected, labor rights protected","1.1.5: Earnings and Benefits","SRA1.1.5 S12","Low",{"$f":"'Principle 1'!F69","v":0},{"$f":"'Principle 1'!H69","v":0},null,48,null,"","","","","","",""]
[{"$f":"IF(OR(G52=\"Y\",G52=0,G52=\"NA\"),0,COUNTIF($G$4:$G52,\"N\"))","v":0},"Principle 1","1.1 Fundamental human rights respected, labor rights protected","1.1.5: Earnings and Benefits","SRA1.1.5 S13","Low",{"$f":"'Principle 1'!F70","v":0},{"$f":"'Principle 1'!H70","v":0},null,49,null,"","","","","","",""]
[{"$f":"IF(OR(G53=\"Y\",G53=0,G53=\"NA\"),0,COUNTIF($G$4:$G53,\"N\"))","v":0},"Principle 1","1.1 Fundamental human rights respected, labor rights protected","1.1.6: Adequate rest","SRA1.1.6 S1","Medium",{"$f":"'Principle 1'!F74","v":0},{"$f":"'Principle 1'!H74","v":0},null,50,null,"","","","","","",""]
[{"$f":"IF(OR(G54=\"Y\",G54=0,G54=\"NA\"),0,COUNTIF($G$4:$G54,\"N\"))","v":0},"Principle 1","1.1 Fundamental human rights respected, labor rights protected","1.1.6: Adequate rest","SRA1.1.6 S2","Medium",{"$f":"'Principle 1'!F75","v":0},{"$f":"'Principle 1'!H75","v":0},null,51,null,"","","","","","",""]
[{"$f":"IF(OR(G55=\"Y\",G55=0,G55=\"NA\"),0,COUNTIF($G$4:$G55,\"N\"))","v":0},"Principle 1","1.1 Fundamental human rights respected, labor rights protected","1.1.6: Adequate rest","SRA1.1.6 S3","Medium",{"$f":"'Principle 1'!F76","v":0},{"$f":"'Principle 1'!H76","v":0},null,52,null,"","","","","","",""]
[{"$f":"IF(OR(G56=\"Y\",G56=0,G56=\"NA\"),0,COUNTIF($G$4:$G56,\"N\"))","v":0},"Principle 1","1.1 Fundamental human rights respected, labor rights protected","1.1.6: Adequate rest","SRA1.1.6 S4","Medium",{"$f":"'Principle 1'!F77","v":0},{"$f":"'Principle 1'!H77","v":0},null,53,null,"","","","","","",""]
[{"$f":"IF(OR(G57=\"Y\",G57=0,G57=\"NA\"),0,COUNTIF($G$4:$G57,\"N\"))","v":0},"Principle 1","1.1 Fundamental human rights respected, labor rights protected","1.1.6: Adequate rest","SRA1.1.6 S5","Medium",{"$f":"'Principle 1'!F78","v":0},{"$f":"'Principle 1'!H78","v":0},null,54,null,"","","","","","",""]
[{"$f":"IF(OR(G58=\"Y\",G58=0,G58=\"NA\"),0,COUNTIF($G$4:$G58,\"N\"))","v":0},"Principle 1","1.1 Fundamental human rights respected, labor rights protected","1.1.6: Adequate rest","SRA1.1.6 S6","Low",{"$f":"'Principle 1'!F79","v":0},{"$f":"'Principle 1'!H79","v":0},null,55,null,"","","","","","",""]
[{"$f":"IF(OR(G59=\"Y\",G59=0,G59=\"NA\"),0,COUNTIF($G$4:$G59,\"N\"))","v":0},"Principle 1","1.1 Fundamental human rights respected, labor rights protected","1.1.6: Adequate rest","SRA1.1.6 S7","Low",{"$f":"'Principle 1'!F80","v":0},{"$f":"'Principle 1'!H80","v":0},null,56,null,"","","","","","",""]
[{"$f":"IF(OR(G60=\"Y\",G60=0,G60=\"NA\"),0,COUNTIF($G$4:$G60,\"N\"))","v":0},"Principle 1","1.1 Fundamental human rights respected, labor rights protected","1.1.6: Adequate rest","SRA1.1.6 S8","Low",{"$f":"'Principle 1'!F81","v":0},{"$f":"'Principle 1'!H81","v":0},null,57,null,"","","","","","",""]
[{"$f":"IF(OR(G61=\"Y\",G61=0,G61=\"NA\"),0,COUNTIF($G$4:$G61,\"N\"))","v":0},"Principle 1","1.1 Fundamental human rights respected, labor rights protected","1.1.6: Adequate rest","SRA1.1.6 S9","Low",{"$f":"'Principle 1'!F82","v":0},{"$f":"'Principle 1'!H82","v":0},null,58,null,"","","","","","",""]
[{"$f":"IF(OR(G62=\"Y\",G62=0,G62=\"NA\"),0,COUNTIF($G$4:$G62,\"N\"))","v":0},"Principle 1","1.1 Fundamental human rights respected, labor rights protected","1.1.6: Adequate rest","SRA1.1.6 S10","Low",{"$f":"'Principle 1'!F83","v":0},{"$f":"'Principle 1'!H83","v":0},null,59,null,"","","","","","",""]
[{"$f":"IF(OR(G63=\"Y\",G63=0,G63=\"NA\"),0,COUNTIF($G$4:$G63,\"N\"))","v":0},"Principle 1","1.1 Fundamental human rights respected, labor rights protected","1.1.7a: Access to basic services for worker housing/live-aboard vessels","SRA1.1.7a S1","Medium",{"$f":"'Principle 1'!F87","v":0},{"$f":"'Principle 1'!H87","v":0},null,60,null,"","","","","","",""]
[{"$f":"IF(OR(G64=\"Y\",G64=0,G64=\"NA\"),0,COUNTIF($G$4:$G64,\"N\"))","v":0},"Principle 1","1.1 Fundamental human rights respected, labor rights protected","1.1.7a: Access to basic services for worker housing/live-aboard vessels","SRA1.1.7a S2","Medium",{"$f":"'Principle 1'!F88","v":0},{"$f":"'Principle 1'!H88","v":0},null,61,null,"","","","","","",""]
[{"$f":"IF(OR(G65=\"Y\",G65=0,G65=\"NA\"),0,COUNTIF($G$4:$G65,\"N\"))","v":0},"Principle 1","1.1 Fundamental human rights respected, labor rights protected","1.1.7a: Access to basic services for worker housing/live-aboard vessels","SRA1.1.7a S3","Medium",{"$f":"'Principle 1'!F89","v":0},{"$f":"'Principle 1'!H89","v":0},null,62,null,"","","","","","",""]
[{"$f":"IF(OR(G66=\"Y\",G66=0,G66=\"NA\"),0,COUNTIF($G$4:$G66,\"N\"))","v":0},"Principle 1","1.1 Fundamental human rights respected, labor rights protected","1.1.7a: Access to basic services for worker housing/live-aboard vessels","SRA1.1.7a S4","Medium",{"$f":"'Principle 1'!F90","v":0},{"$f":"'Principle 1'!H90","v":0},null,63,null,"","","","","","",""]
[{"$f":"IF(OR(G67=\"Y\",G67=0,G67=\"NA\"),0,COUNTIF($G$4:$G67,\"N\"))","v":0},"Principle 1","1.1 Fundamental human rights respected, labor rights protected","1.1.7a: Access to basic services for worker housing/live-aboard vessels","SRA1.1.7a S5","Medium",{"$f":"'Principle 1'!F91","v":0},{"$f":"'Principle 1'!H91","v":0},null,64,null,"","","","","","",""]
[{"$f":"IF(OR(G68=\"Y\",G68=0,G68=\"NA\"),0,COUNTIF($G$4:$G68,\"N\"))","v":0},"Principle 1","1.1 Fundamental human rights respected, labor rights protected","1.1.7a: Access to basic services for worker housing/live-aboard vessels","SRA1.1.7a S6","Medium",{"$f":"'Principle 1'!F92","v":0},{"$f":"'Principle 1'!H92","v":0},null,65,null,{"$f":"IFERROR(INDEX(B$4:B$204,MATCH($J68,$A$4:$A$204,0)),\"\")","v":""},{"$f":"IFERROR(INDEX(C$4:C$204,MATCH($J68,$A$4:$A$204,0)),\"\")","v":""},{"$f":"IFERROR(INDEX(D$4:D$204,MATCH($J68,$A$4:$A$204,0)),\"\")","v":""},{"$f":"IFERROR(INDEX(E$4:E$204,MATCH($J68,$A$4:$A$204,0)),\"\")","v":""},{"$f":"IFERROR(INDEX(F$4:F$204,MATCH($J68,$A$4:$A$204,0)),\"\")","v":""},{"$f":"IF(P68=\"Medium\",\"HIGH\",IF(P68=\"Low\",\"MEDIUM\",\"\"))","v":""},{"$f":"IFERROR(INDEX(H$4:H$204,MATCH($J68,$A$4:$A$204,0)),\"\")","v":""}]
[{"$f":"IF(OR(G69=\"Y\",G69=0,G69=\"NA\"),0,COUNTIF($G$4:$G69,\"N\"))","v":0},"Principle 1","1.1 Fundamental human rights respected, labor rights protected","1.1.7a: Access to basic services for worker housing/live-aboard vessels","SRA1.1.7a S7","Low",{"$f":"'Principle 1'!F93","v":0},{"$f":"'Principle 1'!H93","v":0},null,66,null,"","","","","","",""]
[{"$f":"IF(OR(G70=\"Y\",G70=0,G70=\"NA\"),0,COUNTIF($G$4:$G70,\"N\"))","v":0},"Principle 1","1.1 Fundamental human rights respected, labor rights protected","1.1.7a: Access to basic services for worker housing/live-aboard vessels","SRA1.1.7a S8","Low",{"$f":"'Principle 1'!F94","v":0},{"$f":"'Principle 1'!H94","v":0},null,67,null,"","","","","","",""]
[{"$f":"IF(OR(G71=\"Y\",G71=0,G71=\"NA\"),0,COUNTIF($G$4:$G71,\"N\"))","v":0},"Principle 1","1.1 Fundamental human rights respected, labor rights protected","1.1.7a: Access to basic services for worker housing/live-aboard vessels","SRA1.1.7a S9","Low",{"$f":"'Principle 1'!F95","v":0},{"$f":"'Principle 1'!H95","v":0},null,68,null,"","","","","","",""]
[{"$f":"IF(OR(G72=\"Y\",G72=0,G72=\"NA\"),0,COUNTIF($G$4:$G72,\"N\"))","v":0},"Principle 1","1.1 Fundamental human rights respected, labor rights protected","1.1.7a: Access to basic services for worker housing/live-aboard vessels","SRA1.1.7a S10","Low",{"$f":"'Principle 1'!F96","v":0},{"$f":"'Principle 1'!H96","v":0},null,69,null,"","","","","","",""]
[{"$f":"IF(OR(G73=\"Y\",G73=0,G73=\"NA\"),0,COUNTIF($G$4:$G73,\"N\"))","v":0},"Principle 1","1.1 Fundamental human rights respected, labor rights protected","1.1.7a: Access to basic services for worker housing/live-aboard vessels","SRA1.1.7a S11","Low",{"$f":"'Principle 1'!F97","v":0},{"$f":"'Principle 1'!H97","v":0},null,70,null,"","","","","","",""]
[{"$f":"IF(OR(G74=\"Y\",G74=0,G74=\"NA\"),0,COUNTIF($G$4:$G74,\"N\"))","v":0},"Principle 1","1.1 Fundamental human rights respected, labor rights protected","1.1.7b: Access to basic services (Small-scale fishing communities)","SRA1.1.7b S1","Medium",{"$f":"'Principle 1'!F101","v":0},{"$f":"'Principle 1'!H101","v":0},null,71,null,"","","","","","",""]
[{"$f":"IF(OR(G75=\"Y\",G75=0,G75=\"NA\"),0,COUNTIF($G$4:$G75,\"N\"))","v":0},"Principle 1","1.1 Fundamental human rights respected, labor rights protected","1.1.7b: Access to basic services (Small-scale fishing communities)","SRA1.1.7b S2","Medium",{"$f":"'Principle 1'!F102","v":0},{"$f":"'Principle 1'!H102","v":0},null,72,null,"","","","","","",""]
[{"$f":"IF(OR(G76=\"Y\",G76=0,G76=\"NA\"),0,COUNTIF($G$4:$G76,\"N\"))","v":0},"Principle 1","1.1 Fundamental human rights respected, labor rights protected","1.1.7b: Access to basic services (Small-scale fishing communities)","SRA1.1.7b S3","Medium",{"$f":"'Principle 1'!F103","v":0},{"$f":"'Principle 1'!H103","v":0},null,73,null,"","","","","","",""]
[{"$f":"IF(OR(G77=\"Y\",G77=0,G77=\"NA\"),0,COUNTIF($G$4:$G77,\"N\"))","v":0},"Principle 1","1.1 Fundamental human rights respected, labor rights protected","1.1.7b: Access to basic services (Small-scale fishing communities)","SRA1.1.7b S4","Medium",{"$f":"'Principle 1'!F104","v":0},{"$f":"'Principle 1'!H104","v":0},null,74,null,"","","","","","",""]
[{"$f":"IF(OR(G78=\"Y\",G78=0,G78=\"NA\"),0,COUNTIF($G$4:$G78,\"N\"))","v":0},"Principle 1","1.1 Fundamental human rights respected, labor rights protected","1.1.7b: Access to basic services (Small-scale fishing communities)","SRA1.1.7b S5","Medium",{"$f":"'Principle 1'!F105","v":0},{"$f":"'Principle 1'!H105","v":0},null,75,null,"","","","","","",""]
[{"$f":"IF(OR(G79=\"Y\",G79=0,G79=\"NA\"),0,COUNTIF($G$4:$G79,\"N\"))","v":0},"Principle 1","1.1 Fundamental human rights respected, labor rights protected","1.1.7b: Access to basic services (Small-scale fishing communities)","SRA1.1.7b S6","Low",{"$f":"'Principle 1'!F106","v":0},{"$f":"'Principle 1'!H106","v":0},null,76,null,"","","","","","",""]
[{"$f":"IF(OR(G80=\"Y\",G80=0,G80=\"NA\"),0,COUNTIF($G$4:$G80,\"N\"))","v":0},"Principle 1","1.1 Fundamental human rights respected, labor rights protected","1.1.7b: Access to basic services (Small-scale fishing communities)","SRA1.1.7b S7","Low",{"$f":"'Principle 1'!F107","v":0},{"$f":"'Principle 1'!H107","v":0},null,77,null,"","","","","","",""]
[{"$f":"IF(OR(G81=\"Y\",G81=0,G81=\"NA\"),0,COUNTIF($G$4:$G81,\"N\"))","v":0},"Principle 1","1.1 Fundamental human rights respected, labor rights protected","1.1.7b: Access to basic services (Small-scale fishing communities)","SRA1.1.7b S8","Low",{"$f":"'Principle 1'!F108","v":0},{"$f":"'Principle 1'!H108","v":0},null,78,null,"","","","","","",""]
[{"$f":"IF(OR(G82=\"Y\",G82=0,G82=\"NA\"),0,COUNTIF($G$4:$G82,\"N\"))","v":0},"Principle 1","1.1 Fundamental human rights respected, labor rights protected","1.1.7b: Access to basic services (Small-scale fishing communities)","SRA1.1.7b S9","Low",{"$f":"'Principle 1'!F109","v":0},{"$f":"'Principle 1'!H109","v":0},null,79,null,"","","","","","",""]
[{"$f":"IF(OR(G83=\"Y\",G83=0,G83=\"NA\"),0,COUNTIF($G$4:$G83,\"N\"))","v":0},"Principle 1","1.1 Fundamental human rights respected, labor rights protected","1.1.8: Occupational safety","SRA1.1.8 S1","Medium",{"$f":"'Principle 1'!F113","v":0},{"$f":"'Principle 1'!H113","v":0},null,80,null,"","","","","","",""]
[{"$f":"IF(OR(G84=\"Y\",G84=0,G84=\"NA\"),0,COUNTIF($G$4:$G84,\"N\"))","v":0},"Principle 1","1.1 Fundamental human rights respected, labor rights protected","1.1.8: Occupational safety","SRA1.1.8 S2","Medium",{"$f":"'Principle 1'!F114","v":0},{"$f":"'Principle 1'!H114","v":0},null,81,null,"","","","","","",""]
[{"$f":"IF(OR(G85=\"Y\",G85=0,G85=\"NA\"),0,COUNTIF($G$4:$G85,\"N\"))","v":0},"Principle 1","1.1 Fundamental human rights respected, labor rights protected","1.1.8: Occupational safety","SRA1.1.8 S3","Medium",{"$f":"'Principle 1'!F115","v":0},{"$f":"'Principle 1'!H115","v":0},null,82,null,"","","","","","",""]
[{"$f":"IF(OR(G86=\"Y\",G86=0,G86=\"NA\"),0,COUNTIF($G$4:$G86,\"N\"))","v":0},"Principle 1","1.1 Fundamental human rights respected, labor rights protected","1.1.8: Occupational safety","SRA1.1.8 S4","Medium",{"$f":"'Principle 1'!F116","v":0},{"$f":"'Principle 1'!H116","v":0},null,83,null,"","","","","","",""]
[{"$f":"IF(OR(G87=\"Y\",G87=0,G87=\"NA\"),0,COUNTIF($G$4:$G87,\"N\"))","v":0},"Principle 1","1.1 Fundamental human rights respected, labor rights protected","1.1.8: Occupational safety","SRA1.1.8 S5","Medium",{"$f":"'Principle 1'!F117","v":0},{"$f":"'Principle 1'!H117","v":0},null,84,null,"","","","","","",""]
[{"$f":"IF(OR(G88=\"Y\",G88=0,G88=\"NA\"),0,COUNTIF($G$4:$G88,\"N\"))","v":0},"Principle 1","1.1 Fundamental human rights respected, labor rights protected","1.1.8: Occupational safety","SRA1.1.8 S6","Medium",{"$f":"'Principle 1'!F118","v":0},{"$f":"'Principle 1'!H118","v":0},null,85,null,"","","","","","",""]
[{"$f":"IF(OR(G89=\"Y\",G89=0,G89=\"NA\"),0,COUNTIF($G$4:$G89,\"N\"))","v":0},"Principle 1","1.1 Fundamental human rights respected, labor rights protected","1.1.8: Occupational safety","SRA1.1.8 S7","Low",{"$f":"'Principle 1'!F119","v":0},{"$f":"'Principle 1'!H119","v":0},null,86,null,"","","","","","",""]
[{"$f":"IF(OR(G90=\"Y\",G90=0,G90=\"NA\"),0,COUNTIF($G$4:$G90,\"N\"))","v":0},"Principle 1","1.1 Fundamental human rights respected, labor rights protected","1.1.8: Occupational safety","SRA1.1.8 S8","Low",{"$f":"'Principle 1'!F120","v":0},{"$f":"'Principle 1'!H120","v":0},null,87,null,"","","","","","",""]
[{"$f":"IF(OR(G91=\"Y\",G91=0,G91=\"NA\"),0,COUNTIF($G$4:$G91,\"N\"))","v":0},"Principle 1","1.1 Fundamental human rights respected, labor rights protected","1.1.8: Occupational safety","SRA1.1.8 S9","Low",{"$f":"'Principle 1'!F121","v":0},{"$f":"'Principle 1'!H121","v":0},null,88,null,"","","","","","",""]
[{"$f":"IF(OR(G92=\"Y\",G92=0,G92=\"NA\"),0,COUNTIF($G$4:$G92,\"N\"))","v":0},"Principle 1","1.1 Fundamental human rights respected, labor rights protected","1.1.8: Occupational safety","SRA1.1.8 S10","Low",{"$f":"'Principle 1'!F122","v":0},{"$f":"'Principle 1'!H122","v":0},null,89,null,"","","","","","",""]
[{"$f":"IF(OR(G93=\"Y\",G93=0,G93=\"NA\"),0,COUNTIF($G$4:$G93,\"N\"))","v":0},"Principle 1","1.1 Fundamental human rights respected, labor rights protected","1.1.8: Occupational safety","SRA1.1.8 S11","Low",{"$f":"'Principle 1'!F123","v":0},{"$f":"'Principle 1'!H123","v":0},null,90,null,"","","","","","",""]
[{"$f":"IF(OR(G94=\"Y\",G94=0,G94=\"NA\"),0,COUNTIF($G$4:$G94,\"N\"))","v":0},"Principle 1","1.1 Fundamental human rights respected, labor rights protected","1.1.8: Occupational safety","SRA1.1.8 S12","Low",{"$f":"'Principle 1'!F124","v":0},{"$f":"'Principle 1'!H124","v":0},null,91,null,"","","","","","",""]
[{"$f":"IF(OR(G95=\"Y\",G95=0,G95=\"NA\"),0,COUNTIF($G$4:$G95,\"N\"))","v":0},"Principle 1","1.1 Fundamental human rights respected, labor rights protected","1.1.9: Medical response","SRA1.1.9 S1","Medium",{"$f":"'Principle 1'!F128","v":0},{"$f":"'Principle 1'!H128","v":0},null,92,null,"","","","","","",""]
[{"$f":"IF(OR(G96=\"Y\",G96=0,G96=\"NA\"),0,COUNTIF($G$4:$G96,\"N\"))","v":0},"Principle 1","1.1 Fundamental human rights respected, labor rights protected","1.1.9: Medical response","SRA1.1.9 S2","Medium",{"$f":"'Principle 1'!F129","v":0},{"$f":"'Principle 1'!H129","v":0},null,93,null,"","","","","","",""]
[{"$f":"IF(OR(G97=\"Y\",G97=0,G97=\"NA\"),0,COUNTIF($G$4:$G97,\"N\"))","v":0},"Principle 1","1.1 Fundamental human rights respected, labor rights protected","1.1.9: Medical response","SRA1.1.9 S3","Medium",{"$f":"'Principle 1'!F130","v":0},{"$f":"'Principle 1'!H130","v":0},null,94,null,"","","","","","",""]
[{"$f":"IF(OR(G98=\"Y\",G98=0,G98=\"NA\"),0,COUNTIF($G$4:$G98,\"N\"))","v":0},"Principle 1","1.1 Fundamental human rights respected, labor rights protected","1.1.9: Medical response","SRA1.1.9 S4","Medium",{"$f":"'Principle 1'!F131","v":0},{"$f":"'Principle 1'!H131","v":0},null,95,null,"","","","","","",""]
[{"$f":"IF(OR(G99=\"Y\",G99=0,G99=\"NA\"),0,COUNTIF($G$4:$G99,\"N\"))","v":0},"Principle 1","1.1 Fundamental human rights respected, labor rights protected","1.1.9: Medical response","SRA1.1.9 S5","Medium",{"$f":"'Principle 1'!F132","v":0},{"$f":"'Principle 1'!H132","v":0},null,96,null,"","","","","","",""]
[{"$f":"IF(OR(G100=\"Y\",G100=0,G100=\"NA\"),0,COUNTIF($G$4:$G100,\"N\"))","v":0},"Principle 1","1.1 Fundamental human rights respected, labor rights protected","1.1.9: Medical response","SRA1.1.9 S6","Low",{"$f":"'Principle 1'!F133","v":0},{"$f":"'Principle 1'!H133","v":0},null,97,null,"","","","","","",""]
[{"$f":"IF(OR(G101=\"Y\",G101=0,G101=\"NA\"),0,COUNTIF($G$4:$G101,\"N\"))","v":0},"Principle 1","1.1 Fundamental human rights respected, labor rights protected","1.1.9: Medical response","SRA1.1.9 S7","Low",{"$f":"'Principle 1'!F134","v":0},{"$f":"'Principle 1'!H134","v":0},null,98,null,"","","","","","",""]
[{"$f":"IF(OR(G102=\"Y\",G102=0,G102=\"NA\"),0,COUNTIF($G$4:$G102,\"N\"))","v":0},"Principle 1","1.2 Rights and access to resources are respected and fairly allocated and respectful of collective and indigenous rights","1.2.1: Customary use rights","SRA1.2.1 S1","Medium",{"$f":"'Principle 1'!F139","v":0},{"$f":"'Principle 1'!H139","v":0},null,99,null,"","","","","","",""]
[{"$f":"IF(OR(G103=\"Y\",G103=0,G103=\"NA\"),0,COUNTIF($G$4:$G103,\"N\"))","v":0},"Principle 1","1.2 Rights and access to resources are respected and fairly allocated and respectful of collective and indigenous rights","1.2.1: Customary use rights","SRA1.2.1 S2","Medium",{"$f":"'Principle 1'!F140","v":0},{"$f":"'Principle 1'!H140","v":0},null,100,null,"","","","","","",""]
[{"$f":"IF(OR(G104=\"Y\",G104=0,G104=\"NA\"),0,COUNTIF($G$4:$G104,\"N\"))","v":0},"Principle 1","1.2 Rights and access to resources are respected and fairly allocated and respectful of collective and indigenous rights","1.2.1: Customary use rights","SRA1.2.1 S3","Medium",{"$f":"'Principle 1'!F141","v":0},{"$f":"'Principle 1'!H141","v":0},null,101,null,"","","","","","",""]
[{"$f":"IF(OR(G105=\"Y\",G105=0,G105=\"NA\"),0,COUNTIF($G$4:$G105,\"N\"))","v":0},"Principle 1","1.2 Rights and access to resources are respected and fairly allocated and respectful of collective and indigenous rights","1.2.1: Customary use rights","SRA1.2.1 S4","Medium",{"$f":"'Principle 1'!F142","v":0},{"$f":"'Principle 1'!H142","v":0},null,102,null,"","","","","","",""]
[{"$f":"IF(OR(G106=\"Y\",G106=0,G106=\"NA\"),0,COUNTIF($G$4:$G106,\"N\"))","v":0},"Principle 1","1.2 Rights and access to resources are respected and fairly allocated and respectful of collective and indigenous rights","1.2.1: Customary use rights","SRA1.2.1 S5","Medium",{"$f":"'Principle 1'!F143","v":0},{"$f":"'Principle 1'!H143","v":0},null,103,null,"","","","","","",""]
[{"$f":"IF(OR(G107=\"Y\",G107=0,G107=\"NA\"),0,COUNTIF($G$4:$G107,\"N\"))","v":0},"Principle 1","1.2 Rights and access to resources are respected and fairly allocated and respectful of collective and indigenous rights","1.2.1: Customary use rights","SRA1.2.1 S6","Medium",{"$f":"'Principle 1'!F144","v":0},{"$f":"'Principle 1'!H144","v":0},null,104,null,"","","","","","",""]
[{"$f":"IF(OR(G108=\"Y\",G108=0,G108=\"NA\"),0,COUNTIF($G$4:$G108,\"N\"))","v":0},"Principle 1","1.2 Rights and access to resources are respected and fairly allocated and respectful of collective and indigenous rights","1.2.1: Customary use rights","SRA1.2.1 S7","Low",{"$f":"'Principle 1'!F145","v":0},{"$f":"'Principle 1'!H145","v":0},null,105,null,"","","","","","",""]
[{"$f":"IF(OR(G109=\"Y\",G109=0,G109=\"NA\"),0,COUNTIF($G$4:$G109,\"N\"))","v":0},"Principle 1","1.2 Rights and access to resources are respected and fairly allocated and respectful of collective and indigenous rights","1.2.1: Customary use rights","SRA1.2.1 S8","Low",{"$f":"'Principle 1'!F146","v":0},{"$f":"'Principle 1'!H146","v":0},null,106,null,"","","","","","",""]
[{"$f":"IF(OR(G110=\"Y\",G110=0,G110=\"NA\"),0,COUNTIF($G$4:$G110,\"N\"))","v":0},"Principle 1","1.2 Rights and access to resources are respected and fairly allocated and respectful of collective and indigenous rights","1.2.1: Customary use rights","SRA1.2.1 S9","Low",{"$f":"'Principle 1'!F147","v":0},{"$f":"'Principle 1'!H147","v":0},null,107,null,"","","","","","",""]
[{"$f":"IF(OR(G111=\"Y\",G111=0,G111=\"NA\"),0,COUNTIF($G$4:$G111,\"N\"))","v":0},"Principle 1","1.2 Rights and access to resources are respected and fairly allocated and respectful of collective and indigenous rights","1.2.1: Customary use rights","SRA1.2.1 S10","Low",{"$f":"'Principle 1'!F148","v":0},{"$f":"'Principle 1'!H148","v":0},null,108,null,"","","","","","",""]
[{"$f":"IF(OR(G112=\"Y\",G112=0,G112=\"NA\"),0,COUNTIF($G$4:$G112,\"N\"))","v":0},"Principle 1","1.2 Rights and access to resources are respected and fairly allocated and respectful of collective and indigenous rights","1.2.1: Customary use rights","SRA1.2.1 S11","Low",{"$f":"'Principle 1'!F149","v":0},{"$f":"'Principle 1'!H149","v":0},null,109,null,"","","","","","",""]
[{"$f":"IF(OR(G113=\"Y\",G113=0,G113=\"NA\"),0,COUNTIF($G$4:$G113,\"N\"))","v":0},"Principle 1","1.2 Rights and access to resources are respected and fairly allocated and respectful of collective and indigenous rights","1.2.2: Corporate responsibility and transparency","SRA1.2.2 S1","Medium",{"$f":"'Principle 1'!F153","v":0},{"$f":"'Principle 1'!H153","v":0},null,110,null,"","","","","","",""]
[{"$f":"IF(OR(G114=\"Y\",G114=0,G114=\"NA\"),0,COUNTIF($G$4:$G114,\"N\"))","v":0},"Principle 1","1.2 Rights and access to resources are respected and fairly allocated and respectful of collective and indigenous rights","1.2.2: Corporate responsibility and transparency","SRA1.2.2 S2","Medium",{"$f":"'Principle 1'!F154","v":0},{"$f":"'Principle 1'!H154","v":0},null,111,null,"","","","","","",""]
[{"$f":"IF(OR(G115=\"Y\",G115=0,G115=\"NA\"),0,COUNTIF($G$4:$G115,\"N\"))","v":0},"Principle 1","1.2 Rights and access to resources are respected and fairly allocated and respectful of collective and indigenous rights","1.2.2: Corporate responsibility and transparency","SRA1.2.2 S3","Medium",{"$f":"'Principle 1'!F155","v":0},{"$f":"'Principle 1'!H155","v":0},null,112,null,"","","","","","",""]
[{"$f":"IF(OR(G116=\"Y\",G116=0,G116=\"NA\"),0,COUNTIF($G$4:$G116,\"N\"))","v":0},"Principle 1","1.2 Rights and access to resources are respected and fairly allocated and respectful of collective and indigenous rights","1.2.2: Corporate responsibility and transparency","SRA1.2.2 S4","Medium",{"$f":"'Principle 1'!F156","v":0},{"$f":"'Principle 1'!H156","v":0},null,113,null,"","","","","","",""]
[{"$f":"IF(OR(G117=\"Y\",G117=0,G117=\"NA\"),0,COUNTIF($G$4:$G117,\"N\"))","v":0},"Principle 1","1.2 Rights and access to resources are respected and fairly allocated and respectful of collective and indigenous rights","1.2.2: Corporate responsibility and transparency","SRA1.2.2 S5","Low",{"$f":"'Principle 1'!F157","v":0},{"$f":"'Principle 1'!H157","v":0},null,114,null,"","","","","","",""]
[{"$f":"IF(OR(G118=\"Y\",G118=0,G118=\"NA\"),0,COUNTIF($G$4:$G118,\"N\"))","v":0},"Principle 1","1.2 Rights and access to resources are respected and fairly allocated and respectful of collective and indigenous rights","1.2.2: Corporate responsibility and transparency","SRA1.2.2 S6","Low",{"$f":"'Principle 1'!F158","v":0},{"$f":"'Principle 1'!H158","v":0},null,115,null,"","","","","","",""]
[{"$f":"IF(OR(G119=\"Y\",G119=0,G119=\"NA\"),0,COUNTIF($G$4:$G119,\"N\"))","v":0},"Principle 1","1.2 Rights and access to resources are respected and fairly allocated and respectful of collective and indigenous rights","1.2.2: Corporate responsibility and transparency","SRA1.2.2 S7","Low",{"$f":"'Principle 1'!F159","v":0},{"$f":"'Principle 1'!H159","v":0},null,116,null,"","","","","","",""]
[{"$f":"IF(OR(G120=\"Y\",G120=0,G120=\"NA\"),0,COUNTIF($G$4:$G120,\"N\"))","v":0},"Principle 1","1.2 Rights and access to resources are respected and fairly allocated and respectful of collective and indigenous rights","1.2.2: Corporate responsibility and transparency","SRA1.2.2 S8","Low",{"$f":"'Principle 1'!F160","v":0},{"$f":"'Principle 1'!H160","v":0},null,117,null,"","","","","","",""]
[{"$f":"IF(OR(G121=\"Y\",G121=0,G121=\"NA\"),0,COUNTIF($G$4:$G121,\"N\"))","v":0},"Principle 1","1.2 Rights and access to resources are respected and fairly allocated and respectful of collective and indigenous rights","1.2.2: Corporate responsibility and transparency","SRA1.2.2 S9","Low",{"$f":"'Principle 1'!F161","v":0},{"$f":"'Principle 1'!H161","v":0},null,118,null,"","","","","","",""]
[{"$f":"IF(OR(G122=\"Y\",G122=0,G122=\"NA\"),0,COUNTIF($G$4:$G122,\"N\"))","v":0},"Principle 2","2.1: Recognition, voice, and respectful engagement for all groups, irrespective of gender, ethnicity, culture, political, or socioeconomic status  ","2.1.1 Grievance reporting and access to remedy","SRA2.1.1 S1","Medium",{"$f":"'Principle 2'!F7","v":0},{"$f":"'Principle 2'!H7","v":0},null,119,null,"","","","","","",""]
[{"$f":"IF(OR(G123=\"Y\",G123=0,G123=\"NA\"),0,COUNTIF($G$4:$G123,\"N\"))","v":0},"Principle 2","2.1: Recognition, voice, and respectful engagement for all groups, irrespective of gender, ethnicity, culture, political, or socioeconomic status  ","2.1.1 Grievance reporting and access to remedy","SRA2.1.1 S2","Medium",{"$f":"'Principle 2'!F8","v":0},{"$f":"'Principle 2'!H8","v":0},null,120,null,"","","","","","",""]
[{"$f":"IF(OR(G124=\"Y\",G124=0,G124=\"NA\"),0,COUNTIF($G$4:$G124,\"N\"))","v":0},"Principle 2","2.1: Recognition, voice, and respectful engagement for all groups, irrespective of gender, ethnicity, culture, political, or socioeconomic status  ","2.1.1 Grievance reporting and access to remedy","SRA2.1.1 S3","Medium",{"$f":"'Principle 2'!F9","v":0},{"$f":"'Principle 2'!H9","v":0},null,121,null,"","","","","","",""]
[{"$f":"IF(OR(G125=\"Y\",G125=0,G125=\"NA\"),0,COUNTIF($G$4:$G125,\"N\"))","v":0},"Principle 2","2.1: Recognition, voice, and respectful engagement for all groups, irrespective of gender, ethnicity, culture, political, or socioeconomic status  ","2.1.1 Grievance reporting and access to remedy","SRA2.1.1 S4","Low",{"$f":"'Principle 2'!F10","v":0},{"$f":"'Principle 2'!H10","v":0},null,122,null,"","","","","","",""]
[{"$f":"IF(OR(G126=\"Y\",G126=0,G126=\"NA\"),0,COUNTIF($G$4:$G126,\"N\"))","v":0},"Principle 2","2.1: Recognition, voice, and respectful engagement for all groups, irrespective of gender, ethnicity, culture, political, or socioeconomic status  ","2.1.1 Grievance reporting and access to remedy","SRA2.1.1 S5","Low",{"$f":"'Principle 2'!F11","v":0},{"$f":"'Principle 2'!H11","v":0},null,123,null,"","","","","","",""]
[{"$f":"IF(OR(G127=\"Y\",G127=0,G127=\"NA\"),0,COUNTIF($G$4:$G127,\"N\"))","v":0},"Principle 2","2.1: Recognition, voice, and respectful engagement for all groups, irrespective of gender, ethnicity, culture, political, or socioeconomic status  ","2.1.1 Grievance reporting and access to remedy","SRA2.1.1 S6","Low",{"$f":"'Principle 2'!F12","v":0},{"$f":"'Principle 2'!H12","v":0},null,124,null,"","","","","","",""]
[{"$f":"IF(OR(G128=\"Y\",G128=0,G128=\"NA\"),0,COUNTIF($G$4:$G128,\"N\"))","v":0},"Principle 2","2.1: Recognition, voice, and respectful engagement for all groups, irrespective of gender, ethnicity, culture, political, or socioeconomic status  ","2.1.2: Stakeholder Participation and Collaborative Management","SRA2.1.2 S1","Medium",{"$f":"'Principle 2'!F16","v":0},{"$f":"'Principle 2'!H16","v":0},null,125,null,"","","","","","",""]
[{"$f":"IF(OR(G129=\"Y\",G129=0,G129=\"NA\"),0,COUNTIF($G$4:$G129,\"N\"))","v":0},"Principle 2","2.1: Recognition, voice, and respectful engagement for all groups, irrespective of gender, ethnicity, culture, political, or socioeconomic status  ","2.1.2: Stakeholder Participation and Collaborative Management","SRA2.1.2 S2","Medium",{"$f":"'Principle 2'!F17","v":0},{"$f":"'Principle 2'!H17","v":0},null,126,null,"","","","","","",""]
[{"$f":"IF(OR(G130=\"Y\",G130=0,G130=\"NA\"),0,COUNTIF($G$4:$G130,\"N\"))","v":0},"Principle 2","2.1: Recognition, voice, and respectful engagement for all groups, irrespective of gender, ethnicity, culture, political, or socioeconomic status  ","2.1.2: Stakeholder Participation and Collaborative Management","SRA2.1.2 S3","Medium",{"$f":"'Principle 2'!F18","v":0},{"$f":"'Principle 2'!H18","v":0},null,127,null,"","","","","","",""]
[{"$f":"IF(OR(G131=\"Y\",G131=0,G131=\"NA\"),0,COUNTIF($G$4:$G131,\"N\"))","v":0},"Principle 2","2.1: Recognition, voice, and respectful engagement for all groups, irrespective of gender, ethnicity, culture, political, or socioeconomic status  ","2.1.2: Stakeholder Participation and Collaborative Management","SRA2.1.2 S4","Medium",{"$f":"'Principle 2'!F19","v":0},{"$f":"'Principle 2'!H19","v":0},null,128,null,"","","","","","",""]
[{"$f":"IF(OR(G132=\"Y\",G132=0,G132=\"NA\"),0,COUNTIF($G$4:$G132,\"N\"))","v":0},"Principle 2","2.1: Recognition, voice, and respectful engagement for all groups, irrespective of gender, ethnicity, culture, political, or socioeconomic status  ","2.1.2: Stakeholder Participation and Collaborative Management","SRA2.1.2 S5","Low",{"$f":"'Principle 2'!F20","v":0},{"$f":"'Principle 2'!H20","v":0},null,129,null,{"$f":"IFERROR(INDEX(B$4:B$204,MATCH($J132,$A$4:$A$204,0)),\"\")","v":""},{"$f":"IFERROR(INDEX(C$4:C$204,MATCH($J132,$A$4:$A$204,0)),\"\")","v":""},{"$f":"IFERROR(INDEX(D$4:D$204,MATCH($J132,$A$4:$A$204,0)),\"\")","v":""},{"$f":"IFERROR(INDEX(E$4:E$204,MATCH($J132,$A$4:$A$204,0)),\"\")","v":""},{"$f":"IFERROR(INDEX(F$4:F$204,MATCH($J132,$A$4:$A$204,0)),\"\")","v":""},{"$f":"IF(P132=\"Medium\",\"HIGH\",IF(P132=\"Low\",\"MEDIUM\",\"\"))","v":""},{"$f":"IFERROR(INDEX(H$4:H$204,MATCH($J132,$A$4:$A$204,0)),\"\")","v":""}]
[{"$f":"IF(OR(G133=\"Y\",G133=0,G133=\"NA\"),0,COUNTIF($G$4:$G133,\"N\"))","v":0},"Principle 2","2.1: Recognition, voice, and respectful engagement for all groups, irrespective of gender, ethnicity, culture, political, or socioeconomic status  ","2.1.2: Stakeholder Participation and Collaborative Management","SRA2.1.2 S6","Low",{"$f":"'Principle 2'!F21","v":0},{"$f":"'Principle 2'!H21","v":0},null,130,null,"","","","","","",""]
[{"$f":"IF(OR(G134=\"Y\",G134=0,G134=\"NA\"),0,COUNTIF($G$4:$G134,\"N\"))","v":0},"Principle 2","2.1: Recognition, voice, and respectful engagement for all groups, irrespective of gender, ethnicity, culture, political, or socioeconomic status  ","2.1.2: Stakeholder Participation and Collaborative Management","SRA2.1.2 S7","Low",{"$f":"'Principle 2'!F22","v":0},{"$f":"'Principle 2'!H22","v":0},null,131,null,"","","","","","",""]
[{"$f":"IF(OR(G135=\"Y\",G135=0,G135=\"NA\"),0,COUNTIF($G$4:$G135,\"N\"))","v":0},"Principle 2","2.1: Recognition, voice, and respectful engagement for all groups, irrespective of gender, ethnicity, culture, political, or socioeconomic status  ","2.1.2: Stakeholder Participation and Collaborative Management","SRA2.1.2 S8","Low",{"$f":"'Principle 2'!F23","v":0},{"$f":"'Principle 2'!H23","v":0},null,132,null,"","","","","","",""]
[{"$f":"IF(OR(G136=\"Y\",G136=0,G136=\"NA\"),0,COUNTIF($G$4:$G136,\"N\"))","v":0},"Principle 2","2.2: Equitable opportunities to benefit are ensured to all, through the entire supply chain ","2.2.1: Equitable opportunity to benefit","SRA2.2.1 S1","Medium",{"$f":"'Principle 2'!F28","v":0},{"$f":"'Principle 2'!H28","v":0},null,133,null,"","","","","","",""]
[{"$f":"IF(OR(G137=\"Y\",G137=0,G137=\"NA\"),0,COUNTIF($G$4:$G137,\"N\"))","v":0},"Principle 2","2.2: Equitable opportunities to benefit are ensured to all, through the entire supply chain ","2.2.1: Equitable opportunity to benefit","SRA2.2.1 S2","Medium",{"$f":"'Principle 2'!F29","v":0},{"$f":"'Principle 2'!H29","v":0},null,134,null,"","","","","","",""]
[{"$f":"IF(OR(G138=\"Y\",G138=0,G138=\"NA\"),0,COUNTIF($G$4:$G138,\"N\"))","v":0},"Principle 2","2.2: Equitable opportunities to benefit are ensured to all, through the entire supply chain ","2.2.1: Equitable opportunity to benefit","SRA2.2.1 S3","Low",{"$f":"'Principle 2'!F30","v":0},{"$f":"'Principle 2'!H30","v":0},null,135,null,"","","","","","",""]
[{"$f":"IF(OR(G139=\"Y\",G139=0,G139=\"NA\"),0,COUNTIF($G$4:$G139,\"N\"))","v":0},"Principle 2","2.2: Equitable opportunities to benefit are ensured to all, through the entire supply chain ","2.2.1: Equitable opportunity to benefit","SRA2.2.1 S4","Low",{"$f":"'Principle 2'!F31","v":0},{"$f":"'Principle 2'!H31","v":0},null,136,null,"","","","","","",""]
[{"$f":"IF(OR(G140=\"Y\",G140=0,G140=\"NA\"),0,COUNTIF($G$4:$G140,\"N\"))","v":0},"Principle 2","2.2: Equitable opportunities to benefit are ensured to all, through the entire supply chain ","2.2.2: Discrimination","SRA2.2.2 S1","Medium",{"$f":"'Principle 2'!F35","v":0},{"$f":"'Principle 2'!H35","v":0},null,137,null,"","","","","","",""]
[{"$f":"IF(OR(G141=\"Y\",G141=0,G141=\"NA\"),0,COUNTIF($G$4:$G141,\"N\"))","v":0},"Principle 2","2.2: Equitable opportunities to benefit are ensured to all, through the entire supply chain ","2.2.2: Discrimination","SRA2.2.2 S2","Medium",{"$f":"'Principle 2'!F36","v":0},{"$f":"'Principle 2'!H36","v":0},null,138,null,"","","","","","",""]
[{"$f":"IF(OR(G142=\"Y\",G142=0,G142=\"NA\"),0,COUNTIF($G$4:$G142,\"N\"))","v":0},"Principle 2","2.2: Equitable opportunities to benefit are ensured to all, through the entire supply chain ","2.2.2: Discrimination","SRA2.2.2 S3","Medium",{"$f":"'Principle 2'!F37","v":0},{"$f":"'Principle 2'!H37","v":0},null,139,null,"","","","","","",""]
[{"$f":"IF(OR(G143=\"Y\",G143=0,G143=\"NA\"),0,COUNTIF($G$4:$G143,\"N\"))","v":0},"Principle 2","2.2: Equitable opportunities to benefit are ensured to all, through the entire supply chain ","2.2.2: Discrimination","SRA2.2.2 S4","Medium",{"$f":"'Principle 2'!F38","v":0},{"$f":"'Principle 2'!H38","v":0},null,140,null,"","","","","","",""]
[{"$f":"IF(OR(G144=\"Y\",G144=0,G144=\"NA\"),0,COUNTIF($G$4:$G144,\"N\"))","v":0},"Principle 2","2.2: Equitable opportunities to benefit are ensured to all, through the entire supply chain ","2.2.2: Discrimination","SRA2.2.2 S5","Medium",{"$f":"'Principle 2'!F39","v":0},{"$f":"'Principle 2'!H39","v":0},null,141,null,"","","","","","",""]
[{"$f":"IF(OR(G145=\"Y\",G145=0,G145=\"NA\"),0,COUNTIF($G$4:$G145,\"N\"))","v":0},"Principle 2","2.2: Equitable opportunities to benefit are ensured to all, through the entire supply chain ","2.2.2: Discrimination","SRA2.2.2 S6","Low",{"$f":"'Principle 2'!F40","v":0},{"$f":"'Principle 2'!H40","v":0},null,142,null,"","","","","","",""]
[{"$f":"IF(OR(G146=\"Y\",G146=0,G146=\"NA\"),0,COUNTIF($G$4:$G146,\"N\"))","v":0},"Principle 2","2.2: Equitable opportunities to benefit are ensured to all, through the entire supply chain ","2.2.2: Discrimination","SRA2.2.2 S7","Low",{"$f":"'Principle 2'!F41","v":0},{"$f":"'Principle 2'!H41","v":0},null,143,null,"","","","","","",""]
[{"$f":"IF(OR(G147=\"Y\",G147=0,G147=\"NA\"),0,COUNTIF($G$4:$G147,\"N\"))","v":0},"Principle 3","3.1 Nutritional and sustenance needs of resource-dependent communities are maintained or improved","3.1.1a Food and nutrition security impacts of industrial fisheries","SRA3.1.1a S1","Medium",{"$f":"'Principle 3'!F7","v":0},{"$f":"'Principle 3'!H7","v":0},null,144,null,"","","","","","",""]
[{"$f":"IF(OR(G148=\"Y\",G148=0,G148=\"NA\"),0,COUNTIF($G$4:$G148,\"N\"))","v":0},"Principle 3","3.1 Nutritional and sustenance needs of resource-dependent communities are maintained or improved","3.1.1a Food and nutrition security impacts of industrial fisheries","SRA3.1.1a S2","Medium",{"$f":"'Principle 3'!F8","v":0},{"$f":"'Principle 3'!H8","v":0},null,145,null,"","","","","","",""]
[{"$f":"IF(OR(G149=\"Y\",G149=0,G149=\"NA\"),0,COUNTIF($G$4:$G149,\"N\"))","v":0},"Principle 3","3.1 Nutritional and sustenance needs of resource-dependent communities are maintained or improved","3.1.1a Food and nutrition security impacts of industrial fisheries","SRA3.1.1a S3","Low",{"$f":"'Principle 3'!F9","v":0},{"$f":"'Principle 3'!H9","v":0},null,146,null,"","","","","","",""]
[{"$f":"IF(OR(G150=\"Y\",G150=0,G150=\"NA\"),0,COUNTIF($G$4:$G150,\"N\"))","v":0},"Principle 3","3.1 Nutritional and sustenance needs of resource-dependent communities are maintained or improved","3.1.1b Food and nutrition security for small-scale fishing communities","SRA3.1.1b S1","Medium",{"$f":"'Principle 3'!F13","v":0},{"$f":"'Principle 3'!#REF!","v":{"$error":"#REF!"}},null,147,null,"","","","","","",""]
[{"$f":"IF(OR(G151=\"Y\",G151=0,G151=\"NA\"),0,COUNTIF($G$4:$G151,\"N\"))","v":0},"Principle 3","3.1 Nutritional and sustenance needs of resource-dependent communities are maintained or improved","3.1.1b Food and nutrition security for small-scale fishing communities","SRA3.1.1b S2","Medium",{"$f":"'Principle 3'!F14","v":0},{"$f":"'Principle 3'!H13","v":0},null,148,null,"","","","","","",""]
[{"$f":"IF(OR(G152=\"Y\",G152=0,G152=\"NA\"),0,COUNTIF($G$4:$G152,\"N\"))","v":0},"Principle 3","3.1 Nutritional and sustenance needs of resource-dependent communities are maintained or improved","3.1.1b Food and nutrition security for small-scale fishing communities","SRA3.1.1b S3","Medium",{"$f":"'Principle 3'!F15","v":0},{"$f":"'Principle 3'!H14","v":0},null,149,null,"","","","","","",""]
[{"$f":"IF(OR(G153=\"Y\",G153=0,G153=\"NA\"),0,COUNTIF($G$4:$G153,\"N\"))","v":0},"Principle 3","3.1 Nutritional and sustenance needs of resource-dependent communities are maintained or improved","3.1.1b Food and nutrition security for small-scale fishing communities","SRA3.1.1b S4","Low",{"$f":"'Principle 3'!F16","v":0},{"$f":"'Principle 3'!H16","v":0},null,150,null,"","","","","","",""]
[{"$f":"IF(OR(G154=\"Y\",G154=0,G154=\"NA\"),0,COUNTIF($G$4:$G154,\"N\"))","v":0},"Principle 3","3.1 Nutritional and sustenance needs of resource-dependent communities are maintained or improved","3.1.1b Food and nutrition security for small-scale fishing communities","SRA3.1.1b S5","Low",{"$f":"'Principle 3'!F17","v":0},{"$f":"'Principle 3'!H17","v":0},null,151,null,"","","","","","",""]
[{"$f":"IF(OR(G155=\"Y\",G155=0,G155=\"NA\"),0,COUNTIF($G$4:$G155,\"N\"))","v":0},"Principle 3","3.1 Nutritional and sustenance needs of resource-dependent communities are maintained or improved","3.1.2 Healthcare","SRA3.1.2 S1","Medium",{"$f":"'Principle 3'!F21","v":0},{"$f":"'Principle 3'!H21","v":0},null,152,null,"","","","","","",""]
[{"$f":"IF(OR(G156=\"Y\",G156=0,G156=\"NA\"),0,COUNTIF($G$4:$G156,\"N\"))","v":0},"Principle 3","3.1 Nutritional and sustenance needs of resource-dependent communities are maintained or improved","3.1.2 Healthcare","SRA3.1.2 S2","Medium",{"$f":"'Principle 3'!F22","v":0},{"$f":"'Principle 3'!H22","v":0},null,153,null,"","","","","","",""]
[{"$f":"IF(OR(G157=\"Y\",G157=0,G157=\"NA\"),0,COUNTIF($G$4:$G157,\"N\"))","v":0},"Principle 3","3.1 Nutritional and sustenance needs of resource-dependent communities are maintained or improved","3.1.2 Healthcare","SRA3.1.2 S3","Medium",{"$f":"'Principle 3'!F23","v":0},{"$f":"'Principle 3'!H23","v":0},null,154,null,"","","","","","",""]
[{"$f":"IF(OR(G158=\"Y\",G158=0,G158=\"NA\"),0,COUNTIF($G$4:$G158,\"N\"))","v":0},"Principle 3","3.1 Nutritional and sustenance needs of resource-dependent communities are maintained or improved","3.1.2 Healthcare","SRA3.1.2 S4","Low",{"$f":"'Principle 3'!F24","v":0},{"$f":"'Principle 3'!H24","v":0},null,155,null,"","","","","","",""]
[{"$f":"IF(OR(G159=\"Y\",G159=0,G159=\"NA\"),0,COUNTIF($G$4:$G159,\"N\"))","v":0},"Principle 3","3.1 Nutritional and sustenance needs of resource-dependent communities are maintained or improved","3.1.2 Healthcare","SRA3.1.2 S5","Low",{"$f":"'Principle 3'!F25","v":0},{"$f":"'Principle 3'!H25","v":0},null,156,null,"","","","","","",""]
[{"$f":"IF(OR(G160=\"Y\",G160=0,G160=\"NA\"),0,COUNTIF($G$4:$G160,\"N\"))","v":0},"Principle 3","3.1 Nutritional and sustenance needs of resource-dependent communities are maintained or improved","3.1.2 Healthcare","SRA3.1.2 S6","Low",{"$f":"'Principle 3'!F26","v":0},{"$f":"'Principle 3'!H26","v":0},null,157,null,"","","","","","",""]
[{"$f":"IF(OR(G161=\"Y\",G161=0,G161=\"NA\"),0,COUNTIF($G$4:$G161,\"N\"))","v":0},"Principle 3","3.1 Nutritional and sustenance needs of resource-dependent communities are maintained or improved","3.1.3 Education","SRA3.1.3 S1","Medium",{"$f":"'Principle 3'!F30","v":0},{"$f":"'Principle 3'!H30","v":0},null,158,null,"","","","","","",""]
[{"$f":"IF(OR(G162=\"Y\",G162=0,G162=\"NA\"),0,COUNTIF($G$4:$G162,\"N\"))","v":0},"Principle 3","3.1 Nutritional and sustenance needs of resource-dependent communities are maintained or improved","3.1.3 Education","SRA3.1.3 S2","Medium",{"$f":"'Principle 3'!F31","v":0},{"$f":"'Principle 3'!H31","v":0},null,159,null,"","","","","","",""]
[{"$f":"IF(OR(G163=\"Y\",G163=0,G163=\"NA\"),0,COUNTIF($G$4:$G163,\"N\"))","v":0},"Principle 3","3.1 Nutritional and sustenance needs of resource-dependent communities are maintained or improved","3.1.3 Education","SRA3.1.3 S3","Medium",{"$f":"'Principle 3'!F32","v":0},{"$f":"'Principle 3'!H32","v":0},null,160,null,"","","","","","",""]
[{"$f":"IF(OR(G164=\"Y\",G164=0,G164=\"NA\"),0,COUNTIF($G$4:$G164,\"N\"))","v":0},"Principle 3","3.1 Nutritional and sustenance needs of resource-dependent communities are maintained or improved","3.1.3 Education","SRA3.1.3 S4","Medium",{"$f":"'Principle 3'!F33","v":0},{"$f":"'Principle 3'!H33","v":0},null,161,null,"","","","","","",""]
[{"$f":"IF(OR(G165=\"Y\",G165=0,G165=\"NA\"),0,COUNTIF($G$4:$G165,\"N\"))","v":0},"Principle 3","3.1 Nutritional and sustenance needs of resource-dependent communities are maintained or improved","3.1.3 Education","SRA3.1.3 S5","Low",{"$f":"'Principle 3'!F34","v":0},{"$f":"'Principle 3'!H34","v":0},null,162,null,"","","","","","",""]
[{"$f":"IF(OR(G166=\"Y\",G166=0,G166=\"NA\"),0,COUNTIF($G$4:$G166,\"N\"))","v":0},"Principle 3","3.1 Nutritional and sustenance needs of resource-dependent communities are maintained or improved","3.1.3 Education","SRA3.1.3 S6","Low",{"$f":"'Principle 3'!F35","v":0},{"$f":"'Principle 3'!H35","v":0},null,163,null,"","","","","","",""]
[{"$f":"IF(OR(G167=\"Y\",G167=0,G167=\"NA\"),0,COUNTIF($G$4:$G167,\"N\"))","v":0},"Principle 3","3.2: Livelihood opportunities are secured or improved, including fair access to markets and capabilities to maintain income generation ","3.2.1: Benefits to and within community","SRA3.2.1 S1","Medium",{"$f":"'Principle 3'!F40","v":0},{"$f":"'Principle 3'!H40","v":0},null,164,null,"","","","","","",""]
[{"$f":"IF(OR(G168=\"Y\",G168=0,G168=\"NA\"),0,COUNTIF($G$4:$G168,\"N\"))","v":0},"Principle 3","3.2: Livelihood opportunities are secured or improved, including fair access to markets and capabilities to maintain income generation ","3.2.1: Benefits to and within community","SRA3.2.1 S2","Medium",{"$f":"'Principle 3'!F41","v":0},{"$f":"'Principle 3'!H41","v":0},null,165,null,"","","","","","",""]
[{"$f":"IF(OR(G169=\"Y\",G169=0,G169=\"NA\"),0,COUNTIF($G$4:$G169,\"N\"))","v":0},"Principle 3","3.2: Livelihood opportunities are secured or improved, including fair access to markets and capabilities to maintain income generation ","3.2.1: Benefits to and within community","SRA3.2.1 S3","Medium",{"$f":"'Principle 3'!F42","v":0},{"$f":"'Principle 3'!H42","v":0},null,166,null,"","","","","","",""]
[{"$f":"IF(OR(G170=\"Y\",G170=0,G170=\"NA\"),0,COUNTIF($G$4:$G170,\"N\"))","v":0},"Principle 3","3.2: Livelihood opportunities are secured or improved, including fair access to markets and capabilities to maintain income generation ","3.2.1: Benefits to and within community","SRA3.2.1 S4","Low",{"$f":"'Principle 3'!F43","v":0},{"$f":"'Principle 3'!H43","v":0},null,167,null,"","","","","","",""]
[{"$f":"IF(OR(G171=\"Y\",G171=0,G171=\"NA\"),0,COUNTIF($G$4:$G171,\"N\"))","v":0},"Principle 3","3.2: Livelihood opportunities are secured or improved, including fair access to markets and capabilities to maintain income generation ","3.2.1: Benefits to and within community","SRA3.2.1 S5","Low",{"$f":"'Principle 3'!F44","v":0},{"$f":"'Principle 3'!H44","v":0},null,168,null,"","","","","","",""]
[{"$f":"IF(OR(G172=\"Y\",G172=0,G172=\"NA\"),0,COUNTIF($G$4:$G172,\"N\"))","v":0},"Principle 3","3.2: Livelihood opportunities are secured or improved, including fair access to markets and capabilities to maintain income generation ","3.2.1: Benefits to and within community","SRA3.2.1 S6","Low",{"$f":"'Principle 3'!F45","v":0},{"$f":"'Principle 3'!H45","v":0},null,169,null,"","","","","","",""]
[{"$f":"IF(OR(G173=\"Y\",G173=0,G173=\"NA\"),0,COUNTIF($G$4:$G173,\"N\"))","v":0},"Principle 3","3.2: Livelihood opportunities are secured or improved, including fair access to markets and capabilities to maintain income generation ","3.2.1: Benefits to and within community","SRA3.2.1 S7","Low",{"$f":"'Principle 3'!F46","v":0},{"$f":"'Principle 3'!H46","v":0},null,170,null,"","","","","","",""]
[{"$f":"IF(OR(G174=\"Y\",G174=0,G174=\"NA\"),0,COUNTIF($G$4:$G174,\"N\"))","v":0},"Principle 3","3.2: Livelihood opportunities are secured or improved, including fair access to markets and capabilities to maintain income generation ","3.2.2: Economic value retention","SRA3.2.2 S1","Medium",{"$f":"'Principle 3'!F50","v":0},{"$f":"'Principle 3'!H50","v":0},null,171,null,"","","","","","",""]
[{"$f":"IF(OR(G175=\"Y\",G175=0,G175=\"NA\"),0,COUNTIF($G$4:$G175,\"N\"))","v":0},"Principle 3","3.2: Livelihood opportunities are secured or improved, including fair access to markets and capabilities to maintain income generation ","3.2.2: Economic value retention","SRA3.2.2 S2","Medium",{"$f":"'Principle 3'!F51","v":0},{"$f":"'Principle 3'!H51","v":0},null,172,null,"","","","","","",""]
[{"$f":"IF(OR(G176=\"Y\",G176=0,G176=\"NA\"),0,COUNTIF($G$4:$G176,\"N\"))","v":0},"Principle 3","3.2: Livelihood opportunities are secured or improved, including fair access to markets and capabilities to maintain income generation ","3.2.2: Economic value retention","SRA3.2.2 S3","Low",{"$f":"'Principle 3'!F52","v":0},{"$f":"'Principle 3'!H52","v":0},null,173,null,"","","","","","",""]
[{"$f":"IF(OR(G177=\"Y\",G177=0,G177=\"NA\"),0,COUNTIF($G$4:$G177,\"N\"))","v":0},"Principle 3","3.2: Livelihood opportunities are secured or improved, including fair access to markets and capabilities to maintain income generation ","3.2.2: Economic value retention","SRA3.2.2 S4","Low",{"$f":"'Principle 3'!F53","v":0},{"$f":"'Principle 3'!H53","v":0},null,174,null,"","","","","","",""]
[{"$f":"IF(OR(G178=\"Y\",G178=0,G178=\"NA\"),0,COUNTIF($G$4:$G178,\"N\"))","v":0},"Principle 3","3.2: Livelihood opportunities are secured or improved, including fair access to markets and capabilities to maintain income generation ","3.2.3: Long-term profitability and future workforce","SRA3.2.3 S1","Medium",{"$f":"'Principle 3'!F57","v":0},{"$f":"'Principle 3'!H57","v":0},null,175,null,"","","","","","",""]
[{"$f":"IF(OR(G179=\"Y\",G179=0,G179=\"NA\"),0,COUNTIF($G$4:$G179,\"N\"))","v":0},"Principle 3","3.2: Livelihood opportunities are secured or improved, including fair access to markets and capabilities to maintain income generation ","3.2.3: Long-term profitability and future workforce","SRA3.2.3 S2","Medium",{"$f":"'Principle 3'!F58","v":0},{"$f":"'Principle 3'!H58","v":0},null,176,null,"","","","","","",""]
[{"$f":"IF(OR(G180=\"Y\",G180=0,G180=\"NA\"),0,COUNTIF($G$4:$G180,\"N\"))","v":0},"Principle 3","3.2: Livelihood opportunities are secured or improved, including fair access to markets and capabilities to maintain income generation ","3.2.3: Long-term profitability and future workforce","SRA3.2.3 S3","Medium",{"$f":"'Principle 3'!F59","v":0},{"$f":"'Principle 3'!H59","v":0},null,177,null,"","","","","","",""]
[{"$f":"IF(OR(G181=\"Y\",G181=0,G181=\"NA\"),0,COUNTIF($G$4:$G181,\"N\"))","v":0},"Principle 3","3.2: Livelihood opportunities are secured or improved, including fair access to markets and capabilities to maintain income generation ","3.2.3: Long-term profitability and future workforce","SRA3.2.3 S4","Low",{"$f":"'Principle 3'!F60","v":0},{"$f":"'Principle 3'!H60","v":0},null,178,null,"","","","","","",""]
[{"$f":"IF(OR(G182=\"Y\",G182=0,G182=\"NA\"),0,COUNTIF($G$4:$G182,\"N\"))","v":0},"Principle 3","3.2: Livelihood opportunities are secured or improved, including fair access to markets and capabilities to maintain income generation ","3.2.3: Long-term profitability and future workforce","SRA3.2.3 S5","Low",{"$f":"'Principle 3'!F61","v":0},{"$f":"'Principle 3'!H61","v":0},null,179,null,"","","","","","",""]
[{"$f":"IF(OR(G183=\"Y\",G183=0,G183=\"NA\"),0,COUNTIF($G$4:$G183,\"N\"))","v":0},"Principle 3","3.2: Livelihood opportunities are secured or improved, including fair access to markets and capabilities to maintain income generation ","3.2.3: Long-term profitability and future workforce","SRA3.2.3 S6","Low",{"$f":"'Principle 3'!F62","v":0},{"$f":"'Principle 3'!H62","v":0},null,180,null,"","","","","","",""]
[{"$f":"IF(OR(G184=\"Y\",G184=0,G184=\"NA\"),0,COUNTIF($G$4:$G184,\"N\"))","v":0},"Principle 3","3.2: Livelihood opportunities are secured or improved, including fair access to markets and capabilities to maintain income generation ","3.2.4: Economic flexibility and autonomy","SRA3.2.4 S1","Medium",{"$f":"'Principle 3'!F66","v":0},{"$f":"'Principle 3'!H66","v":0},null,181,null,"","","","","","",""]
[{"$f":"IF(OR(G185=\"Y\",G185=0,G185=\"NA\"),0,COUNTIF($G$4:$G185,\"N\"))","v":0},"Principle 3","3.2: Livelihood opportunities are secured or improved, including fair access to markets and capabilities to maintain income generation ","3.2.4: Economic flexibility and autonomy","SRA3.2.4 S2","Medium",{"$f":"'Principle 3'!F67","v":0},{"$f":"'Principle 3'!H67","v":0},null,182,null,"","","","","","",""]
[{"$f":"IF(OR(G186=\"Y\",G186=0,G186=\"NA\"),0,COUNTIF($G$4:$G186,\"N\"))","v":0},"Principle 3","3.2: Livelihood opportunities are secured or improved, including fair access to markets and capabilities to maintain income generation ","3.2.4: Economic flexibility and autonomy","SRA3.2.4 S3","Medium",{"$f":"'Principle 3'!F68","v":0},{"$f":"'Principle 3'!H68","v":0},null,183,null,"","","","","","",""]
[{"$f":"IF(OR(G187=\"Y\",G187=0,G187=\"NA\"),0,COUNTIF($G$4:$G187,\"N\"))","v":0},"Principle 3","3.2: Livelihood opportunities are secured or improved, including fair access to markets and capabilities to maintain income generation ","3.2.4: Economic flexibility and autonomy","SRA3.2.4 S4","Medium",{"$f":"'Principle 3'!F69","v":0},{"$f":"'Principle 3'!H69","v":0},null,184,null,"","","","","","",""]
[{"$f":"IF(OR(G188=\"Y\",G188=0,G188=\"NA\"),0,COUNTIF($G$4:$G188,\"N\"))","v":0},"Principle 3","3.2: Livelihood opportunities are secured or improved, including fair access to markets and capabilities to maintain income generation ","3.2.4: Economic flexibility and autonomy","SRA3.2.4 S5","Medium",{"$f":"'Principle 3'!F70","v":0},{"$f":"'Principle 3'!H70","v":0},null,185,null,"","","","","","",""]
[{"$f":"IF(OR(G189=\"Y\",G189=0,G189=\"NA\"),0,COUNTIF($G$4:$G189,\"N\"))","v":0},"Principle 3","3.2: Livelihood opportunities are secured or improved, including fair access to markets and capabilities to maintain income generation ","3.2.4: Economic flexibility and autonomy","SRA3.2.4 S6","Low",{"$f":"'Principle 3'!F71","v":0},{"$f":"'Principle 3'!H71","v":0},null,186,null,"","","","","","",""]
[{"$f":"IF(OR(G190=\"Y\",G190=0,G190=\"NA\"),0,COUNTIF($G$4:$G190,\"N\"))","v":0},"Principle 3","3.2: Livelihood opportunities are secured or improved, including fair access to markets and capabilities to maintain income generation ","3.2.4: Economic flexibility and autonomy","SRA3.2.4 S7","Low",{"$f":"'Principle 3'!F72","v":0},{"$f":"'Principle 3'!H72","v":0},null,187,null,"","","","","","",""]
[{"$f":"IF(OR(G191=\"Y\",G191=0,G191=\"NA\"),0,COUNTIF($G$4:$G191,\"N\"))","v":0},"Principle 3","3.2: Livelihood opportunities are secured or improved, including fair access to markets and capabilities to maintain income generation ","3.2.4: Economic flexibility and autonomy","SRA3.2.4 S8","Low",{"$f":"'Principle 3'!F73","v":0},{"$f":"'Principle 3'!H73","v":0},null,188,null,"","","","","","",""]
[{"$f":"IF(OR(G192=\"Y\",G192=0,G192=\"NA\"),0,COUNTIF($G$4:$G192,\"N\"))","v":0},"Principle 3","3.2: Livelihood opportunities are secured or improved, including fair access to markets and capabilities to maintain income generation ","3.2.4: Economic flexibility and autonomy","SRA3.2.4 S9","Low",{"$f":"'Principle 3'!F74","v":0},{"$f":"'Principle 3'!H74","v":0},null,189,null,"","","","","","",""]
[{"$f":"IF(OR(G193=\"Y\",G193=0,G193=\"NA\"),0,COUNTIF($G$4:$G193,\"N\"))","v":0},"Principle 3","3.2: Livelihood opportunities are secured or improved, including fair access to markets and capabilities to maintain income generation ","3.2.4: Economic flexibility and autonomy","SRA3.2.4 S10","Low",{"$f":"'Principle 3'!F75","v":0},{"$f":"'Principle 3'!H75","v":0},null,190,null,"","","","","","",""]
[{"$f":"IF(OR(G194=\"Y\",G194=0,G194=\"NA\"),0,COUNTIF($G$4:$G194,\"N\"))","v":0},"Principle 3","3.2: Livelihood opportunities are secured or improved, including fair access to markets and capabilities to maintain income generation ","3.2.5: Livelihood security ","SRA3.2.5 S1","Medium",{"$f":"'Principle 3'!F79","v":0},{"$f":"'Principle 3'!H79","v":0},null,191,null,"","","","","","",""]
[{"$f":"IF(OR(G195=\"Y\",G195=0,G195=\"NA\"),0,COUNTIF($G$4:$G195,\"N\"))","v":0},"Principle 3","3.2: Livelihood opportunities are secured or improved, including fair access to markets and capabilities to maintain income generation ","3.2.5: Livelihood security ","SRA3.2.5 S2","Medium",{"$f":"'Principle 3'!F80","v":0},{"$f":"'Principle 3'!H80","v":0},null,192,null,"","","","","","",""]
[{"$f":"IF(OR(G196=\"Y\",G196=0,G196=\"NA\"),0,COUNTIF($G$4:$G196,\"N\"))","v":0},"Principle 3","3.2: Livelihood opportunities are secured or improved, including fair access to markets and capabilities to maintain income generation ","3.2.5: Livelihood security ","SRA3.2.5 S3","Medium",{"$f":"'Principle 3'!F81","v":0},{"$f":"'Principle 3'!H81","v":0},null,193,null,{"$f":"IFERROR(INDEX(B$4:B$204,MATCH($J196,$A$4:$A$204,0)),\"\")","v":""},{"$f":"IFERROR(INDEX(C$4:C$204,MATCH($J196,$A$4:$A$204,0)),\"\")","v":""},{"$f":"IFERROR(INDEX(D$4:D$204,MATCH($J196,$A$4:$A$204,0)),\"\")","v":""},{"$f":"IFERROR(INDEX(E$4:E$204,MATCH($J196,$A$4:$A$204,0)),\"\")","v":""},{"$f":"IFERROR(INDEX(F$4:F$204,MATCH($J196,$A$4:$A$204,0)),\"\")","v":""},{"$f":"IF(P196=\"Medium\",\"HIGH\",IF(P196=\"Low\",\"MEDIUM\",\"\"))","v":""},{"$f":"IFERROR(INDEX(H$4:H$204,MATCH($J196,$A$4:$A$204,0)),\"\")","v":""}]
[{"$f":"IF(OR(G197=\"Y\",G197=0,G197=\"NA\"),0,COUNTIF($G$4:$G197,\"N\"))","v":0},"Principle 3","3.2: Livelihood opportunities are secured or improved, including fair access to markets and capabilities to maintain income generation ","3.2.5: Livelihood security ","SRA3.2.5 S4","Medium",{"$f":"'Principle 3'!F82","v":0},{"$f":"'Principle 3'!H82","v":0},null,194,null,"","","","","","",""]
[{"$f":"IF(OR(G198=\"Y\",G198=0,G198=\"NA\"),0,COUNTIF($G$4:$G198,\"N\"))","v":0},"Principle 3","3.2: Livelihood opportunities are secured or improved, including fair access to markets and capabilities to maintain income generation ","3.2.5: Livelihood security ","SRA3.2.5 S5","Medium",{"$f":"'Principle 3'!F83","v":0},{"$f":"'Principle 3'!H83","v":0},null,195,null,"","","","","","",""]
[{"$f":"IF(OR(G199=\"Y\",G199=0,G199=\"NA\"),0,COUNTIF($G$4:$G199,\"N\"))","v":0},"Principle 3","3.2: Livelihood opportunities are secured or improved, including fair access to markets and capabilities to maintain income generation ","3.2.5: Livelihood security ","SRA3.2.5 S6","Low",{"$f":"'Principle 3'!F84","v":0},{"$f":"'Principle 3'!H84","v":0},null,196,null,"","","","","","",""]
[{"$f":"IF(OR(G200=\"Y\",G200=0,G200=\"NA\"),0,COUNTIF($G$4:$G200,\"N\"))","v":0},"Principle 3","3.2: Livelihood opportunities are secured or improved, including fair access to markets and capabilities to maintain income generation ","3.2.5: Livelihood security ","SRA3.2.5 S7","Low",{"$f":"'Principle 3'!F85","v":0},{"$f":"'Principle 3'!H85","v":0},null,197,null,"","","","","","",""]
[{"$f":"IF(OR(G201=\"Y\",G201=0,G201=\"NA\"),0,COUNTIF($G$4:$G201,\"N\"))","v":0},"Principle 3","3.2: Livelihood opportunities are secured or improved, including fair access to markets and capabilities to maintain income generation ","3.2.5: Livelihood security ","SRA3.2.5 S8","Low",{"$f":"'Principle 3'!F86","v":0},{"$f":"'Principle 3'!H86","v":0},null,198,null,"","","","","","",""]
[{"$f":"IF(OR(G202=\"Y\",G202=0,G202=\"NA\"),0,COUNTIF($G$4:$G202,\"N\"))","v":0},"Principle 3","3.2: Livelihood opportunities are secured or improved, including fair access to markets and capabilities to maintain income generation ","3.2.6: Economic fuel efficiency","SRA3.2.6 S1","Medium",{"$f":"'Principle 3'!F90","v":0},{"$f":"'Principle 3'!H90","v":0},null,199,null,"","","","","","",""]
[{"$f":"IF(OR(G203=\"Y\",G203=0,G203=\"NA\"),0,COUNTIF($G$4:$G203,\"N\"))","v":0},"Principle 3","3.2: Livelihood opportunities are secured or improved, including fair access to markets and capabilities to maintain income generation ","3.2.6: Economic fuel efficiency","SRA3.2.6 S2","Medium",{"$f":"'Principle 3'!F91","v":0},{"$f":"'Principle 3'!H91","v":0},null,200,null,"","","","","","",""]
[{"$f":"IF(OR(G204=\"Y\",G204=0,G204=\"NA\"),0,COUNTIF($G$4:$G204,\"N\"))","v":0},"Principle 3","3.2: Livelihood opportunities are secured or improved, including fair access to markets and capabilities to maintain income generation ","3.2.6: Economic fuel efficiency","SRA3.2.6 S3","Low",{"$f":"'Principle 3'!F92","v":0},{"$f":"'Principle 3'!H92","v":0},null,201,null,"","","","","","",""]